{"text_format":"2","workbook":"xlsx","n_sheets":7,"sheets":["Plan1","Painel de Preços","Cotação 01","COMPOSIÇÕES","ORÇAMENTO","CRONOGRAMA","PRAZOS"],"not_rendered":{"charts":1,"images":0,"macros":0,"external_links":1,"defined_names":244,"comments":0,"pivot_tables":0},"unopened":[],"bounds":{"document_bytes":16777216,"sheet_cells":100000,"run_cost":"one","rows_first":2000,"rows_last":500,"rows_between":2000,"halvings":0,"cell_chars":16384,"cell_head_chars":4096},"cells_cut":0,"cells_raw":0,"read":"whole","date_system":"1900"}

{"sheet":"Plan1","index":0,"n_rows":0,"n_cols":0,"rows_kept":0,"cut":false,"hidden":true,"merged":[]}

{"sheet":"Painel de Preços","index":1,"n_rows":20,"n_cols":6,"rows_kept":20,"cut":false,"hidden":false,"merged":[[16,5,18,5],[5,0,5,5],[6,0,6,5],[7,0,7,5],[8,0,10,5],[11,0,13,5],[15,0,15,4],[16,2,18,2],[16,0,18,0],[16,1,18,1],[16,3,18,3],[16,4,18,4]]}
["UNIVERSIDADE FEDERAL DE ALAGOAS - UFAL"]
["SUPERINTENDÊNCIA DE INFRAESTRUTURA - SINFRA"]
["GERENCIA DE PROJETOS,OBRAS E SERVIÇOS DE ENGENHARIA - GPOS"]
[]
["COTAÇÕES DE PREÇO PARA OBRA DE REFORMA DO AUDITÓRIO GUEDES DE MIRANDA NO ESPAÇO CULTURAL DA UFAL."]
[]
["ORIENTAÇÕES PARA ELABORAÇÃO DE PLANILHAS ORÇAMENTÁRIAS DE OBRAS PÚBLICAS - TCU"]
["14 – É válida a utilização de cotações de preços obtidas em jornais ou folhetos de propaganda, anúncios televisivos ou mediante pesquisa por telefone?"]
["Resposta: Sim. No caso de mídia impressa (jornais ou folhetos de propaganda) recomenda-se juntar aos autos do processo licitatório o original ou cópia do material para comprovar o preço pesquisado. Na hipótese dos demais canais, recomenda-se que o agente responsável pela consulta lavre e assine certidão informando os dados da pesquisa, tais como valor obtido, quantidade, marca, condições de pagamento e entrega, data e hora da pesquisa, nome, endereço e telefone do estabelecimento comercial e nome do vendedor."]
[]
[]
["Ressalta-se que tal pesquisa tem validade jurídica, pois os atos praticados por agentes públicos (no caso a assinatura da certidão contendo as cotações de preços) em geral gozam de presunção de veracidade, conforme posicionamento doutrinário dominante, transferindo ao particular não apenas o ônus de impugnálo, mas também o de fazer prova de sua invalidade ou inveracidade."]
[]
[]
[]
["Pesquisa Painel de Preços",{"$nulls":4},1]
["ITEM","DESCRIÇÃO","Unidade","QTD","Cotação","Fonte"]
[]
[]
[1,"CONTRATAÇÃO DE SERVIÇOS DE CONFECÇÃO E INSTALAÇÃO DE CORTINA COM FORNECIMENTO DE MATERIAIS.\nESPECIFICAÇÃO DO TECIDO: TECIDO TIPO CETIM / OXFORD OU SIMILAR NA COR MARFIM 100% POLIÉSTER\nGRAMATURA DE 200 G/M2. RODÍZIO PARA A CORTINA, CONFECCIONADO EM AÇO BICROMATIZADO E ROLDANAS EM\nMATERIAL PLÁSTICO E TERMINAL EM METAL. ESPECIFICAÇÃO DO TRILHO: TRILHO DUPLO EM ALUMÍNIO, ALTURA\nDO TRILHO 1 CM.","m²",1,12.9,"UASG 154358, PR 14/2017, LOTE 1, ITEM 02"]

{"sheet":"Cotação 01","index":2,"n_rows":74,"n_cols":13,"rows_kept":74,"cut":false,"hidden":false,"merged":[[15,0,15,11],[5,0,5,12],[6,0,6,12],[7,0,7,12],[8,0,10,12],[11,0,13,12],[27,0,27,11],[16,6,18,6],[16,7,18,7],[16,8,18,8],[16,9,18,9],[16,10,16,12],[20,0,20,12],[16,0,18,0],[16,1,18,1],[16,2,18,2],[16,3,18,3],[16,4,18,4],[16,5,18,5],[21,0,21,12],[22,2,22,9],[23,2,23,9],[24,2,24,9],[25,2,25,9],[39,0,39,11],[28,6,30,6],[28,7,30,7],[28,8,30,8],[28,9,30,9],[28,10,28,12],[32,0,32,12],[28,0,30,0],[28,1,30,1],[28,2,30,2],[28,3,30,3],[28,4,30,4],[28,5,30,5],[33,0,33,12],[34,2,34,9],[35,2,35,9],[36,2,36,9],[37,2,37,9],[51,0,51,11],[40,6,42,6],[40,7,42,7],[40,8,42,8],[40,9,42,9],[40,10,40,12],[44,0,44,12],[40,0,42,0],[40,1,42,1],[40,2,42,2],[40,3,42,3],[40,4,42,4],[40,5,42,5],[45,0,45,12],[46,2,46,9],[47,2,47,9],[48,2,48,9],[49,2,49,9],[63,0,63,11],[52,6,54,6],[52,7,54,7],[52,8,54,8],[52,9,54,9],[52,10,52,12],[56,0,56,12],[52,0,54,0],[52,1,54,1],[52,2,54,2],[52,3,54,3],[52,4,54,4],[52,5,54,5],[57,0,57,12],[58,2,58,9],[59,2,59,9],[60,2,60,9],[61,2,61,9],[68,0,68,12],[64,0,66,0],[64,1,66,1],[64,2,66,2],[64,3,66,3],[64,4,66,4],[64,5,66,5],[64,6,66,6],[64,7,66,7],[64,8,66,8],[64,9,66,9],[64,10,64,12],[69,0,69,12],[70,2,70,9],[71,2,71,9],[72,2,72,9],[73,2,73,9]]}
["UNIVERSIDADE FEDERAL DE ALAGOAS - UFAL"]
["SUPERINTENDÊNCIA DE INFRAESTRUTURA - SINFRA"]
["GERENCIA DE PROJETOS,OBRAS E SERVIÇOS DE ENGENHARIA - GPOS"]
[]
["COTAÇÕES DE PREÇO PARA OBRA DE REFORMA DO AUDITÓRIO GUEDES DE MIRANDA NO ESPAÇO CULTURAL DA UFAL."]
[]
["ORIENTAÇÕES PARA ELABORAÇÃO DE PLANILHAS ORÇAMENTÁRIAS DE OBRAS PÚBLICAS - TCU"]
["14 – É válida a utilização de cotações de preços obtidas em jornais ou folhetos de propaganda, anúncios televisivos ou mediante pesquisa por telefone?"]
["Resposta: Sim. No caso de mídia impressa (jornais ou folhetos de propaganda) recomenda-se juntar aos autos do processo licitatório o original ou cópia do material para comprovar o preço pesquisado. Na hipótese dos demais canais, recomenda-se que o agente responsável pela consulta lavre e assine certidão informando os dados da pesquisa, tais como valor obtido, quantidade, marca, condições de pagamento e entrega, data e hora da pesquisa, nome, endereço e telefone do estabelecimento comercial e nome do vendedor."]
[]
[]
["Ressalta-se que tal pesquisa tem validade jurídica, pois os atos praticados por agentes públicos (no caso a assinatura da certidão contendo as cotações de preços) em geral gozam de presunção de veracidade, conforme posicionamento doutrinário dominante, transferindo ao particular não apenas o ônus de impugnálo, mas também o de fazer prova de sua invalidade ou inveracidade."]
[]
[]
[]
["COTAÇÃO Nº",{"$nulls":11},"01"]
["ITEM","DESCRIÇÃO DO MATERIAL","UND","QUANTIDADE","MARCA","COND. PAGAMENTO","ENTREGA","DATA","HORA","VALOR MÉDIO (unit)","EMPRESA"]
[{"$nulls":10},"A","B","C"]
[{"$nulls":10},"VALOR UNIT.","VALOR UNIT.","VALOR UNIT."]
["15.1","Luminária tipo Arandela LED  6W com foco bidirecional para cima e para baixo  com  caixa em alumínio epintura epóxidica na cor pereta- Fornecimento (Incluso frete)","unid",2,"Initial","à vista","12 dias úteis","2017-08-30","10h",{"$f":"(K20+L20+M20)/3","v":108.13833333333334},{"$f":"242.4/2","v":121.2},{"$f":"226.7/2","v":113.35},{"$f":"179.73/2","v":89.864999999999995}]
[]
["DADOS DA EMPRESA"]
["ITEM","NOME","ENDEREÇO",{"$nulls":7},"CONTATO","VENDEDOR","CNPJ"]
["A","LENHARO MEGASTORE ","http://www.lenharomegastore.com.br/luminaria-arandela-6w-super-led-aluminio-branco-frio.html",{"$nulls":7},"(43)3055-9188 / 3276-2430","LojaVirtual","11.310.342/0001-24"]
["B","L.P. COMERCIAL LTDA - ME ","https://www.iluminim.com.br/uminaria-arandela-led-6w-branco-quente-externa",{"$nulls":7},"(11)4210-0494 / (21)2042-0247","Loja Virtual","26.192.660/0001­05"]
["C","BEST DEAL COMERCIO DE PRODUTOS ELETRONICOS LTDA - EPP","https://9led.commercesuite.com.br/arandelas/arandela-externa-led-6w-bq-3000k",{"$nulls":7},"(11)3402-1581","Loja Virtual","16.979.746/0001-29"]
[]
["COTAÇÃO Nº",{"$nulls":11},"02"]
["ITEM","DESCRIÇÃO DO MATERIAL","UND","QUANTIDADE","MARCA","COND. PAGAMENTO","ENTREGA","DATA","HORA","VALOR MÉDIO (unit)","EMPRESA"]
[{"$nulls":10},"A","B","C"]
[{"$nulls":10},"VALOR UNIT.","VALOR UNIT.","VALOR UNIT."]
["12.11","Extintor de incêndio de Pó ABC 12Kg capacidade extintora 6A-40BC","unid",1,"Resil/Aerotex/KIDDE","em até 10x com juros","13 dias úteis","2017-09-28","11h",{"$f":"(K32+L32+M32)/3","v":231.9666666666667},{"$f":"333.58","v":333.58},179.52,182.8]
[]
["DADOS DA EMPRESA"]
["ITEM","NOME","ENDEREÇO",{"$nulls":7},"CONTATO","VENDEDOR","CNPJ"]
["A","B2W - Companhia Digital (SHOPTIME)","https://www.shoptime.com.br/produto/22945896/extintor-de-incendio-resil-po-abc-12-kg?WT.srch=1&epar=bp_pl_00_go_pla_aut_geral_3p&gclid=CjwKCAjwu7LOBRBZEiwAQtfbGCnhoBohwBPgkq1HwrMrWJHnC_yr71l_cgWBTUv0XREqZ2Xy3nAsihoC1OIQAvD_BwE&opn=GOOGLEXML&sellerId=11079202000197",{"$nulls":7},"4003-1020","LojaVirtual"," 00.776.574/0006-60"]
["B","Aerotex Extintores Ltda Epp","http://www.aerotexextintores.com.br/po-quimico-classe-abc-01-ano-de-garantia/244-extintor-po-abc-portatil-12kg-validade-1-ano-6a-40bc-en016-uso-comercial-industrial-residencial",{"$nulls":7},"(12) 3922-1771","Loja Virtual","04.823.635/0001-40"]
["C","SP EQUIPAMENTOS DE PROTECAO AO TRABALHO E MRO LTDA.","http://www.epibrasil.com.br/extintor-de-incendio-abc-12kg-p5760/",{"$nulls":7},"sac@epibrasil.com.br","Loja Virtual","59.609.123/0012-20"]
[]
["COTAÇÃO Nº",{"$nulls":11},"03"]
["ITEM","DESCRIÇÃO DO MATERIAL","UND","QUANTIDADE","MARCA","COND. PAGAMENTO","ENTREGA","DATA","HORA","VALOR MÉDIO (unit)","EMPRESA"]
[{"$nulls":10},"A","B","C"]
[{"$nulls":10},"VALOR UNIT.","VALOR UNIT.","VALOR UNIT."]
["12.12","Placa direção saída de emergênciaFotoluminescente Sinalize Seta Reta P/ Direita 30x15cm","unid",1,"Sinalize","em até 5x sem juros","15 dias úteis","2017-09-28","13h",{"$f":"(K44+L44+M44)/3","v":15.709999999999999},14.24,13.59,19.3]
[]
["DADOS DA EMPRESA"]
["ITEM","NOME","ENDEREÇO",{"$nulls":7},"CONTATO","VENDEDOR","CNPJ"]
["A","B2W - Companhia Digital (Americanas))","https://www.americanas.com.br/produto/24707515/placa-fotoluminescente-sinalize-seta-reta-p-direita-30x15cm?WT.srch=1&epar=bp_pl_00_go_todos-os-produtos_geral_gmv&gclid=CjwKCAjwu7LOBRBZEiwAQtfbGEPO1EgSrOfvIGSs4uyVLC4kWdcZDId8K9w1BurOUG34biQPwPIHZRoCTkUQAvD_BwE&opn=YSMESP&sellerId=54651716000188",{"$nulls":7},40031000,"LojaVirtual"," 00.776.574/0006-60"]
["B","DUTRA MÁQUINAS COMERCIAL E TÉCNICA LTDA","http://www.dutramaquinas.com.br/p/placa-sinalizadora-em-pvc-seta-reta-para-direita-315aa?gclid=CjwKCAjwu7LOBRBZEiwAQtfbGGdTtb9wztpfPLH8uVF0AIM5bp81r3xhssKkr_5EK1WcotGTU6QViRoClc0QAvD_BwE",{"$nulls":7}," (11) 2795-8800","Loja Virtual"," 50.970.342/0001-02"]
["C","Kalunga Comércio e Indústria Gráfica Ltda","https://www.kalunga.com.br/prod/placa-p-sinaliz-15x30cm-fotolumi-saida-direita-315aa-sinalize/630223?pcID=39&adtype=pla&gclid=CjwKCAjwu7LOBRBZEiwAQtfbGMHGg8DDDSZZq_HkiNx3bpRWeL0VAJm_z3lAaVVOzhi28oySmDEEfhoClhcQAvD_BwE",{"$nulls":7},"0800-0195566","Loja Virtual","43.283.811/0023-65"]
[]
["COTAÇÃO Nº",{"$nulls":11},"04"]
["ITEM","DESCRIÇÃO DO MATERIAL","UND","QUANTIDADE","MARCA","COND. PAGAMENTO","ENTREGA","DATA","HORA","VALOR MÉDIO (unit)","EMPRESA"]
[{"$nulls":10},"A","B","C"]
[{"$nulls":10},"VALOR UNIT.","VALOR UNIT.","VALOR UNIT."]
["12.12","Placa direção saída de emergênciaFotoluminescente Sinalize Seta Reta P/ Esquerda 30x15cm","unid",1,"Sinalize","em até 5x sem juros","15 dias úteis","2017-09-28","13h",{"$f":"(K56+L56+M56)/3","v":15.709999999999999},14.24,13.59,19.3]
[]
["DADOS DA EMPRESA"]
["ITEM","NOME","ENDEREÇO",{"$nulls":7},"CONTATO","VENDEDOR","CNPJ"]
["A","B2W - Companhia Digital (Americanas))","https://www.americanas.com.br/produto/24723299/placa-fotoluminescente-sinalize-seta-reta-p-esquerda-30x15cm?WT.srch=1&epar=bp_pl_00_go_todos-os-produtos_geral_gmv&gclid=CjwKCAjwu7LOBRBZEiwAQtfbGD7yuHqdbpX1uJq1rNiEuL6ucWDY4gWZ8ALOkQKaqaUv5D10ILkEBBoCGn0QAvD_BwE&opn=YSMESP&sellerId=54651716000188",{"$nulls":7},40031000,"LojaVirtual"," 00.776.574/0006-60"]
["B","DUTRA MÁQUINAS COMERCIAL E TÉCNICA LTDA","http://www.dutramaquinas.com.br/p/placa-sinalizadora-em-pvc-seta-reta-para-esquerda-315ab",{"$nulls":7}," (11) 2795-8800","Loja Virtual"," 50.970.342/0001-02"]
["C","Kalunga Comércio e Indústria Gráfica Ltda","https://www.kalunga.com.br/prod/placa-p-sinaliz-15x30cm-fotolumi-saida-esquerda-315ab-sinalize/630224?menuID=201&WT.svl=6",{"$nulls":7},"0800-0195566","Loja Virtual","43.283.811/0023-65"]
[]
["COTAÇÃO Nº",{"$nulls":11},"05"]
["ITEM","DESCRIÇÃO DO MATERIAL","UND","QUANTIDADE","MARCA","COND. PAGAMENTO","ENTREGA","DATA","HORA","VALOR MÉDIO (unit)","EMPRESA"]
[{"$nulls":10},"A","B","C"]
[{"$nulls":10},"VALOR UNIT.","VALOR UNIT.","VALOR UNIT."]
["12.12","Placa sinalizadora saída de emergênciaFotoluminescente  30x15cm","unid",1,"Sinalize","à vista","16 dias úteis","2017-09-28","13h",{"$f":"(K68+L68+M68)/3","v":12.763333333333335},5.4,13.59,19.3]
[]
["DADOS DA EMPRESA"]
["ITEM","NOME","ENDEREÇO",{"$nulls":7},"CONTATO","VENDEDOR","CNPJ"]
["A","B2W - Companhia Digital (Americanas))","https://www.americanas.com.br/produto/26852003/placa-em-ps-sinal-saida-emergencia-verde-15x30?WT.srch=1&epar=bp_pl_00_go_pla_rlsa_novos_gmv&gclid=CjwKCAjwu7LOBRBZEiwAQtfbGAembBJErHMSNomlsDe4R1IG5XyUmbtIXteMj1EPg05tf81GmTBjIBoCOicQAvD_BwE&opn=YSMESP&sellerId=90462003000130",{"$nulls":7},40031000,"LojaVirtual"," 00.776.574/0006-60"]
["B","DUTRA MÁQUINAS COMERCIAL E TÉCNICA LTDA","http://www.dutramaquinas.com.br/p/placa-sinalizadora-em-pvc-saida-de-emergencia-315am",{"$nulls":7}," (11) 2795-8800","Loja Virtual"," 50.970.342/0001-02"]
["C","Kalunga Comércio e Indústria Gráfica Ltda","https://www.kalunga.com.br/prod/placa-p-sinaliz-15x30cm-fotolumi-saida-emergen-315am-sinalize/630222?menuID=201&WT.svl=21",{"$nulls":7},"0800-0195566","Loja Virtual","43.283.811/0023-65"]

{"sheet":"COMPOSIÇÕES","index":3,"n_rows":652,"n_cols":8,"rows_kept":652,"cut":false,"hidden":false,"merged":[[636,1,636,7],[637,1,637,7],[536,1,536,7],[537,1,537,7],[543,1,543,7],[544,1,544,7],[550,1,550,7],[551,1,551,7],[366,1,366,7],[367,1,367,7],[385,1,385,7],[419,1,419,7],[420,1,420,7],[429,1,429,7],[430,1,430,7],[439,1,439,7],[440,1,440,7],[446,1,446,7],[447,1,447,7],[457,1,457,7],[458,1,458,7],[464,1,464,7],[465,1,465,7],[505,1,505,7],[34,1,34,7],[54,1,54,7],[359,1,359,7],[360,1,360,7],[325,1,325,7],[326,1,326,7],[337,1,337,7],[338,1,338,7],[104,1,104,7],[105,1,105,7],[111,1,111,7],[112,1,112,7],[306,1,306,7],[307,1,307,7],[160,1,160,7],[168,1,168,7],[169,1,169,7],[185,1,185,7],[186,1,186,7],[142,1,142,7],[296,1,296,7],[349,1,349,7],[119,1,119,7],[126,1,126,7],[22,1,22,7],[8,1,8,7],[9,1,9,7],[314,1,314,7],[21,1,21,7],[313,1,313,7],[95,1,95,7],[96,1,96,7],[48,1,48,7],[143,1,143,7],[213,1,213,7],[214,1,214,7],[15,1,15,7],[16,1,16,7],[35,1,35,7],[27,1,27,7],[28,1,28,7],[55,1,55,7],[40,1,40,7],[41,1,41,7],[135,1,135,7],[153,1,153,7],[159,1,159,7],[118,1,118,7],[658,1,658,4],[655,3,655,7],[152,1,152,7],[223,1,223,7],[224,1,224,7],[237,1,237,7],[238,1,238,7],[604,1,604,7],[605,1,605,7],[597,1,597,7],[587,1,587,7],[588,1,588,7],[596,1,596,7],[267,1,267,7],[268,1,268,7],[252,1,252,7],[253,1,253,7],[280,1,280,7],[281,1,281,7],[295,1,295,7],[376,1,376,7],[377,1,377,7],[384,1,384,7],[201,1,201,7],[573,1,573,7],[49,1,49,7],[202,1,202,7],[348,1,348,7],[394,1,394,7],[395,1,395,7],[403,1,403,7],[404,1,404,7],[412,1,412,7],[413,1,413,7],[127,1,127,7],[134,1,134,7],[60,1,60,7],[61,1,61,7],[67,1,67,7],[68,1,68,7],[73,1,73,7],[74,1,74,7],[86,1,86,7],[87,1,87,7],[574,1,574,7],[506,1,506,7],[626,1,626,7],[627,1,627,7],[513,1,513,7],[514,1,514,7],[472,1,472,7],[473,1,473,7],[480,1,480,7],[481,1,481,7],[613,1,613,7],[614,1,614,7],[494,1,494,7],[495,1,495,7],[488,1,488,7],[489,1,489,7],[519,1,519,7],[520,1,520,7],[527,1,527,7],[528,1,528,7],[557,1,557,7],[558,1,558,7],[566,1,566,7],[567,1,567,7]]}
[]
[null,"UNIVERSIDADE FEDERAL DE ALAGOAS - UFAL"]
[null,"SUPERINTENDÊNCIA DE INFRAESTRUTURA - SINFRA"]
[null,"GERENCIA DE PROJETOS,OBRAS E SERVIÇOS DE ENGENHARIA - GPOS"]
[]
[null,"COMPOSIÇÕES DE SERVIÇO PARA OBRA DE REFORMA DO AUDITÓRIO  GUEDES DE MIRANDA NO ESPAÇO CULTURAL DA UFAL"]
[]
[]
[null,"Composição 101 (m²)"]
[null,"Remoção de telhamento com telhas  de cimento amianto onduladas (Adaptada do ORSE)"]
[null,"Descrição","Fonte","Código","Unidade","Quantidade","Valor Unit.","Valor Total"]
[null,"CARPINTEIRO DE FORMAS COM ENCARGOS COMPLEMENTARES","SINAPI",88262,"h",0.22,15.23,{"$f":"F12*G12","v":3.3506}]
[null,"SERVENTE COM ENCARGOS COMPLEMENTARES","SINAPI",88316,"h",0.22,12,{"$f":"F13*G13","v":2.64}]
[null,"TOTAL",{"$nulls":5},{"$f":"SUM(H12:H13)","v":5.9906000000000006}]
[]
[null,"Composição 102 (m²)"]
[null,"Remoção de painéis verticais de madeira"]
[null,"Descrição","Fonte","Código","Unidade","Quantidade","Valor Unit.","Valor Total"]
[null,"SERVENTE COM ENCARGOS COMPLEMENTARES","SINAPI",88316,"h",0.25,12,{"$f":"F19*G19","v":3}]
[null,"TOTAL",{"$nulls":5},{"$f":"SUM(H19:H19)","v":3}]
[]
[null,"Composição 103 (m²)"]
[null,"Remoção de piso em assoalho de madeira (Adaptada do ORSE)"]
[null,"Descrição","Fonte","Código","Unidade","Quantidade","Valor Unit.","Valor Total"]
[null,"SERVENTE COM ENCARGOS COMPLEMENTARES","SINAPI",88316,"h",0.25,12,{"$f":"F25*G25","v":3}]
[null,"TOTAL",{"$nulls":5},{"$f":"SUM(H25:H25)","v":3}]
[]
[null,"Composição 104 (m²)"]
[null,"Demolição de piso cerâmico (Adaptada do ORSE)"]
[null,"Descrição","Fonte","Código","Unidade","Quantidade","Valor Unit.","Valor Total"]
[null,"PEDREIRO COM ENCARGOS COMPLEMENTARES","SINAPI",88309,"h",7.0000000000000007E-2,15.32,{"$f":"F31*G31","v":1.0724}]
[null,"SERVENTE COM ENCARGOS COMPLEMENTARES","SINAPI",88316,"h",0.7,12,{"$f":"F32*G32","v":8.3999999999999986}]
[null,"TOTAL",{"$nulls":5},{"$f":"SUM(H31:H32)","v":9.4723999999999986}]
[]
[null,"Composição 105 (m²)"]
[null," Remoção de estrutura metálica chumbada em concreto (alambrado, guarda-corpo) (Adaptada do ORSE)"]
[null,"Descrição","Fonte","Código","Unidade","Quantidade","Valor Unit.","Valor Total"]
[null,"SERVENTE COM ENCARGOS COMPLEMENTARES","SINAPI",88316,"h",3,12,{"$f":"F38*G38","v":36}]
[null,"TOTAL",{"$nulls":5},{"$f":"SUM(H38:H38)","v":36}]
[]
[null,"Composição 106 (und)"]
[null,"Remoção de poltronas (Adaptada do ORSE)"]
[null,"Descrição","Fonte","Código","Unidade","Quantidade","Valor Unit.","Valor Total"]
[null,"CARPINTEIRO DE FORMAS COM ENCARGOS COMPLEMENTARES","SINAPI",88262,"h",0.09,15.23,{"$f":"F44*G44","v":1.3707}]
[null,"SERVENTE COM ENCARGOS COMPLEMENTARES","SINAPI",88316,"h",0.9,12,{"$f":"F45*G45","v":10.8}]
[null,"TOTAL",{"$nulls":5},{"$f":"SUM(H44:H45)","v":12.1707}]
[]
[]
[null,"Composição 107 (und)"]
[null,"Remoção de cortinas"]
[null,"Descrição","Fonte","Código","Unidade","Quantidade","Valor Unit.","Valor Total"]
[null,"SERVENTE COM ENCARGOS COMPLEMENTARES","SINAPI",88316,"h",1,12,{"$f":"F52*G52","v":12}]
[null,"TOTAL",{"$nulls":5},{"$f":"SUM(H52:H52)","v":12}]
[]
[null,"Composição 108 (m²)"]
[null,"Remoção de pintura látex (raspagem e/ou lixamento e/ou escovação) (Adaptado do ORSE)"]
[null,"Descrição","Fonte","Código","Unidade","Quantidade","Valor Unit.","Valor Total"]
[null,"SERVENTE COM ENCARGOS COMPLEMENTARES","SINAPI",88316,"h",0.8,12,{"$f":"F58*G58","v":9.6000000000000014}]
[null,"TOTAL",{"$nulls":5},{"$f":"SUM(H58:H58)","v":9.6000000000000014}]
[]
[null,"Composição 109 (m³)"]
[null,"Demolicao de alvenaria de tijolos macicos s/reaproveitamento (calçada) (Adaptado do ORSE)"]
[null,"Descrição","Fonte","Código","Unidade","Quantidade","Valor Unit.","Valor Total"]
[null,"PEDREIRO COM ENCARGOS COMPLEMENTARES","SINAPI",88309,"h",0.4,15.32,{"$f":"F64*G64","v":6.1280000000000001}]
[null,"SERVENTE COM ENCARGOS COMPLEMENTARES","SINAPI",88316,"h",4,12,{"$f":"F65*G65","v":48}]
[null,"TOTAL",{"$nulls":5},{"$f":"SUM(H64:H65)","v":54.128}]
[]
[null,"Composição 110 (m³)"]
[null,"Escavação manual de vala ou cava em material de 1ª categoria, profundidade até 1,50m (Adaptada do ORSE)"]
[null,"Descrição","Fonte","Código","Unidade","Quantidade","Valor Unit.","Valor Total"]
[null,"SERVENTE COM ENCARGOS COMPLEMENTARES","SINAPI",88316,"h",3,12,{"$f":"F71*G71","v":36}]
[null,"TOTAL",{"$nulls":5},{"$f":"SUM(H71:H71)","v":36}]
[]
[null,"Composição 111 (und)"]
[null," Caixa de alvenaria de tijolo maciço (0,10m) dimensões interna 30x30x30cm revestida internamente com argamassa 1:3 e tampa de concreto (Adaptada do ORSE)"]
[null,"Descrição","Fonte","Código","Unidade","Quantidade","Valor Unit.","Valor Total"]
[null,"FORMA TABUA P/CONCRETO EM FUNDACAO S/REAPROVEITAMENTO","SINAPI","74074/004","m²",0.13,72.959999999999994,{"$f":"F77*G77","v":9.4847999999999999}]
[null,"CONCRETO FCK = 15MPA, TRAÇO 1:3,4:3,5 (CIMENTO/ AREIA MÉDIA/ BRITA 1)","SINAPI",94969,"m³",1.2999999999999999E-2,256.7,{"$f":"F78*G78","v":3.3370999999999995}]
[null,"Lançamento de concreto simples fabricado na obra, inclusive adensamento e acabamento em peças da superestrutura","COMPOSIÇÃO ",1001,"m³",1.2999999999999999E-2,{"$f":"H595","v":31.523400000000002},0.40980420000000001]
[null,"ARMAÇÃO UTILIZANDO AÇO CA-25 DE 6,3 MM - MONTAGEM. AF_12/2015","SINAPI",92882,"kg",0.6,9.4600000000000009,5.6760000000000002]
[null,"ALVENARIA EM TIJOLO CERAMICO MACICO 5X10X20CM 1 VEZ (ESPESSURA 20CM), ASSENTADO COM ARGAMASSA TRACO 1:2:8 (CIMENTO, CAL E AREIA)","SINAPI",72131,"m²",0.36,93.94,33.818399999999997]
[null,"Escavação manual de vala ou cava em material de 1ª categoria, profundidade até 1,50m","COMPOSIÇÃO ",110,"m³",0.06,{"$f":"H72","v":36},2.16]
[null,"CHAPISCO APLICADO EM ALVENARIAS E ESTRUTURAS DE CONCRETO INTERNAS, COM COLHER DE PEDREIRO. ARGAMASSA TRAÇO 1:3 COM PREPARO MANUAL. AF_06/2014","SINAPI",87879,"m²",0.48,2.39,1.1472]
[null,"Reboco especial de parede 2cm com argamassa traço t3 - 1:3 cimento / areia/impermeabilizante ","COMPOSIÇÃO ",1002,"m³",0.48,{"$f":"H603","v":34.239200000000004},16.434816000000001]
[null,"TOTAL",{"$nulls":5},{"$f":"SUM(H77:H84)","v":72.468120199999987}]
[]
[null,"Composição 112 (und)"]
[null,"Luminária de embutir no forro, c/ lâmpada LED 10w,  formato tradicional, Forncecimento e Instalação (Laterais Plateia) (Adaptada do ORSE)"]
[null,"Descrição","Fonte","Código","Unidade","Quantidade","Valor Unit.","Valor Total"]
[null,"LAMPADA LED 10 W BIVOLT BRANCA, FORMATO TRADICIONAL (BASE E27)","SINAPI (Insumos)",38194,"und",1,39.32,{"$f":"F90*G90","v":39.32}]
[null,"Luminária de embutir no forro, em aluminio repuxado","ORSE (Insumos)",7952,"und",1,66.39,{"$f":"F91*G91","v":66.39}]
[null,"SERVENTE COM ENCARGOS COMPLEMENTARES","SINAPI",88316,"h",0.7,12,{"$f":"F92*G92","v":8.3999999999999986}]
[null,"ELETRICISTA COM ENCARGOS COMPLEMENTARES","SINAPI",88264,"h",0.7,18.559999999999999,{"$f":"F93*G93","v":12.991999999999999}]
[null,"TOTAL",{"$nulls":5},{"$f":"SUM(H90:H93)","v":127.10200000000002}]
[]
[null,"Composição 113 (und)"]
[null,"Luminária de embutir aberta c/ 2 lâmpadas tubo led T8 2 x 18/20 w Base G13 (Palco e Camarim) (Adaptada do ORSE)"]
[null,"Descrição","Fonte","Código","Unidade","Quantidade","Valor Unit.","Valor Total"]
[null,"LAMPADA LED TUBULAR T8 BIVOLT 1,2m 18/20 W, BASE G13","SINAPI (Insumos)",39387,"und",2,69.73,{"$f":"F99*G99","v":139.46}]
[null,"Luminária de embutir no forro aberta 2 x 40 w","ORSE (Insumos)",1364,"und",1,128.01,{"$f":"F100*G100","v":128.01}]
[null,"SERVENTE COM ENCARGOS COMPLEMENTARES","SINAPI",88316,"h",1,12,{"$f":"F101*G101","v":12}]
[null,"ELETRICISTA COM ENCARGOS COMPLEMENTARES","SINAPI",88264,"h",1,18.559999999999999,{"$f":"F102*G102","v":18.559999999999999}]
[null,"TOTAL",{"$nulls":5},{"$f":"SUM(H99:H102)","v":298.03000000000003}]
[]
[null,"Composição 114 (und)"]
[null,"Lâmpada LED Tubular T8 Bivolt 1,20m 18/20W, Base G13 (Plateia)"]
[null,"Descrição","Fonte","Código","Unidade","Quantidade","Valor Unit.","Valor Total"]
[null,"LAMPADA LED TUBULAR T8 BIVOLT 1,2m 18/20 W, BASE G13, 1900 lúmens","SINAPI (Insumos)",39387,"und",1,69.73,{"$f":"F108*G108","v":69.73}]
[null,"AUXILIAR DE ELETRICISTA COM ENCARGOS COMPLEMENTARES","SINAPI",88247,"h",0.1,14.85,{"$f":"F109*G109","v":1.4850000000000001}]
[null,"TOTAL",{"$nulls":5},{"$f":"SUM(H108:H109)","v":71.215000000000003}]
[]
[null,"Composição 115 (und)"]
[null,"Luminária tipo Arandela LED  6W com foco bidirecional para cima e para baixo  com  caixa em alumínio e pintura epóxidica na cor pereta - Fornecimento (luz amarela)"]
[null,"Descrição","Fonte","Código","Unidade","Quantidade","Valor Unit.","Valor Total"]
[null,"Luminária tipo Arandela LED  6W com foco bidirecional para cima e para baixo  com  caixa em alumínio e pintura epóxidica na cor pereta - Fornecimento (luz amarela)","COTAÇÃO",1,"und",1,{"$f":"'Cotação 01'!J20","v":108.13833333333334},{"$f":"F115*G115","v":108.13833333333334}]
[null,"AUXILIAR DE ELETRICISTA COM ENCARGOS COMPLEMENTARES","SINAPI",88247,"h",0.1,14.85,{"$f":"F116*G116","v":1.4850000000000001}]
[null,"TOTAL",{"$nulls":5},{"$f":"SUM(H115:H116)","v":109.62333333333333}]
[]
[null,"Composição 116 (und)"]
[null,"Disjuntor termomagnetico tripolar 63 A, padrão DIN (Europeu - linha branca), curva C (Adaptado do ORSE)"]
[null,"Descrição","Fonte","Código","Unidade","Quantidade","Valor Unit.","Valor Total"]
[null,"Disjuntor tripolar 63 A, padrão DIN ( linha branca ), curva de disparo C, corrente de interrupção 5KA.","ORSE (Insumos)",828,"und",1,61.4,{"$f":"F122*G122","v":61.4}]
[null,"SERVENTE COM ENCARGOS COMPLEMENTARES","SINAPI",88316,"h",1,12,{"$f":"F123*G123","v":12}]
[null,"ELETRICISTA COM ENCARGOS COMPLEMENTARES","SINAPI",88264,"h",1,18.559999999999999,{"$f":"F124*G124","v":18.559999999999999}]
[null,"TOTAL",{"$nulls":5},{"$f":"SUM(H122:H124)","v":91.960000000000008}]
[]
[null,"Composição 117 (und)"]
[null,"Disjuntor termomagnetico tripolar 100 A, padrão DIN (Europeu - linha branca), 10KA (Adaptado do ORSE)"]
[null,"Descrição","Fonte","Código","Unidade","Quantidade","Valor Unit.","Valor Total"]
[null,"Disjuntor tripolar 100 A, padrão DIN ( linha branca ), corrente de interrupção 10KA.","ORSE (Insumos)",8830,"und",1,284.83999999999997,{"$f":"F130*G130","v":284.83999999999997}]
[null,"SERVENTE COM ENCARGOS COMPLEMENTARES","SINAPI",88316,"h",2,12,{"$f":"F131*G131","v":24}]
[null,"ELETRICISTA COM ENCARGOS COMPLEMENTARES","SINAPI",88264,"h",2,18.559999999999999,{"$f":"F132*G132","v":37.119999999999997}]
[null,"TOTAL",{"$nulls":5},{"$f":"SUM(H130:H132)","v":345.96}]
[]
[null,"Composição 118 (und)"]
[null,"Dispositivo de proteção contra surto de tensão DPS 60kA - 275v (Adaptado do ORSE)"]
[null,"Descrição","Fonte","Código","Unidade","Quantidade","Valor Unit.","Valor Total"]
[null," Dispositivo de proteção contra surto de tensão DPS 60KA - 275v (para-raio)","ORSE (insumos)",9225,"und",1,244.32,{"$f":"F138*G138","v":244.32}]
[null,"ELETRICISTA COM ENCARGOS COMPLEMENTARES","SINAPI",88264,"h",0.3,18.559999999999999,{"$f":"F139*G139","v":5.5679999999999996}]
[null,"SERVENTE COM ENCARGOS COMPLEMENTARES","SINAPI",88316,"h",0.3,12,{"$f":"F140*G140","v":3.5999999999999996}]
[null,"TOTAL",{"$nulls":5},{"$f":"SUM(H138:H140)","v":253.488}]
[]
[null,"Composição 119 (m²)"]
[null,"Telhamento com telha de alumínio, ondulada, dupla, termoacustica, esp= 0,7 mm, com enchimento em poliuretano/lã de vidro, esp = 50 mm, inclusive elementos de fixação, pré-pintadas  com pintura eletrostática a pó na cor branco, incluindo acabamento tapa onda  (fornecimento e montagem)"]
[null,"Descrição","Fonte","Código","Unidade","Quantidade","Valor Unit.","Valor Total"]
[null,"Telhamento com telha de alumínio, ondulada, dupla, termoacustica, esp= 0,7 mm, com enchimento em poliuretano/lã de vidro, esp = 50 mm, inclusive elementos de fixação, pré-pintadas  com pintura eletrostática a pó na cor branco, incluindo acabamento tapa onda  (fornecimento e montagem)","ORSE (insumos)",12894,"m²",1.06,123.6,{"$f":"F146*G146","v":131.01599999999999}]
[null,"Massa 3M p/calafetação","ORSE (insumos)",7696,"kg",4.0000000000000001E-3,101.09,{"$f":"F147*G147","v":0.40436}]
[null,"Parafuso com rosca soberba galvanizado 110x8mm","ORSE (insumos)",7884,"und",0.82,1.05,{"$f":"F148*G148","v":0.86099999999999999}]
[null,"MONTADOR DE ESTRUTURA METÁLICA COM ENCARGOS COMPLEMENTARES","SINAPI",88278,"h",0.22,9.8699999999999992,{"$f":"F149*G149","v":2.1713999999999998}]
[null,"SERVENTE COM ENCARGOS COMPLEMENTARES","SINAPI",88316,"h",0.22,12,{"$f":"F150*G150","v":2.64}]
[null,"TOTAL",{"$nulls":5},{"$f":"SUM(H146:H150)","v":137.09275999999997}]
[]
[null,"Composição 120 (m³)"]
[null,"Remoção de esquadria de madeira, com ou sem batente (Adaptado do ORSE)"]
[null,"Descrição","Fonte","Código","Unidade","Quantidade","Valor Unit.","Valor Total"]
[null,"CARPINTEIRO DE FORMAS COM ENCARGOS COMPLEMENTARES","SINAPI",88262,"h",0.08,15.23,{"$f":"F156*G156","v":1.2184000000000001}]
[null,"SERVENTE COM ENCARGOS COMPLEMENTARES","SINAPI",88316,"h",0.8,12,{"$f":"F157*G157","v":9.6000000000000014}]
[null,"TOTAL",{"$nulls":5},{"$f":"SUM(H156:H157)","v":10.818400000000002}]
[]
[null,"Composição 121 (m²)"]
[null,"Bancada em granito branco fortaleza, e = 2cm"]
[null,"Descrição","Fonte","Código","Unidade","Quantidade","Valor Unit.","Valor Total"]
[null," Cantoneira alumínio anodizado natural, 1\" x 1/8\" - vara com 6m","ORSE (insumos)",3116,"m",0.6,7.08,{"$f":"F163*G163","v":4.2480000000000002}]
[null,"Tampo para bancada em granito branco fortaleza, e=2cm","ORSE (insumos)",12602,"m²",1,267.75,{"$f":"F164*G164","v":267.75}]
[null,"PEDREIRO COM ENCARGOS COMPLEMENTARES","SINAPI",88309,"h",1,15.32,{"$f":"F165*G165","v":15.32}]
[null,"SERVENTE COM ENCARGOS COMPLEMENTARES","SINAPI",88316,"h",1,12,{"$f":"F166*G166","v":12}]
[null,"TOTAL",{"$nulls":5},{"$f":"SUM(H163:H166)","v":299.31799999999998}]
[]
[null,"Composição 122 (m²)"]
[null," Laje pré-fabricada treliçada para piso ou cobertura, intereixo 38cm, h=12cm, el. enchimento em EPS h=8cm, inclusive escoramento em madeira e capeamento 4cm. (Adaptado do ORSE)"]
[null,"Descrição","Fonte","Código","Unidade","Quantidade","Valor Unit.","Valor Total"]
[null,"Laje pré-fabricada treliçada para piso ou cobertura, h=12cm, el. enchimento em bloco EPS, h=8cm","ORSE (Insumos)",1286,"m²",1,27,{"$f":"F172*G172","v":27}]
[null,"Madeira mista serrada (barrote) 6 x 6cm - 0,0036 m3/m (angelim, louro)","ORSE (Insumos)",1569,"m",1.71,5.52,{"$f":"F173*G173","v":9.4391999999999996}]
[null,"Madeira mista serrada (sarrafo) 2,2 x 5,5cm - 0,00121 m³/m","ORSE (Insumos)",6995,"m",0.97,2.21,2.1436999999999999]
[null,"AREIA GROSSA - POSTO JAZIDA/FORNECEDOR (RETIRADO NA JAZIDA, SEM TRANSPORTE)","SINAPI (Insumos)",367,"m³",4.9000000000000002E-2,60,2.94]
[null,"CIMENTO PORTLAND COMPOSTO CP II-32","SINAPI (Insumos)",1379,"kg",15,0.43,6.45]
[null,"PEDRA BRITADA N. 2 (19 A 38 MM) POSTO PEDREIRA/FORNECEDOR, SEM FRETE","SINAPI (Insumos)",4718,"m³",3.3000000000000002E-2,62.48,2.0618400000000001]
[null,"PEDRA BRITADA N. 1 (9,5 a 19 MM) POSTO PEDREIRA/FORNECEDOR, SEM FRETE","SINAPI (Insumos)",4721,"m³",1.0999999999999999E-2,62.48,0.68727999999999989]
[null,"PREGO DE ACO POLIDO COM CABECA 18 X 30 (2 3/4 X 10)","SINAPI (Insumos)",5075,"kg",0.03,9.86,0.29579999999999995]
[null,"TABUA MADEIRA 3A QUALIDADE 2,5 X 23,0CM (1 X 9\") NAO APARELHADA","SINAPI (Insumos)",10567,"m",0.56000000000000005,8.56,{"$f":"F180*G180","v":4.7936000000000005}]
[null,"Aço CA - 50 Ø 6,3 a 12,5mm, inclusive corte, dobragem, montagem e colocacao de ferragens nas formas, para superestruturas e fundações","ORSE",140,"kg",1.89,6.3,{"$f":"F181*G181","v":11.906999999999998}]
[null,"PEDREIRO COM ENCARGOS COMPLEMENTARES","SINAPI",88309,"h",0.44,15.32,{"$f":"F182*G182","v":6.7408000000000001}]
[null,"SERVENTE COM ENCARGOS COMPLEMENTARES","SINAPI",88316,"h",1.88,12,22.56]
[null,"TOTAL",{"$nulls":5},{"$f":"SUM(H172:H183)","v":97.01921999999999}]
[]
[null,"Composição 123 (m3)"]
[null,"Concretagem de vigas com concreto simples com preparo mecânico em betoneira de 400 L, fck=25mpa, inclui lançamento, adensamento e acabamento"]
[null,"Descrição","Fonte","Código","Unidade","Quantidade","Valor Unit.","Valor Total"]
[null,"VIBRADOR DE IMERSÃO, DIÂMETRO DE PONTEIRA 45MM, MOTOR ELÉTRICO TRIFÁSICO POTÊNCIA DE 2 CV - CHP DIURNO. AF_06/2015","SINAPI",90586,"CHP",0.61499999999999999,1.0900000000000001,{"$f":"F189*G189","v":0.67035}]
[null,"VIBRADOR DE IMERSÃO, DIÂMETRO DE PONTEIRA 45MM, MOTOR ELÉTRICO TRIFÁSICO POTÊNCIA DE 2 CV - CHI DIURNO. AF_06/2015","SINAPI",90587,"CHI",0.57499999999999996,0.27,{"$f":"F190*G190","v":0.15525}]
[null,"AREIA MEDIA - POSTO JAZIDA/FORNECEDOR (RETIRADO NA JAZIDA, SEM TRANSPORTE)","SINAPI (Insumos)",370,"M3",0.751,69.95,52.532450000000004]
[null,"CIMENTO PORTLAND COMPOSTO CP II-32","SINAPI (Insumos)",1379,"KG",362.66,0.43,155.94380000000001]
[null,"PEDRA BRITADA N. 1 (9,5 a 19 MM) POSTO PEDREIRA/FORNECEDOR, SEM FRETE","SINAPI (Insumos)",4721,"M3",0.59299999999999997,62.48,37.050639999999994]
[null,"OPERADOR DE BETONEIRA ESTACIONÁRIA/MISTURADOR COM ENCARGOS COMPLEMENTARES","SINAPI",88377,"H",1.46,13.14,19.1844]
[null,"BETONEIRA CAPACIDADE NOMINAL DE 400 L, CAPACIDADE DE MISTURA 280 L, MOTOR ELÉTRICO TRIFÁSICO POTÊNCIA DE 2 CV, SEM CARREGADOR - CHP DIURNO. AF_10/2014","SINAPI",88830,"CHP",0.75,1.04,0.78]
[null,"BETONEIRA CAPACIDADE NOMINAL DE 400 L, CAPACIDADE DE MISTURA 280 L, MOTOR ELÉTRICO TRIFÁSICO POTÊNCIA DE 2 CV, SEM CARREGADOR - CHI DIURNO. AF_10/2014","SINAPI",88831,"CHI",0.71,0.22,0.15620000000000001]
[null,"CARPINTEIRO DE FORMAS COM ENCARGOS COMPLEMENTARES","SINAPI",88262,"h",1.19,15.23,18.123699999999999]
[null,"PEDREIRO COM ENCARGOS COMPLEMENTARES","SINAPI",88309,"h",3.5710000000000002,15.32,54.707720000000002]
[null,"SERVENTE COM ENCARGOS COMPLEMENTARES","SINAPI",88316,"h",{"$f":"8.407+2.31","v":10.717000000000001},12,128.60400000000001]
[null,"TOTAL",{"$nulls":5},{"$f":"SUM(H189:H199)","v":467.90850999999998}]
[]
[null,"Composição 124 (m²)"]
[null,"Revisão de esquadria de madeira (Adaptado ORSE)"]
[null,"Descrição","Fonte","Código","Unidade","Quantidade","Valor Unit.","Valor Total"]
[null,"Batente (caixão) em madeira de lei, l=14cm, completo, c/02 jogos de alizar","ORSE (Insumos)",487,"m",0.9,19.510000000000002,{"$f":"F205*G205","v":17.559000000000001}]
[null,"Dobradiça aço laminado,tipo reforçado, 3.1/2\" x 2.1/2, esp.2.4 mm (Lider ou similar)","ORSE (Insumos)",843,"und",0.54,11.67,{"$f":"F206*G206","v":6.3018000000000001}]
[null,"Fechadura Pado, linha Ecoinox, modelo Victória, maçaneta, roseta, testa e contra testa em em aço inoxável, cilindro em latão maciço, ref. 583-90 E, similar ou superior","ORSE (Insumos)",944,"und",0.18,107.51,19.351800000000001]
[null,"Faixa de madeira de lei (muiracatiara) aparelhada 10 x 2,5cm (0,0025 m³/m)","ORSE (Insumos)",1560,"m",0.18,9.73,1.7514000000000001]
[null,"Parafuso de metal 2 \" x 12 (sextavado)","ORSE (Insumos)",1690,"und",1.08,2.65,2.8620000000000001]
[null,"SERVENTE COM ENCARGOS COMPLEMENTARES","SINAPI",88316,"h",0.18,12,2.16]
[null,"CARPINTEIRO DE FORMAS COM ENCARGOS COMPLEMENTARES","SINAPI",88262,"h",0.9,15.23,13.707000000000001]
[null,"TOTAL",{"$nulls":5},{"$f":"SUM(H205:H211)","v":63.693000000000005}]
[]
[null,"Composição 125 (m²)"]
[null,"Revisão de esquadria de ferro (Adaptado ORSE)"]
[null,"Descrição","Fonte","Código","Unidade","Quantidade","Valor Unit.","Valor Total"]
[null,"Alavanca redonda 6kg 1\" x 1,5m","ORSE (Insumos)",148,"und",0.5,89.9,{"$f":"F217*G217","v":44.95}]
[null,"Chapa de aço galvanizado nº 24 - e=0,65mm - dimensões 2,00x1,00m (5,20 kg/m2)","ORSE (Insumos)",580,"m²",0.18,25.08,{"$f":"F218*G218","v":4.5143999999999993}]
[null,"Fechadura embutir com cilindro(imab - ref. luna, 1600, similar ou superior)","ORSE (Insumos)",949,"und",0.18,53.61,{"$f":"F219*G219","v":9.649799999999999}]
[null,"SERRALHEIRO COM ENCARGOS COMPLEMENTARES","SINAPI",88315,"h",0.9,14.6,{"$f":"F220*G220","v":13.14}]
[null,"SERVENTE COM ENCARGOS COMPLEMENTARES","SINAPI",88316,"h",0.18,12,{"$f":"F221*G221","v":2.16}]
[null,"TOTAL",{"$nulls":5},{"$f":"SUM(H217:H221)","v":74.414199999999994}]
[]
[null,"Composição 126 (und)"]
[null,"Porta de giro em madeira compensada 01 folha lisa  (0,80m x 2,10m) em quadro estrutural de madeira, preenchido com lâminas em chapa de compensado 4mm de espessura, revestida com laminado melamínico madeirado (8mm), tonalidade idêntica ao painel da parede adjacente, inclui alizares. (tonalidade a ser definida pelo setor de Arquitetura da SINFRA) ( P2)."]
[null,"Descrição","Fonte","Código","Unidade","Quantidade","Valor Unit.","Valor Total"]
[null,"Porta de madeira para verniz, semi-oca (leve ou média), 80x210cm, espessura de 3,5cm, incluso dobradiças fornecimento e instalação. Af_08/2015","SINAPI",91011,"und",1,300.22000000000003,{"$f":"F227*G227","v":300.22000000000003}]
[null,"ADUELA / MARCO / BATENTE PARA PORTA DE 80X210CM, PADRÃO POPULAR - FORNECIMENTO E MONTAGEM. AF_08/2015","SINAPI",91288,"und",1,122.43,{"$f":"F228*G228","v":122.43}]
[null,"Cantoneira de madeira 3,0x3,0x1,0cm","SINAPI",85015,"m",2.4,17.5,{"$f":"F229*G229","v":42}]
[null,"Fechadura de embutir com cilindro, externa, completa, acabamento padrão popular, incluso execução de furo - fornecimento e instalação.","SINAPI",91304,"und",1,58.13,{"$f":"F230*G230","v":58.13}]
[null,"COLA A BASE DE RESINA SINTETICA PARA CHAPA DE LAMINADO MELAMINICO","SINAPI (Insumos)",1339,"kg",0.6,21.09,12.654]
[null,"CHAPA DE LAMINADO MELAMINICO, TEXTURIZADO, DE *1,25 X 3,08* M, E = 0,8 MM","SINAPI (Insumos)",1341,"m²",3.5070000000000001,23.42,82.13394000000001]
[null,"ALIZAR / GUARNIÇÃO DE 5X1,5CM PARA PORTA DE 80X210CM FIXADO COM PREGOS, PADRÃO MÉDIO - FORNECIMENTO E INSTALAÇÃO. AF_08/2015","SINAPI",90828,"und",2,23.89,47.78]
[null,"CARPINTEIRO DE FORMAS COM ENCARGOS COMPLEMENTARES","SINAPI",88262,"h",2.2040000000000002,15.23,33.566920000000003]
[null,"SERVENTE COM ENCARGOS COMPLEMENTARES","SINAPI",88316,"h",2.9769999999999999,12,35.723999999999997]
[null,"TOTAL",{"$nulls":5},{"$f":"SUM(H227:H235)","v":734.63886000000014}]
[]
[null,"Composição 127 (und)"]
[null,"Porta de giro em madeira compensada 01 folha lisa  (0,92m x 2,10m) em quadro estrutural de madeira, preenchido com lâminas em chapa de compensado 4mm de espessura, revestida com laminado melamínico na cor branco, com bandeira fixa com vidro e madeira, inclui alizarees . (tonalidade a ser definida pelo setor de Arquitetura da SINFRA) ( P3)."]
[null,"Descrição","Fonte","Código","Unidade","Quantidade","Valor Unit.","Valor Total"]
[null,"PORTA DE MADEIRA PARA VERNIZ, SEMI-OCA (LEVE OU MÉDIA), 90X210CM, ESPESSURA DE 3,5CM, INCLUSO DOBRADIÇAS - FORNECIMENTO E INSTALAÇÃO. AF_08/2015","SINAPI",91012,"und",1,285.02,{"$f":"F241*G241","v":285.02}]
[null,"ADUELA / MARCO / BATENTE PARA PORTA DE 90X210CM, PADRÃO POPULAR - FORNECIMENTO E MONTAGEM. AF_08/2015","SINAPI",91290,"und",1,127.78,{"$f":"F242*G242","v":127.78}]
[null,"Cantoneira de madeira 3,0x3,0x1,0cm","SINAPI",85015,"m",2.4,17.5,42]
[null,"Vidro liso comum transparente, espessura 4mm","SINAPI",72117,"m²",0.45100000000000001,107.01,48.261510000000001]
[null,"Bandeira fixa em madeira para vidro","COMPOSIÇÃO",1003,"m²",0.45100000000000001,{"$f":"H612","v":300.04212000000001},135.31899612000001]
[null,"Fechadura de embutir com cilindro, externa, completa, acabamento padrão popular, incluso execução de furo - fornecimento e instalação.","SINAPI",91304,"und",1,58.13,58.13]
[null,"COLA A BASE DE RESINA SINTETICA PARA CHAPA DE LAMINADO MELAMINICO","SINAPI (Insumos)",1339,"kg",0.6,21.09,12.654]
[null,"CHAPA DE LAMINADO MELAMINICO, TEXTURIZADO, DE *1,25 X 3,08* M, E = 0,8 MM","SINAPI (Insumos)",1341,"m²",4.0110000000000001,23.42,93.93762000000001]
[null,"CARPINTEIRO DE FORMAS COM ENCARGOS COMPLEMENTARES","SINAPI",88262,"h",2.2040000000000002,15.23,33.566920000000003]
[null,"SERVENTE COM ENCARGOS COMPLEMENTARES","SINAPI",88316,"h",2.9769999999999999,12,35.723999999999997]
[null,"TOTAL",{"$nulls":5},{"$f":"SUM(H241:H250)","v":872.39304612000001}]
[]
[null,"Composição 128 (und)"]
[null,"Porta de giro em madeira compensada 01 folha lisa  (0,90m x 2,10m) em quadro estrutural de madeira, preenchido com lâminas em chapa de compensado 4mm de espessura, revestida com laminado melamínico madeirado (8mm), tonalidade idêntica ao painel da parede adjacente, com bandeira fixa com vidro e madeira, inclui alizarees . (tonalidade a ser definida pelo setor de Arquitetura da SINFRA) ( P4)."]
[null,"Descrição","Fonte","Código","Unidade","Quantidade","Valor Unit.","Valor Total"]
[null,"PORTA DE MADEIRA PARA VERNIZ, SEMI-OCA (LEVE OU MÉDIA), 90X210CM, ESPESSURA DE 3,5CM, INCLUSO DOBRADIÇAS - FORNECIMENTO E INSTALAÇÃO. AF_08/2015","SINAPI",91012,"und",1,285.02,{"$f":"F256*G256","v":285.02}]
[null,"ADUELA / MARCO / BATENTE PARA PORTA DE 90X210CM, PADRÃO POPULAR - FORNECIMENTO E MONTAGEM. AF_08/2015","SINAPI",91290,"und",1,127.78,{"$f":"F257*G257","v":127.78}]
[null,"Cantoneira de madeira 3,0x3,0x1,0cm","SINAPI",85015,"m",2.4,17.5,42]
[null,"Vidro liso comum transparente, espessura 4mm","SINAPI",72117,"m²",0.442,107.01,47.29842]
[null,"Bandeira fixa em madeira para vidro","COMPOSIÇÃO",1003,"m²",0.442,{"$f":"H612","v":300.04212000000001},132.61861704]
[null,"Fechadura de embutir com cilindro, externa, completa, acabamento padrão popular, incluso execução de furo - fornecimento e instalação.","SINAPI",91304,"und",1,58.13,58.13]
[null,"COLA A BASE DE RESINA SINTETICA PARA CHAPA DE LAMINADO MELAMINICO","SINAPI (Insumos)",1339,"kg",0.6,21.09,12.654]
[null,"CHAPA DE LAMINADO MELAMINICO, TEXTURIZADO, DE *1,25 X 3,08* M, E = 0,8 MM","SINAPI (Insumos)",1341,"m²",3.927,23.42,91.970340000000007]
[null,"CARPINTEIRO DE FORMAS COM ENCARGOS COMPLEMENTARES","SINAPI",88262,"h",2.2040000000000002,15.23,33.566920000000003]
[null,"SERVENTE COM ENCARGOS COMPLEMENTARES","SINAPI",88316,"h",2.9769999999999999,12,35.723999999999997]
[null,"TOTAL",{"$nulls":5},{"$f":"SUM(H256:H265)","v":866.76229703999991}]
[]
[null,"Composição 129 (und)"]
[null,"PORTA DE VIDRO TEMPERADO, DE GIRO, COM 02 FOLHAS DE 1,115X2,10M, ESPESSURA 10MM, INCLUSIVE ACESSORIOS ( P5)."]
[null,"Descrição","Fonte","Código","Unidade","Quantidade","Valor Unit.","Valor Total"]
[null,"JOGO DE FERRAGENS CROMADAS P/ PORTA DE VIDRO TEMPERADO, UMA FOLHA COMPOSTA: DOBRADICA SUPERIOR (101) E INFERIOR (103),TRINCO (502), FECHADURA (520),CONTRA FECHADURA (531),COM CAPUCHINHO","SINAPI (Insumos)",3104,"cj",2,312.75,{"$f":"F271*G271","v":625.5}]
[null,"VIDRO TEMPERADO INCOLOR E = 10 MM, SEM COLOCACAO","SINAPI (Insumos)",10507,"m²",4.6829999999999998,208.02,974.15765999999996]
[null,"MOLA HIDRAULICA DE PISO P/ VIDRO TEMPERADO 10MM","SINAPI (Insumos)",11499,"und",2,933.28,1866.56]
[null,"PUXADOR CONCHA DE EMBUTIR, EM LATAO CROMADO, PARA PORTA / JANELA DE CORRER, LISO, SEM FURO PARA CHAVE, COM FUROS PARA FIXAR PARAFUSOS, *30 X 90* MM (LARGURA X ALTURA)","SINAPI (Insumos)",11523,"und",2,12.18,24.36]
[null,"VIDRO TEMPERADO INCOLOR, ESPESSURA 10MM, FORNECIMENTO E INSTALACAO, INCLUSIVE MASSA PARA VEDACAO (bandeira de vidro)","SINAPI",72120,"m²",0.91600000000000004,229.11,209.86476000000002]
[null,"VIDRACEIRO COM ENCARGOS COMPLEMENTARES","SINAPI",88325,"h",0.6,13.66,8.1959999999999997]
[null,"TOTAL",{"$nulls":5},{"$f":"SUM(H271:H276)","v":3708.6384199999998}]
[]
[]
[]
[null,"Composição 130 (und)"]
[null,"Porta de giro em madeira compensada 01 folha lisa  (0,90m x 2,10m) em quadro estrutural de madeira, preenchido com lâminas em chapa de compensado 4mm de espessura, revestida com laminado melamínico na cor branco (8mm), com bandeira fixa com vidro e madeira, inclui alizarees . ( P8)."]
[null,"Descrição","Fonte","Código","Unidade","Quantidade","Valor Unit.","Valor Total"]
[null,"PORTA DE MADEIRA PARA VERNIZ, SEMI-OCA (LEVE OU MÉDIA), 90X210CM, ESPESSURA DE 3,5CM, INCLUSO DOBRADIÇAS - FORNECIMENTO E INSTALAÇÃO. AF_08/2015","SINAPI",91012,"und",1,285.02,{"$f":"F284*G284","v":285.02}]
[null,"ADUELA / MARCO / BATENTE PARA PORTA DE 90X210CM, PADRÃO POPULAR - FORNECIMENTO E MONTAGEM. AF_08/2015","SINAPI",91290,"und",1,127.78,{"$f":"F285*G285","v":127.78}]
[null,"Cantoneira de madeira 3,0x3,0x1,0cm","SINAPI",85015,"m",2.4,17.5,42]
[null,"Vidro liso comum transparente, espessura 4mm","SINAPI",72117,"m²",0.442,107.01,47.29842]
[null,"Bandeira fixa em madeira para vidro","COMPOSIÇÃO",1003,"m²",0.442,{"$f":"H612","v":300.04212000000001},132.61861704]
[null,"Fechadura de embutir com cilindro, externa, completa, acabamento padrão popular, incluso execução de furo - fornecimento e instalação.","SINAPI",91304,"und",1,58.13,58.13]
[null,"COLA A BASE DE RESINA SINTETICA PARA CHAPA DE LAMINADO MELAMINICO","SINAPI (Insumos)",1339,"kg",0.6,21.09,12.654]
[null,"CHAPA DE LAMINADO MELAMINICO, TEXTURIZADO, DE *1,25 X 3,08* M, E = 0,8 MM","SINAPI (Insumos)",1341,"m²",3.927,23.42,91.970340000000007]
[null,"CARPINTEIRO DE FORMAS COM ENCARGOS COMPLEMENTARES","SINAPI",88262,"h",2.2040000000000002,15.23,33.566920000000003]
[null,"SERVENTE COM ENCARGOS COMPLEMENTARES","SINAPI",88316,"h",2.9769999999999999,12,35.723999999999997]
[null,"TOTAL",{"$nulls":5},{"$f":"SUM(H284:H293)","v":866.76229703999991}]
[]
[null,"Composição 131 (m²)"]
[null,"Bancada de madeira MDF revestida em laminado melamínico (Adaptado do ORSE)"]
[null,"Descrição","Fonte","Código","Unidade","Quantidade","Valor Unit.","Valor Total"]
[null,"CHAPA DE MDF CRU, E = 18 MM, DE *2,75 X 1,85* M","SINAPI (Insumos)",34673,"m²",1.05,20.38,{"$f":"F299*G299","v":21.399000000000001}]
[null,"COLA A BASE DE RESINA SINTETICA PARA CHAPA DE LAMINADO MELAMINICO","SINAPI (Insumos)",1339,"kg",0.3,21.09,6.327]
[null,"CHAPA DE LAMINADO MELAMINICO, TEXTURIZADO, DE *1,25 X 3,08* M, E = 0,8 MM","SINAPI (Insumos)",1341,"m²",2.08,23.42,48.713600000000007]
[null,"Argamassa cimento e areia traço t-1 (1:3) - 1 saco cimento 50kg / 3 padiolas areia dim. 0.35 x 0.45 x 0.23 m - Confecção mecânica e transporte","ORSE (Insumos)",1903,"m³",1.4E-2,329.84,4.6177599999999996]
[null,"CARPINTEIRO DE FORMAS COM ENCARGOS COMPLEMENTARES","SINAPI",88262,"h",2,15.23,30.46]
[null,"SERVENTE COM ENCARGOS COMPLEMENTARES","SINAPI",88316,"h",1.2,12,14.399999999999999]
[null,"TOTAL",{"$nulls":5},{"$f":"SUM(H299:H304)","v":125.91736000000003}]
[]
[null,"Composição 132 (m²)"]
[null,"Letra em alumínio com pintura eletrostática a pó na cor preta 20 x 20cm - instalado (Adaptado do ORSE)"]
[null,"Descrição","Fonte","Código","Unidade","Quantidade","Valor Unit.","Valor Total"]
[null,"Letras em alumínio - 20x20 cm","ORSE (Insumos)",7079,"und",1,60,{"$f":"F310*G310","v":60}]
[null,"PEDREIRO COM ENCARGOS COMPLEMENTARES","SINAPI",88309,"h",0.25,15.32,{"$f":"F311*G311","v":3.83}]
[null,"TOTAL",{"$nulls":5},{"$f":"SUM(H310:H311)","v":63.83}]
[]
[null,"Composição 133 (m²)"]
[null,"ESPELHO CRISTAL ESPESSURA 4MM, COM MOLDURA EM ALUMINIO E CHAPA DE EPS 10MM"]
[null,"Descrição","Fonte","Código","Unidade","Quantidade","Valor Unit.","Valor Total"]
[null,"CANTONEIRA ALUMINIO ABAS DESIGUAIS 1\" X 3/4 \", E = 1/8 \"","SINAPI (Insumos)",587,"kg",1.54,27.15,{"$f":"F317*G317","v":41.811}]
[null,"POLIESTIRENO EXPANDIDO/EPS (ISOPOR), TIPO 2F, PLACA, ISOLAMENTO TERMOACUSTICO,E = 10 MM, 1000 X 500 MM","SINAPI (Insumos)",11615,"m²",1.05,3.01,3.1604999999999999]
[null,"ADITIVO ADESIVO LIQUIDO PARA ARGAMASSAS DE REVESTIMENTOS CIMENTICIOS","SINAPI (Insumos)",7334,"L",0.18,11.3,2.0340000000000003]
[null,"ESPELHO CRISTAL E = 4 MM","SINAPI (Insumos)",11186,"m²",1,248.44,248.44]
[null,"PARAFUSO FRANCES M16 EM ACO GALVANIZADO, COMPRIMENTO = 45 MM, DIAMETRO = 16 MM, CABECA ABAULADA","SINAPI (Insumos)",442,"und",4,2.4700000000000002,9.8800000000000008]
[null,"AJUDANTE DE CARPINTEIRO COM ENCARGOS COMPLEMENTARES","SINAPI",88239,"h",1.8,12.38,22.284000000000002]
[null,"VIDRACEIRO COM ENCARGOS COMPLEMENTARES","SINAPI",88325,"h",1.8,13.66,24.588000000000001]
[null,"TOTAL",{"$nulls":5},{"$f":"SUM(H317:H323)","v":352.19749999999999}]
[]
[null,"Composição 134 (m²)"]
[null,"ESPELHO CRISTAL ESPESSURA 4MM, COM MOLDURA EM MDF E CHAPA DE EPS 10MM"]
[null,"Descrição","Fonte","Código","Unidade","Quantidade","Valor Unit.","Valor Total"]
[null,"Moldura de madeira 10 x 1.5 cm","Orse (Insumos)",1623,"m",3,14.99,{"$f":"F329*G329","v":44.97}]
[null,"POLIESTIRENO EXPANDIDO/EPS (ISOPOR), TIPO 2F, PLACA, ISOLAMENTO TERMOACUSTICO,E = 10 MM, 1000 X 500 MM","SINAPI (Insumos)",11615,"m²",1.05,3.01,3.1604999999999999]
[null,"ADITIVO ADESIVO LIQUIDO PARA ARGAMASSAS DE REVESTIMENTOS CIMENTICIOS","SINAPI (Insumos)",7334,"L",0.18,11.3,2.0340000000000003]
[null,"ESPELHO CRISTAL E = 4 MM","SINAPI (Insumos)",11186,"m²",1,248.44,248.44]
[null,"PARAFUSO FRANCES M16 EM ACO GALVANIZADO, COMPRIMENTO = 45 MM, DIAMETRO = 16 MM, CABECA ABAULADA","SINAPI (Insumos)",442,"und",4,2.4700000000000002,9.8800000000000008]
[null,"AJUDANTE DE CARPINTEIRO COM ENCARGOS COMPLEMENTARES","SINAPI",88239,"h",1.8,12.38,22.284000000000002]
[null,"VIDRACEIRO COM ENCARGOS COMPLEMENTARES","SINAPI",88325,"h",1.8,13.66,24.588000000000001]
[null,"TOTAL",{"$nulls":5},{"$f":"SUM(H329:H335)","v":355.35649999999998}]
[]
[null,"Composição 135 (m²)"]
[null,"Armário de madeira MDF revestida em laminado melamínico (Adaptado do ORSE)"]
[null,"Descrição","Fonte","Código","Unidade","Quantidade","Valor Unit.","Valor Total"]
[null,"CHAPA DE MDF CRU, E = 18 MM, DE *2,75 X 1,85* M","SINAPI (Insumos)",34673,"m²",1.05,20.38,{"$f":"F341*G341","v":21.399000000000001}]
[null,"COLA A BASE DE RESINA SINTETICA PARA CHAPA DE LAMINADO MELAMINICO","SINAPI (Insumos)",1339,"kg",0.3,21.09,6.327]
[null,"CHAPA DE LAMINADO MELAMINICO, TEXTURIZADO, DE *1,25 X 3,08* M, E = 0,8 MM","SINAPI (Insumos)",1341,"m²",2.08,23.42,48.713600000000007]
[null,"Argamassa cimento e areia traço t-1 (1:3) - 1 saco cimento 50kg / 3 padiolas areia dim. 0.35 x 0.45 x 0.23 m - Confecção mecânica e transporte","ORSE (Insumos)",1903,"m³",1.4E-2,329.84,4.6177599999999996]
[null,"CARPINTEIRO DE FORMAS COM ENCARGOS COMPLEMENTARES","SINAPI",88262,"h",2,15.23,30.46]
[null,"SERVENTE COM ENCARGOS COMPLEMENTARES","SINAPI",88316,"h",1.2,12,14.399999999999999]
[null,"TOTAL",{"$nulls":5},{"$f":"SUM(H341:H346)","v":125.91736000000003}]
[]
[null,"Composição 136 (m²)"]
[null," Revestimento para parede em MDF com revestimento melamínico mdeirado, tipo lambri, colado, superfície polida"]
[null,"Descrição","Fonte","Código","Unidade","Quantidade","Valor Unit.","Valor Total"]
[null,"CHAPA DE MDF CRU, E = 25 MM, DE *2,75 X 1,85* M","SINAPI (Insumos)",34675,"m²",1.05,33.03,{"$f":"F352*G352","v":34.6815}]
[null,"CHAPA DE LAMINADO MELAMINICO, TEXTURIZADO, DE *1,25 X 3,08* M, E = 0,8 MM","SINAPI (Insumos)",1341,"m²",1.05,23.42,24.591000000000001]
[null,"COLA A BASE DE RESINA SINTETICA PARA CHAPA DE LAMINADO MELAMINICO","SINAPI (Insumos)",1339,"kg",0.3,21.09,6.327]
[null,"ADESIVO ESTRUTURAL A BASE DE RESINA EPOXI, BICOMPONENTE, PASTOSO (TIXOTROPICO)","SINAPI (Insumos)",131,"kg",0.6,45.13,27.077999999999999]
[null,"CARPINTEIRO DE FORMAS COM ENCARGOS COMPLEMENTARES","SINAPI",88262,"h",0.6,15.23,9.1379999999999999]
[null,"SERVENTE COM ENCARGOS COMPLEMENTARES","SINAPI",88316,"h",0.6,12,7.1999999999999993]
[null,"TOTAL",{"$nulls":5},{"$f":"SUM(H352:H357)","v":109.01550000000002}]
[]
[null,"Composição 137 (m²)"]
[null," Forro de gesso acartonado, acabamento em pintura PVA Latex na cor branco, com isolamento em lã de vidro 25mm, placa 625 x 625mm e perfil T, instalado"]
[null,"Descrição","Fonte","Código","Unidade","Quantidade","Valor Unit.","Valor Total"]
[null," Forro de gesso acartonado, acabamento em pintura PVA Latex na cor branco, placa 625 x 625mm e perfil T, instalado","ORSE (Insumos)",11332,"m²",1,68,{"$f":"F363*G363","v":68}]
[null,"Painel lã de vidro e=25mm (isover-santa marina ref psi-30/25mm, similar ou qualidade superior) - aplicado","ORSE (Insumos)",24,"m²",1,18.87,18.87]
[null,"TOTAL",{"$nulls":5},{"$f":"SUM(H363:H364)","v":86.87}]
[]
[null,"Composição 138 (m²)"]
[null,"Piso em assoalho de madeira lei (Pau D´Arco, similar ou de qualidade superior) - Extra, réguas macho e fêmea 20cm x 3cm, elevado instalado em barrotes de madeira"]
[null,"Descrição","Fonte","Código","Unidade","Quantidade","Valor Unit.","Valor Total"]
[null,"Assoalho em régua de madeira de lei, pau d'arco ou similar, macho e fêmea 20 x 3cm - Extra","ORSE (Insumos)",8684,"m²",1.1000000000000001,280.07,{"$f":"F370*G370","v":308.077}]
[null,"Ripão massaranduba serrada 5,5cm x 3,5cm","ORSE (Insumos)",8876,"m",2.5,5.95,14.875]
[null,"PREGO DE ACO POLIDO COM CABECA 16 X 24 (2 1/4 X 12)","SINAPI (Insumos)",5067,"kg",0.2,10.51,2.1019999999999999]
[null,"CARPINTEIRO DE FORMAS COM ENCARGOS COMPLEMENTARES","SINAPI",88262,"h",1.5,15.23,22.844999999999999]
[null,"SERVENTE COM ENCARGOS COMPLEMENTARES","SINAPI",88316,"h",1.5,12,18]
[null,"TOTAL",{"$nulls":5},{"$f":"SUM(H370:H374)","v":365.899}]
[]
[null,"Composição 139 (m²)"]
[null," Imunização de madeira contra cupim, com aplicação de 01 demão de Pentox, similar ou qualidade superior"]
[null,"Descrição","Fonte","Código","Unidade","Quantidade","Valor Unit.","Valor Total"]
[null,"IMUNIZANTE PARA MADEIRA, INCOLOR","SINAPI (Insumos)",7340,"L",0.125,21.09,{"$f":"F380*G380","v":2.63625}]
[null,"PINTOR COM ENCARGOS COMPLEMENTARES","SINAPI",88310,"h",0.4,15.26,6.1040000000000001]
[null,"SERVENTE COM ENCARGOS COMPLEMENTARES","SINAPI",88316,"h",0.35,12,4.1999999999999993]
[null,"TOTAL",{"$nulls":5},{"$f":"SUM(H380:H382)","v":12.940249999999999}]
[]
[null,"Composição 140 (m²)"]
[null," Restauro - Restauração de forro de madeira compreendendo substituição de peças de apoio até 20%, raspagem, calafetagem, enceramento e parquetagem (obs: usar para substituição as peças da área de ampliação do palco )"]
[null,"Descrição","Fonte","Código","Unidade","Quantidade","Valor Unit.","Valor Total"]
[null," Cera de carnauba","ORSE (Insumos)",3183,"kg",0.01,344.5,{"$f":"F388*G388","v":3.4450000000000003}]
[null,"Pó de serra","ORSE (Insumos)",3526,"L",0.3,0.72,0.216]
[null,"ADESIVO ESTRUTURAL A BASE DE RESINA EPOXI, BICOMPONENTE, PASTOSO (TIXOTROPICO)","SINAPI (Insumos)",131,"kg",0.25,45.13,11.282500000000001]
[null,"CARPINTEIRO DE FORMAS COM ENCARGOS COMPLEMENTARES","SINAPI",88262,"h",1.3,15.23,19.798999999999999]
[null,"SERVENTE COM ENCARGOS COMPLEMENTARES","SINAPI",88316,"h",1.3,12,15.600000000000001]
[null,"TOTAL",{"$nulls":5},{"$f":"SUM(H388:H392)","v":50.342500000000001}]
[]
[null,"Composição 141 (m²)"]
[null," Emassamento de superfície, com aplicação de 02 demãos de massa corrida, lixamento e retoques (teto)"]
[null,"Descrição","Fonte","Código","Unidade","Quantidade","Valor Unit.","Valor Total"]
[null,"Massa corrida a base pva (coralar, similar ou de qualidade superior)","ORSE (Insumos)",1605,"L",0.7,2.33,{"$f":"F398*G398","v":1.631}]
[null,"LIXA EM FOLHA PARA PAREDE OU MADEIRA, NUMERO 120 (COR VERMELHA)","SINAPI (Insumos)",3767,"und",0.4,0.37,0.14799999999999999]
[null,"PINTOR COM ENCARGOS COMPLEMENTARES","SINAPI",88310,"h",0.3,15.26,4.5779999999999994]
[null,"SERVENTE COM ENCARGOS COMPLEMENTARES","SINAPI",88316,"h",0.2,12,2.4000000000000004]
[null,"TOTAL",{"$nulls":5},{"$f":"SUM(H398:H401)","v":8.7569999999999997}]
[]
[null,"Composição 142 (m²)"]
[null,"Emassamento de superfície, com aplicação de 02 demãos de massa acrílica, lixamento e retoques (parede)"]
[null,"Descrição","Fonte","Código","Unidade","Quantidade","Valor Unit.","Valor Total"]
[null," Massa acrílica","ORSE (Insumos)",1602,"L",0.7,3.63,{"$f":"F407*G407","v":2.5409999999999999}]
[null,"LIXA EM FOLHA PARA PAREDE OU MADEIRA, NUMERO 120 (COR VERMELHA)","SINAPI (Insumos)",3767,"und",0.5,0.37,0.185]
[null,"PINTOR COM ENCARGOS COMPLEMENTARES","SINAPI",88310,"h",0.35,15.26,5.3409999999999993]
[null,"SERVENTE COM ENCARGOS COMPLEMENTARES","SINAPI",88316,"h",0.25,12,3]
[null,"TOTAL",{"$nulls":5},{"$f":"SUM(H407:H410)","v":11.067}]
[]
[null,"Composição 143 (m)"]
[null,"Tubo de aço inox 1 1/2\" esp.1,50mm (Adaptado ORSE)"]
[null,"Descrição","Fonte","Código","Unidade","Quantidade","Valor Unit.","Valor Total"]
[null,"Tubo de aço inox 1 1/2\" esp.1,50mm","ORSE (Insumos)",4430,"m",1.05,49.03,{"$f":"F416*G416","v":51.481500000000004}]
[null,"PEDREIRO COM ENCARGOS COMPLEMENTARES","SINAPI",88309,"h",0.3,15.32,4.5960000000000001]
[null,"TOTAL",{"$nulls":5},{"$f":"SUM(H416:H417)","v":56.077500000000001}]
[]
[null,"Composição 144 (und)"]
[null,"EXTINTOR DE PQS 12KG, CLASSE BC, COM PLACA DE SINALIZAÇÃO 20x20 PVC FOTOLUMINESCENTE - FORNECIMENTO E INSTALACAO"]
[null,"Descrição","Fonte","Código","Unidade","Quantidade","Valor Unit.","Valor Total"]
[null,"BUCHA DE NYLON, DIAMETRO DO FURO 8 MM, COMPRIMENTO 40 MM, COM PARAFUSO DE ROSCA SOBERBA, CABECA CHATA, FENDA SIMPLES, 4,8 X 50 MM","SINAPI (Insumos)",4350,"UN",1,0.28000000000000003,{"$f":"F423*G423","v":0.28000000000000003}]
[null,"EXTINTOR DE INCENDIO PORTATIL COM CARGA DE PO QUIMICO SECO (PQS) DE 12 KG,CLASSE BC","SINAPI (Insumos)",10890,"UN",1,221.53,221.53]
[null," Placa de indicativa de \"EXTINTOR\" em pvc, dim.: 20 x 20 cm","ORSE (Insumos)",11927,"und",1,11.54,11.54]
[null,"PEDREIRO COM ENCARGOS COMPLEMENTARES","SINAPI",88309,"H",0.5,15.32,7.66]
[null,"SERVENTE COM ENCARGOS COMPLEMENTARES","SINAPI","88316","H",0.5,12,6]
[null,"TOTAL",{"$nulls":5},{"$f":"SUM(H423:H427)","v":247.01}]
[]
[null,"Composição 145 (und)"]
[null,"EXTINTOR INCENDIO AGUA-PRESSURIZADA 10L INCL SUPORTE PAREDE, SINALIZAÇÃO, FORNECIMENTO E COLOCACÃO"]
[null,"Descrição","Fonte","Código","Unidade","Quantidade","Valor Unit.","Valor Total"]
[null,"BUCHA DE NYLON, DIAMETRO DO FURO 8 MM, COMPRIMENTO 40 MM, COM PARAFUSO DE ROSCA SOBERBA, CABECA CHATA, FENDA SIMPLES, 4,8 X 50 MM","SINAPI (Insumos)",4350,"UN",1,0.28000000000000003,{"$f":"F433*G433","v":0.28000000000000003}]
[null,"EXTINTOR DE INCENDIO PORTATIL COM CARGA DE AGUA PRESSURIZADA DE 10 L, CLASSE A","SINAPI (Insumos)",10890,"UN",1,140,140]
[null," Placa de indicativa de \"EXTINTOR\" em pvc, dim.: 20 x 20 cm","SINAPI (Insumos)",10886,"und",1,11.54,11.54]
[null,"PEDREIRO COM ENCARGOS COMPLEMENTARES","SINAPI",88309,"H",0.5,15.32,7.66]
[null,"SERVENTE COM ENCARGOS COMPLEMENTARES","SINAPI","88316","H",0.5,12,6]
[null,"TOTAL",{"$nulls":5},{"$f":"SUM(H433:H437)","v":165.48}]
[]
[null,"Composição 146 (und)"]
[null,"Luminária de emergência 2 x 8w, G-LIGHT, similar ou  de qualidade superior"]
[null,"Descrição","Fonte","Código","Unidade","Quantidade","Valor Unit.","Valor Total"]
[null,"Luminária de emergência 2 x 8w, G-LIGHT ou similar","ORSE (insumos)",7476,"UN",1,23.9,{"$f":"F443*G443","v":23.9}]
[null,"ELETRICISTA COM ENCARGOS COMPLEMENTARES","SINAPI ",88264,"UN",0.5,18.559999999999999,9.2799999999999994]
[null,"TOTAL",{"$nulls":5},{"$f":"SUM(H443:H444)","v":33.18}]
[]
[null,"Composição 147 (m²)"]
[null,"Porta corta fogo, de abrir, em chapa de aço galvanizado nº24, batente em chapa nº18, classe 90, isolante em manta cerâmica incombustível e=5cm, dobradiças tipo helicoidal em aço 1010/1020, e fechadura reversível sem chave"]
[null,"Descrição","Fonte","Código","Unidade","Quantidade","Valor Unit.","Valor Total"]
[null,"Porta corta fogo, duas folhas, abrir, classe P90, da DKS ou similar - inclusive batente","ORSE (insumos)",12929,"m2",1,484.24,{"$f":"F450*G450","v":484.24}]
[null,"AREIA MEDIA - POSTO JAZIDA/FORNECEDOR (RETIRADO NA JAZIDA, SEM TRANSPORTE)","SINAPI (insumos)",370,"m3",1,69.95,69.95]
[null,"CIMENTO PORTLAND COMPOSTO CP II-32","SINAPI (insumos)",1379,"Kg",4.5999999999999996,0.44,2.024]
[null,"PEDRA BRITADA N. 1 (9,5 a 19 MM) POSTO PEDREIRA/FORNECEDOR, SEM FRETE","SINAPI (insumos)",4721,"m3",0.01,62,0.62]
[null,"PEDREIRO COM ENCARGOS COMPLEMENTARES","SINAPI",88309,"H",2.38,15.32,36.461599999999997]
[null,"SERVENTE COM ENCARGOS COMPLEMENTARES","SINAPI",88316,"H",1.9,12,22.799999999999997]
[null,"TOTAL",{"$nulls":5},{"$f":"SUM(H450:H455)","v":616.09559999999999}]
[]
[null,"Composição 148 (und)"]
[null,"Barra antipânico simples sem chave para uma porta ref. MH2585, similar ou de qualidade superior"]
[null,"Descrição","Fonte","Código","Unidade","Quantidade","Valor Unit.","Valor Total"]
[null,"Barra antipânico simples sem chave para uma porta ref. MH2585 ou similar","ORSE (insumos)",9320,"Und",1,697.8,{"$f":"F461*G461","v":697.8}]
[null,"CARPINTEIRO DE FORMAS COM ENCARGOS COMPLEMENTARES","SINAPI",88262,"H",0.3,15.23,{"$f":"F462*G462","v":4.569}]
[null,"TOTAL",{"$nulls":5},{"$f":"SUM(H457:H462)","v":702.36899999999991}]
[]
[null,"Composição 149 (und)"]
[null,"Detector de fumaça óptico convencional, modelo VR-F, marca VERIN, similar ou de qualidade superior"]
[null,"Descrição","Fonte","Código","Unidade","Quantidade","Valor Unit.","Valor Total"]
[null,"Detector de fumaça óptico convencional, modelo VR-F, marca VERIN ou similar","ORSE (insumos)",12929,"Und",1,70.2,{"$f":"F468*G468","v":70.2}]
[null,"ELETRICISTA COM ENCARGOS COMPLEMENTARES","SINAPI ",88264,"UN",0.5,18.559999999999999,9.2799999999999994]
[null,"SERVENTE COM ENCARGOS COMPLEMENTARES","SINAPI",88316,"H",0.5,12,6]
[null,"TOTAL",{"$nulls":5},{"$f":"SUM(H468:H470)","v":85.48}]
[]
[null,"Composição 150 (und)"]
[null,"Central de alarme e detecção de incendio, capacidade: 8 laços, com 2 linhas, mod.VR-8L, Verin, similar ou de qualidade superior"]
[null,"Descrição","Fonte","Código","Unidade","Quantidade","Valor Unit.","Valor Total"]
[null,"Central de alarme e detecção de incendio, capacidade: 2 baterias, 8 laços, com 2 linhas, mod.VR-8L, Verin ou similar","ORSE (insumos)",7627,"Und",1,320.29000000000002,{"$f":"F476*G476","v":320.29000000000002}]
[null,"Bateria de 12v x 7a para centrais de alarme","ORSE (insumos)",276,"Und",2,160,320]
[null,"ELETRICISTA COM ENCARGOS COMPLEMENTARES","SINAPI ",88264,"H",6.5,18.559999999999999,120.63999999999999]
[null,"TOTAL",{"$nulls":5},{"$f":"SUM(H476:H478)","v":760.93}]
[]
[null,"Composição 151 (und)"]
[null,"Acionador manual (botoeira) tipo quebra-vidro, p/instal. Incendio"]
[null,"Descrição","Fonte","Código","Unidade","Quantidade","Valor Unit.","Valor Total"]
[null,"acionador manual (botoeira) tipo quebra-vidro, p/incendio","ORSE (insumos)",7611,"Und",1,93.56,{"$f":"F484*G484","v":93.56}]
[null,"ELETRICISTA COM ENCARGOS COMPLEMENTARES","SINAPI ",88264,"UN",0.5,18.559999999999999,9.2799999999999994]
[null,"SERVENTE COM ENCARGOS COMPLEMENTARES","SINAPI",88316,"H",0.5,12,6]
[null,"TOTAL",{"$nulls":5},{"$f":"SUM(H484:H486)","v":108.84}]
[]
[null,"Composição 152 (und)"]
[null,"Recuperação das cadeiras de madeira, c/ aproveitamento de 75%"]
[null,"Descrição","Fonte","Código","Unidade","Quantidade","Valor Unit.","Valor Total"]
[null," Restauro - Recuperação das cadeiras de madeira, c/ aproveitamento de 75%","COMPOSIÇÃO",1004,"m²",1.1499999999999999,{"$f":"H625","v":78.107499999999987},{"$f":"F492*G492","v":89.823624999999979}]
[null,"TOTAL",{"$nulls":5},{"$f":"SUM(H492:H492)","v":89.823624999999979}]
[]
[null,"Composição 153 (m²)"]
[null,"Contrapiso em argamassa traço 1:4 (cimento e areia), preparo manual, aplicado em áreas secas sobre bloco de EPS, aderido, espessura 6cm. af_06/2014 (ELEVAÇÃO DO PISO DO CORREDOR)"]
[null,"Descrição","Fonte","Código","Unidade","Quantidade","Valor Unit.","Valor Total"]
[null,"Argamassa traço 1:4 (cimento e areia média) para contrapiso, preparo manual. af_06/2014","SINAPI",87373,"m³",6.6100000000000006E-2,430.56,{"$f":"F498*G498","v":28.460016000000003}]
[null,"Tela aço soldada nervurada CA-60, malha 15x15cm, ferro 4.2mm, painel 2x3m, (1,50kg/m²), Malha Pop Reforçada Gerdau ou similar","ORSE (Insumos)",10428,"kg",1.05,1.1200000000000001,{"$f":"F499*G499","v":1.1760000000000002}]
[null,"Placa de Poliestireno Expandido - EPS, dim. 2,00x1,00x0,10m","ORSE (Insumos)",9798,"m²",1.05,41.74,{"$f":"F500*G500","v":43.827000000000005}]
[null,"Aditivo adesivo liquido para argamassas de revestimentos cimenticios","SINAPI (Insumos)",7334,"L",0.435,11.3,{"$f":"F501*G501","v":4.9155000000000006}]
[null,"PEDREIRO COM ENCARGOS COMPLEMENTARES","SINAPI","88309","H",0.37,15.32,{"$f":"F502*G502","v":5.6684000000000001}]
[null,"SERVENTE COM ENCARGOS COMPLEMENTARES","SINAPI","88316","H",0.185,12,{"$f":"F503*G503","v":2.2199999999999998}]
[null,"TOTAL",{"$nulls":5},{"$f":"SUM(H498:H503)","v":86.266916000000009}]
[]
[null,"Composição 154 (und)"]
[null,"Fornecimento e colocação de gancho com bucha 4,4 x 70 - 8mm (Adaptado ORSE)"]
[null,"Descrição","Fonte","Código","Unidade","Quantidade","Valor Unit.","Valor Total"]
[null,"Gancho com bucha 4,4 x 70 - 8mm","ORSE (insumos)",10392,"und",1,3.29,{"$f":"F509*G509","v":3.29}]
[null,"PEDREIRO COM ENCARGOS COMPLEMENTARES","SINAPI","88309","H",0.2,15.32,3.0640000000000001]
[null,"SERVENTE COM ENCARGOS COMPLEMENTARES","SINAPI","88316","H",0.2,12,2.4000000000000004]
[null,"TOTAL",{"$nulls":5},{"$f":"SUM(H509:H511)","v":8.7540000000000013}]
[]
[null,"Composição 155 (und)"]
[null,"PINTURA VERNIZ POLIURETANO BRILHANTE EM MADEIRA, TRES DEMAOS"]
[null,"Descrição","Fonte","Código","Unidade","Quantidade","Valor Unit.","Valor Total"]
[null,"PINTURA VERNIZ POLIURETANO BRILHANTE EM MADEIRA, TRES DEMAOS","COMPOSIÇÃO",1005,"m²",1.1499999999999999,{"$f":"H635","v":15.940300000000001},{"$f":"F517*G517","v":18.331344999999999}]
[null,"TOTAL",{"$nulls":5},{"$f":"SUM(H517:H517)","v":18.331344999999999}]
[]
[null,"Composição 156 (und)"]
[null,"Soquete ou bocal de porcelana E27 de tempo, ref.MT-2233, marca Decorlux, similar ou de qualidade superior (Adaptado ORSE)"]
[null,"Descrição","Fonte","Código","Unidade","Quantidade","Valor Unit.","Valor Total"]
[null,"Soquete ou bocal de louça (porcelana) E27 de tempo, ref.MT-2233, marca Decorlux, similar ou de qualidade superior","ORSE (insumos)",8928,"und",1,3.87,{"$f":"F523*G523","v":3.87}]
[null,"ELETRICISTA COM ENCARGOS COMPLEMENTARES","SINAPI",88264,"H",0.15,18.559999999999999,2.7839999999999998]
[null,"SERVENTE COM ENCARGOS COMPLEMENTARES","SINAPI","88316","H",0.15,12,1.7999999999999998]
[null,"TOTAL",{"$nulls":5},{"$f":"SUM(H523:H525)","v":8.4540000000000006}]
[]
[null,"Composição 157 (und)"]
[null,"LAMPADA LED TUBULAR  9/10 W BASE G13 - FORNECIMENTO E INSTALACAO"]
[null,"Descrição","Fonte","Código","Unidade","Quantidade","Valor Unit.","Valor Total"]
[null,"LAMPADA LED TUBULAR BIVOLT 9/10 W, BASE G13","SINAPI (Insumos)",39386,"und",1,46.12,{"$f":"F531*G531","v":46.12}]
[null," Abraçadeira de aço para lâmpada fluorescente","COMPOSIÇÃO",1004,"und",1,{"$f":"H643","v":4.0129999999999999},4.0129999999999999]
[null,"ELETRICISTA COM ENCARGOS COMPLEMENTARES","SINAPI",88264,"H",1.4999999999999999E-2,18.559999999999999,{"$f":"F533*G533","v":0.27839999999999998}]
[null,"Auxiliar de eletricista com encargos complementares","SINAPI",88247,"H",1.4999999999999999E-2,12,0.18]
[null,"TOTAL",{"$nulls":5},{"$f":"SUM(H531:H534)","v":50.591399999999993}]
[]
[null,"Composição 158 (und)"]
[null,"Condicionador de ar tipo split high wall, 9000 btu - FORNECIMENTO E INSTALACAO"]
[null,"Descrição","Fonte","Código","Unidade","Quantidade","Valor Unit.","Valor Total"]
[null,"AR-CONDICIONADO FRIO SPLIT HI-WALL (PAREDE) 9000 BTU/H","SINAPI (Insumos)",39846,"und",1,1273.58,{"$f":"F540*G540","v":1273.58}]
[null,"Instalação de condicionador de ar tipo split high wall, 9000 btu - contempla a mão de obra, suporte e tubulação até 3,0m","ORSE (Insumos)",4133,"und",1,450,450]
[null,"TOTAL",{"$nulls":5},{"$f":"SUM(H540:H541)","v":1723.58}]
[]
[null,"Composição 159 (und)"]
[null,"Condicionador de ar tipo split piso-teto, 30000 btu - FORNECIMENTO E INSTALACAO"]
[null,"Descrição","Fonte","Código","Unidade","Quantidade","Valor Unit.","Valor Total"]
[null,"AR-CONDICIONADO FRIO SPLIT PISO-TETO 30000 BTU/H","SINAPI (Insumos)",39840,"und",1,4699.83,{"$f":"F547*G547","v":4699.83}]
[null,"Instalação de condicionador de ar tipo split high wall,30000 btu - contempla a mão de obra, suporte e tubulação até 3,0m","ORSE (Insumos)",4141,"und",1,500,500]
[null,"TOTAL",{"$nulls":5},{"$f":"SUM(H547:H548)","v":5199.83}]
[]
[null,"Composição 160 (und)"]
[null,"Condicionador de ar tipo split piso-teto, 60000 btu - FORNECIMENTO E INSTALACAO"]
[null,"Descrição","Fonte","Código","Unidade","Quantidade","Valor Unit.","Valor Total"]
[null,"AR-CONDICIONADO FRIO SPLIT PISO-TETO 60000 BTU/H","SINAPI (Insumos)",39843,"und",1,7008.14,{"$f":"F554*G554","v":7008.14}]
[null,"Instalação de condicionador de ar tipo split piso-teto,60000 btu - contempla a mão de obra, suporte e tubulação até 3,0m","ORSE (Insumos)",4145,"und",1,750,750]
[null,"TOTAL",{"$nulls":5},{"$f":"SUM(H554:H555)","v":7758.14}]
[]
[null,"Composição 161 (m²)"]
[null,"Janela em alumínio, cor N/P/B, tipo moldura-vidro, de correr, 1F+1M, com vidro 4 mm (Adaptado ORSE)"]
[null,"Descrição","Fonte","Código","Unidade","Quantidade","Valor Unit.","Valor Total"]
[null,"Janela em alumínio, cor N/P/B, tipo moldura-vidro, de correr, 1F+1M, exclusive vidro","ORSE (Insumos)",12790,"m²",1,235,{"$f":"F561*G561","v":235}]
[null,"VIDRO LISO COMUM TRANSPARENTE, ESPESSURA 4MM","SINAPI",72117,"m²",1,107.11,107.11]
[null,"PEDREIRO COM ENCARGOS COMPLEMENTARES","SINAPI",88309,"H",1,15.32,15.32]
[null,"SERVENTE COM ENCARGOS COMPLEMENTARES","SINAPI",88316,"H",1,12,12]
[null,"TOTAL",{"$nulls":5},{"$f":"SUM(H561:H564)","v":369.43}]
[]
[null,"Composição 162 (m³)"]
[null,"Remoção de entulho da obra - carga manual e retirada"]
[null,"Descrição","Fonte","Código","Unidade","Quantidade","Valor Unit.","Valor Total"]
[null,"Retirada de entulho da obra utilizando caixa coletora capacidade 5 m3 (local: Aracaju)","ORSE",10033,"m³",1,70.650000000000006,{"$f":"F570*G570","v":70.650000000000006}]
[null,"SERVENTE COM ENCARGOS COMPLEMENTARES","SINAPI",88316,"H",1,12,12]
[null,"TOTAL",{"$nulls":5},{"$f":"SUM(H570:H571)","v":82.65}]
[]
[null,"Composição 163 (und)"]
[null,"Placa de inauguração de obra em alumínio 0,60 x 0,80 m"]
[null,"Descrição","Fonte","Código","Unidade","Quantidade","Valor Unit.","Valor Total"]
[null,"Placa de inauguração em alumínio fundido medindo 0,60 x 0,80m","ORSE (Insumos)",2614,"und",1,1200,{"$f":"F577*G577","v":1200}]
[null,"Argamassa cimento e areia traço t-1 (1:3) - 1 saco cimento 50kg / 3 padiolas areia dim. 0.35 x 0.45 x 0.23 m - Confecção mecânica e transporte","ORSE (Insumos)",1903,"und",0.04,329.84,13.1936]
[null,"PEDREIRO COM ENCARGOS COMPLEMENTARES","SINAPI",88309,"H",0.6,15.32,9.1920000000000002]
[null,"SERVENTE COM ENCARGOS COMPLEMENTARES","SINAPI",883116,"H",0.6,12,7.1999999999999993]
[null,"TOTAL",{"$nulls":5},{"$f":"SUM(H577:H580)","v":1229.5856000000001}]
[]
[]
[]
[]
[]
[]
[null,"Composição 1001 (m³)"]
[null,"Lançamento de concreto simples fabricado na obra, inclusive adensamento e acabamento em peças da superestrutura (Adaptada do ORSE)"]
[null,"Descrição","Fonte","Código","Unidade","Quantidade","Valor Unit.","Valor Total"]
[null,"ARMADOR COM ENCARGOS COMPLEMENTARES","SINAPI",88245,"h",0.18,14.56,{"$f":"F591*G591","v":2.6208}]
[null,"CARPINTEIRO DE FORMAS COM ENCARGOS COMPLEMENTARES","SINAPI",88262,"h",0.36,14.56,{"$f":"F592*G592","v":5.2416}]
[null,"PEDREIRO COM ENCARGOS COMPLEMENTARES","SINAPI",88309,"h",0.36,14.65,{"$f":"F593*G593","v":5.274}]
[null,"SERVENTE COM ENCARGOS COMPLEMENTARES","SINAPI",88316,"h",1.62,11.35,{"$f":"F594*G594","v":18.387}]
[null,"TOTAL",{"$nulls":5},{"$f":"SUM(H591:H594)","v":31.523400000000002}]
[]
[null,"Composição 1002 (m³)"]
[null,"Reboco especial de parede 2cm com argamassa traço t3 - 1:3 cimento / areia/impermeabilizante  (Adaptada do ORSE)"]
[null,"Descrição","Fonte","Código","Unidade","Quantidade","Valor Unit.","Valor Total"]
[null,"PEDREIRO COM ENCARGOS COMPLEMENTARES","SINAPI",88309,"h",0.36,15.23,{"$f":"F600*G600","v":5.4828000000000001}]
[null,"SERVENTE COM ENCARGOS COMPLEMENTARES","SINAPI",88316,"h",1.62,12,{"$f":"F601*G601","v":19.440000000000001}]
[null,"ARGAMASSA TRACO 1:3 (CIMENTO E AREIA), PREPARO MANUAL, INCLUSO ADITIVO IMPERMEABILIZANTE","SINAPI",73548,"m³",0.02,465.82,{"$f":"F602*G602","v":9.3163999999999998}]
[null,"TOTAL",{"$nulls":5},{"$f":"SUM(H600:H602)","v":34.239200000000004}]
[]
[null,"Composição 1003 (m²)"]
[null,"Bandeira fixa em madeira para vidro  (Adaptada do ORSE)"]
[null,"Descrição","Fonte","Código","Unidade","Quantidade","Valor Unit.","Valor Total"]
[null,"Folha de janela em madeira de lei, tipo moldura p/ vidro, dimensões 0,60 x 1,10m","ORSE (Insumos)",1130,"m²",1,248.83,{"$f":"F608*G608","v":248.83}]
[null,"PREGO DE ACO POLIDO COM CABECA 18 X 30 (2 3/4 X 10)","SINAPI (Insumos)",5075,"kg",2E-3,9.86,{"$f":"F609*G609","v":1.9719999999999998E-2}]
[null,"CARPINTEIRO DE FORMAS COM ENCARGOS COMPLEMENTARES","SINAPI",88262,"h",1.88,15.23,{"$f":"F610*G610","v":28.632400000000001}]
[null,"SERVENTE COM ENCARGOS COMPLEMENTARES","SINAPI",88316,"h",1.88,12,{"$f":"F611*G611","v":22.56}]
[null,"TOTAL",{"$nulls":5},{"$f":"SUM(H608:H611)","v":300.04212000000001}]
[]
[null,"Composição 1004 (m²)"]
[null," Restauro - Recuperação das cadeiras de madeira, c/ aproveitamento de 75%"]
[null,"Descrição","Fonte","Código","Unidade","Quantidade","Valor Unit.","Valor Total"]
[null,"Parafuso de metal 2 \" x 12 (sextavado)","ORSE (insumos)",12929,"und",1,2.65,{"$f":"F617*G617","v":2.65}]
[null,"Selador Permaselor, Ibratin, similar ou de qualidade superior","ORSE (insumos)",370,"kg",0.25,5.0999999999999996,1.2749999999999999]
[null," Cola à base de resina poliéster com catalisador","ORSE (insumos)",1379,"kg",0.25,25.49,6.3724999999999996]
[null,"Madeira Cedro - Prancha com 30cm x 3,5cm","ORSE (insumos)",4721,"m²",0.25,71.739999999999995,17.934999999999999]
[null," Lixa em folha para parede ou madeira, numero 120 (cor vermelha)","SINAPI (Insumos)",3767,"und",1,0.37,0.37]
[null,"CARPINTEIRO DE FORMAS COM ENCARGOS COMPLEMENTARES","SINAPI",88262,"h",3,15.23,45.69]
[null,"Auxiliar de Restaurador","ORSE (insumos)",3073,"h",0.5,5.24,2.62]
[null,"Encargos Complementares - Auxiliar de Restauração","ORSE",10588,"h",0.5,2.39,1.1950000000000001]
[null,"TOTAL",{"$nulls":5},{"$f":"SUM(H617:H624)","v":78.107499999999987}]
[]
[null,"Composição 1005 (m²)"]
[null,"PINTURA VERNIZ POLIURETANO BRILHANTE EM MADEIRA, TRES DEMAOS (SINAPI 95464)"]
[null,"Descrição","Fonte","Código","Unidade","Quantidade","Valor Unit.","Valor Total"]
[null,"LIXA EM FOLHA PARA PAREDE OU MADEIRA, NUMERO 120 (COR VERMELHA)","SINAPI (Insumos)",3767,"und",1,0.37,{"$f":"F630*G630","v":0.37}]
[null,"SOLVENTE DILUENTE A BASE DE AGUARRAS","SINAPI (Insumos)",5318,"L",0.05,12.35,{"$f":"F631*G631","v":0.61750000000000005}]
[null,"VERNIZ POLIURETANO BRILHANTE PARA MADEIRA, SEM FILTRO SOLAR, USO INTERNO E EXTERNO","SINAPI (Insumos)",40514,"L",0.27,19.440000000000001,{"$f":"F632*G632","v":5.248800000000001}]
[null,"PINTOR COM ENCARGOS COMPLEMENTARES","SINAPI",88310,"h",0.4,15.26,{"$f":"F633*G633","v":6.1040000000000001}]
[null,"SERVENTE COM ENCARGOS COMPLEMENTARES","SINAPI","88316","h",0.3,12,{"$f":"F634*G634","v":3.5999999999999996}]
[null,"TOTAL",{"$nulls":5},{"$f":"SUM(H630:H634)","v":15.940300000000001}]
[]
[null,"Composição 1006 (und)"]
[null," Abraçadeira de aço para lâmpada fluorescente"]
[null,"Descrição","Fonte","Código","Unidade","Quantidade","Valor Unit.","Valor Total"]
[null,"Rebite de alumínio ead 440 Ø 1/8\"","ORSE (Insumos)",8741,"und",0.01,0.1,{"$f":"F640*G640","v":1E-3}]
[null,"Abraçadeira de aço para lâmpada fluorescente","ORSE (Insumos)",8994,"und",1,0.3,{"$f":"F641*G641","v":0.3}]
[null,"ELETRICISTA COM ENCARGOS COMPLEMENTARES","SINAPI",88264,"H",0.2,18.559999999999999,{"$f":"F642*G642","v":3.7119999999999997}]
[null,"TOTAL",{"$nulls":5},{"$f":"SUM(H640:H642)","v":4.0129999999999999}]
[]
[]
[{"$nulls":4},"Referência: Orse - Julho /2017 e Sinapi/AL - Agosto /2017"]
[null,"________________________________"]
[null,"Carlos Wilson da Silva Diniz"]
[null,"Eng. Civil - DIP/GPOS/SINFRA/UFAL"]
[null,"Siape Nº 2222799"]
[]
[null,"Maceió, ____ de ______________ de______"]

{"sheet":"ORÇAMENTO","index":4,"n_rows":239,"n_cols":13,"rows_kept":239,"cut":false,"hidden":false,"merged":[[193,11,199,11],[151,11,152,11],[218,11,220,11],[122,11,147,11],[149,0,149,11],[153,0,153,11],[169,0,169,11],[155,11,168,11],[203,11,216,11],[171,11,178,11],[180,11,186,11],[188,11,191,11],[56,11,65,11],[71,0,71,11],[67,0,67,11],[73,11,119,11],[120,0,120,11],[49,0,49,11],[54,0,54,11],[51,11,52,11],[10,0,10,11],[32,0,32,11],[36,0,36,11],[34,11,35,11],[41,0,41,11],[43,11,47,11],[235,1,235,4],[222,0,222,6],[227,1,228,5],[222,8,222,10],[223,0,223,6],[223,8,223,10],[224,0,224,6],[224,8,224,10]]}
[]
["UNIVERSIDADE FEDERAL DE ALAGOAS - UFAL"]
["SUPERINTENDÊNCIA DE INFRAESTRUTURA - SINFRA"]
["GERENCIA DE PROJETOS,OBRAS E SERVIÇOS DE ENGENHARIA - GPOS"]
[]
["ORÇAMENTO BÁSICO ESTIMATIVO PARA OBRA DE REFORMA DO AUDITÓRIO GUEDES DE MIRANDA NO ESPAÇO CULTURAL DA UFAL."]
[]
["ITEM","DESCRIÇÃO DOS SERVIÇOS","FONTE","CÓDIGO","UND","QUANT.","Custo UNIT. de Referência","Custo TOTAL de Referência","VARIAÇÃO ENTRE O Custo UNITÁRIO DE REFERÊNCIA E O Custo UNITÁRIO DA PROPOSTA (%)","CUSTO UNITÁRIO DA PROPOSTA","CUSTO TOTAL DA PROPOSTA","CUSTO POR ITEM DA PROPOSTA"]
[1,"PROJETOS COMPLEMENTARES",{"$nulls":5},{"$f":"SUM(H10:H10)","v":360.15},null,null,null,{"$f":"SUM(K10:K10)","v":0},{"$f":"H9/$H$223","v":6.6913959266287734E-4}]
["1.1","Projeto de \"as built\"","ORSE (insumos)",7325,"m²",514.5,0.7,{"$f":"F10*G10","v":360.15},{"$f":"IF(J10=\"\",0,(J10-G10)/G10)","v":0},null,{"$f":"J10*F10","v":0},null,6.6913959266287734E-4]
[{"$nulls":12},0]
[2,"SERVIÇOS PRELIMINARES",{"$nulls":5},{"$f":"SUM(H13:H32)","v":44775.566852000011},null,null,null,{"$f":"SUM(K13:K32)","v":0},8.3190627695673258E-2]
["2.1","Mobilização/Desmobilização:",{"$nulls":10},0]
["2.1.1","EXECUÇÃO DE ESCRITÓRIO EM CANTEIRO DE OBRA EM CHAPA DE MADEIRA COMPENSADA, NÃO INCLUSO MOBILIÁRIO E EQUIPAMENTOS. AF_02/2016","SINAPI",93207,"m²",{"$f":"2.2*3.4","v":7.48},582.19000000000005,{"$f":"F14*G14","v":4354.7812000000004},{"$f":"IF(J14=\"\",0,(J14-G14)/G14)","v":0},null,{"$f":"J14*F14","v":0},null,8.0909524317755287E-3]
["2.1.2","EXECUÇÃO DE ALMOXARIFADO EM CANTEIRO DE OBRA EM CHAPA DE MADEIRA COMPENSADA, INCLUSO PRATELEIRAS. AF_02/2016","SINAPI",93208,"m²",12.4,443.11,{"$f":"F15*G15","v":5494.5640000000003},{"$f":"IF(J15=\"\",0,(J15-G15)/G15)","v":0},null,{"$f":"J15*F15","v":0},null,1.0208608404331835E-2]
["2.1.3","EXECUÇÃO DE SANITÁRIO E VESTIÁRIO EM CANTEIRO DE OBRA EM CHAPA DE MADEIRA COMPENSADA, NÃO INCLUSO MOBILIÁRIO. AF_02/2016","SINAPI",93212,"m²",14.5,547.77,{"$f":"F16*G16","v":7942.665},{"$f":"IF(J16=\"\",0,(J16-G16)/G16)","v":0},null,{"$f":"J16*F16","v":0},null,1.4757050181195872E-2]
["2.1.4","EXECUÇÃO DE REFEITÓRIO EM CANTEIRO DE OBRA EM CHAPA DE MADEIRA COMPENSADA, NÃO INCLUSO MOBILIÁRIO E EQUIPAMENTOS. AF_02/2016","SINAPI",93210,"m²",19.899999999999999,353.56,{"$f":"F17*G17","v":7035.8439999999991},{"$f":"IF(J17=\"\",0,(J17-G17)/G17)","v":0},null,{"$f":"J17*F17","v":0},null,1.3072224873523669E-2]
["2.1.5","Placa de obra em chapa zincada, instalada ","SINAPI","74209/001","m²",6,316.60000000000002,1899.6000000000001,0,null,0,null,3.5293560189432237E-3]
["2.2","Demolições/Retiradas/Remoções:",{"$nulls":10},0]
["2.2.1","DEMOLICAO DE ALVENARIA DE TIJOLOS FURADOS S/REAPROVEITAMENTO","SINAPI","73899/002","m³",2.1800000000000002,67.66,147.49880000000002,0,null,0,null,2.7404494502363799E-4]
["2.2.2","Remoção de telhamento com telhas onduladas fibrocimento ou aluminio","COMPOSIÇÃO",101,"m²",857,{"$f":"COMPOSIÇÕES!H14","v":5.9906000000000006},5133.9442000000008,0,null,0,null,9.538595948193649E-3]
["2.2.3","Remoção de painéis verticais de madeira","COMPOSIÇÃO",102,"m²",92.9,{"$f":"COMPOSIÇÕES!H20","v":3},{"$f":"F22*G22","v":278.70000000000005},0,null,null,null,5.1780981389738714E-4]
["2.2.4","Remoção de piso em assoalho de madeira","COMPOSIÇÃO",103,"m²",105,{"$f":"COMPOSIÇÕES!H26","v":3},315,0,null,0,null,5.8525328804333299E-4]
["2.2.5","Demolição de piso cerâmico","COMPOSIÇÃO",104,"m²",21.81,{"$f":"COMPOSIÇÕES!H33","v":9.4723999999999986},{"$f":"F24*G24","v":206.59304399999996},0,null,0,null,3.8383891519962204E-4]
["2.2.6","RETIRADA DE FORRO EM REGUAS DE PVC, INCLUSIVE RETIRADA DE PERFIS","SINAPI",72238,"m²",365.03,5.41,1974.8122999999998,0,null,0,null,3.6690964820425931E-3]
["2.2.7","Remoção de estrutura metálica chumbada em concreto (alambrado, guarda-corpo)","COMPOSIÇÃO",105,"m²",89.38,{"$f":"COMPOSIÇÕES!H39","v":36},3217.68,0,null,0,null,5.9782787297500686E-3]
["2.2.8","Remoção de poltronas","COMPOSIÇÃO",106,"und",337,{"$f":"COMPOSIÇÕES!H46","v":12.1707},4101.5258999999996,0,null,0,null,7.6204175205393347E-3]
["2.2.9","Remoção de cortinas","COMPOSIÇÃO",107,"und",3,{"$f":"COMPOSIÇÕES!H53","v":12},36,0,null,0,null,6.6886090062095202E-5]
["2.2.10","Remoção de pintura(raspagem e/ou lixamento e/ou escovação)","COMPOSIÇÃO",108,"m²",244.73,{"$f":"COMPOSIÇÕES!H59","v":9.6000000000000014},{"$f":"F29*G29","v":2349.4080000000004},0,null,0,null,4.3650754189057499E-3]
["2.2.11","Demolicao de alvenaria de tijolos macicos s/reaproveitamento (Faixa de calçada para alocação da tubulação de esgoto)","COMPOSIÇÃO",109,"m³",1.29,{"$f":"COMPOSIÇÕES!H66","v":54.128},{"$f":"F30*G30","v":69.825119999999998},0,null,0,null,1.2973136846990569E-4]
["2.3","Esquadrias:",{"$nulls":10},0]
["2.3.1","Remoção de esquadria de madeira, com ou sem batente","COMPOSIÇÃO",120,"m²",20.07,{"$f":"COMPOSIÇÕES!H158","v":10.818400000000002},{"$f":"F32*G32","v":217.12528800000004},0,null,0,null,4.0340726577573226E-4]
[{"$nulls":12},0]
[3,"MOVIMENTO DE TERRA",{"$nulls":5},{"$f":"SUM(H35:H36)","v":1098.72},null,null,null,{"$f":"SUM(K35:K36)","v":0},2.0413634686951457E-3]
["3.1","Escavação manual de vala ou cava em material de 1ª categoria, profundidade até 1,50m (Escavação para alocação da tubulação de esgoto na calçada)","COMPOSIÇÃO",110,"m³",15.41,{"$f":"COMPOSIÇÕES!H72","v":36},{"$f":"F35*G35","v":554.76},{"$f":"IF(J35=\"\",0,(J35-G35)/G35)","v":0},null,{"$f":"J35*F35","v":0},null,1.0307146478568869E-3]
["3.2","REATERRO DE VALA COM COMPACTAÇÃO MANUAL","SINAPI","73964/006","m³",15.11,36,{"$f":"F36*G36","v":543.96},{"$f":"IF(J36=\"\",0,(J36-G36)/G36)","v":0},null,{"$f":"J36*F36","v":0},null,1.0106488208382585E-3]
[{"$nulls":12},0]
[4,"INFRAESTRUTURA",{"$nulls":5},{"$f":"SUM(H39:H41)","v":3556.8378009999997},null,null,null,{"$f":"SUM(K39:K41)","v":0},6.6084159303875173E-3]
["4.1","Caixa de alvenaria de tijolo maciço (0,10m) dimensões interna 30x30x30cm revestida internamente com argamassa 1:3 e tampa de concreto","COMPOSIÇÃO",111,"und",5,{"$f":"COMPOSIÇÕES!H85","v":72.468120199999987},{"$f":"F39*G39","v":362.34060099999994},{"$f":"IF(J39=\"\",0,(J39-G39)/G39)","v":0},null,{"$f":"J39*F39","v":0},null,6.7320961310110268E-4]
["4.2","ALVENARIA EM TIJOLO CERAMICO MACICO 5X10X20CM 1/2 VEZ (ESPESSURA 10CM), ASSENTADO COM ARGAMASSA TRACO 1:2:8 (CIMENTO, CAL E AREIA) (Recomposição da calçada escavada)","SINAPI",72132,"m²",12.84,47.61,{"$f":"F40*G40","v":611.31240000000003},{"$f":"IF(J40=\"\",0,(J40-G40)/G40)","v":0},null,{"$f":"J40*F40","v":0},null,1.1357860067354325E-3]
["4.3","CONTRAPISO EM ARGAMASSA TRAÇO 1:4 (CIMENTO E AREIA), PREPARO MECÂNICO COM BETONEIRA 400 L, APLICADO EM ÁREAS MOLHADAS SOBRE LAJE, ADERIDO, ESPESSURA 3CM. AF_06/2014 (contrapiso da calçada ao longo do trajeto da tubulação do esgoto)","SINAPI",87745,"m²",75.180000000000007,34.36,{"$f":"F41*G41","v":2583.1848},{"$f":"IF(J41=\"\",0,(J41-G41)/G41)","v":0},null,0,null,4.7994203105509829E-3]
[{"$nulls":12},0]
[5,"SUPERESTRUTURA",{"$nulls":5},{"$f":"SUM(H44:H48)","v":272.15759170000001},null,null,null,{"$f":"SUM(K44:K48)","v":0},5.0565436637580927E-4]
["5.1","Laje pré-fabricada treliçada para piso ou cobertura, intereixo 38cm, h=12cm, el. enchimento em EPS h=8cm, inclusive escoramento em madeira e capeamento 4cm (Laje da entrada principal do auditório)","COMPOSIÇÃO",122,"m²",1.62,{"$f":"COMPOSIÇÕES!H184","v":97.01921999999999},{"$f":"F44*G44","v":157.17113639999999},{"$f":"IF(J44=\"\",0,(J44-G44)/G44)","v":0},null,{"$f":"J44*F44","v":0},null,2.9201563290034022E-4]
["5.2","Concretagem de vigas com concreto simples com preparo mecânico em betoneira de 400 L, fck=25mpa, inclui lançamento, adensamento e acabamento (cintas para apoio da laje da entrada principal do auditório)","COMPOSIÇÃO",123,"m³",0.03,{"$f":"COMPOSIÇÕES!H200","v":467.90850999999998},{"$f":"F45*G45","v":14.037255299999998},{"$f":"IF(J45=\"\",0,(J45-G45)/G45)","v":0},null,{"$f":"J45*F45","v":0},null,2.6080475617233973E-5]
["5.3","MONTAGEM E DESMONTAGEM DE FÔRMA DE VIGA, ESCORAMENTO METÁLICO, PÉ-DIREITO SIMPLES, EM CHAPA DE MADEIRA RESINADA, 2 UTILIZAÇÕES. AF_12/2015","SINAPI",92452,"m²",0.72,91.61,{"$f":"F46*G46","v":65.959199999999996},{"$f":"IF(J46=\"\",0,(J46-G46)/G46)","v":0},null,{"$f":"J46*F46","v":0},null,1.2254869421177083E-4]
["5.4","ARMAÇÃO DE PILAR OU VIGA DE UMA ESTRUTURA CONVENCIONAL DE CONCRETO ARMADO EM UM EDIFÍCIO DE MÚLTIPLOS PAVIMENTOS UTILIZANDO AÇO CA-60 DE 5,0MM - MONTAGEM. AF_12/2015","SINAPI",92759,"kg",1,9.43,{"$f":"F47*G47","v":9.43},{"$f":"IF(J47=\"\",0,(J47-G47)/G47)","v":0},null,{"$f":"J47*F47","v":0},null,1.7520439702376602E-5]
["5.5","ARMAÇÃO DE PILAR OU VIGA DE UMA ESTRUTURA CONVENCIONAL DE CONCRETO ARMADO EM UM EDIFÍCIO DE MÚLTIPLOS PAVIMENTOS UTILIZANDO AÇO CA-50 DE 8.0 MM - MONTAGEM. AF_12/2015","SINAPI",92761,"kg",3,8.52,{"$f":"F48*G48","v":25.56},{"$f":"IF(J48=\"\",0,(J48-G48)/G48)","v":0},null,{"$f":"J48*F48","v":0},null,4.748912394408759E-5]
[{"$nulls":12},0]
[{"$nulls":12},0]
[6,"ALVENARIA/VEDAÇÃO/DIVISÓRIA",{"$nulls":5},{"$f":"SUM(H52:H54)","v":4507.8837149999999},null,null,null,{"$f":"SUM(K52:K54)","v":0},8.3754087819706193E-3]
["6.1","(COMPOSIÇÃO REPRESENTATIVA) DO SERVIÇO DE ALVENARIA DE VEDAÇÃO DE BLOCOS VAZADOS DE CERÂMICA DE 9X19X19CM (ESPESSURA 9CM), PARA EDIFICAÇÃO HABITACIONAL UNIFAMILIAR (CASA) E EDIFICAÇÃO PÚBLICA PADRÃO. AF_11/2014","SINAPI",89168,"m²",{"$f":"9.19+3.05*9.4","v":37.86},51.62,{"$f":"F52*G52","v":1954.3331999999998},{"$f":"IF(J52=\"\",0,(J52-G52)/G52)","v":0},null,{"$f":"J52*F52","v":0},null,3.6310474007372972E-3]
["6.2","PAREDE COM PLACAS DE GESSO ACARTONADO (DRYWALL), PARA USO INTERNO, COM DUAS FACES DUPLAS E ESTRUTURA METÁLICA COM GUIAS DUPLAS, COM VÃOS. AF_06/2017_P","SINAPI",96369,"m²",17.28,120.85,{"$f":"F53*G53","v":2088.288},{"$f":"IF(J53=\"\",0,(J53-G53)/G53)","v":0},null,{"$f":"J53*F53","v":0},null,3.8799283123220184E-3]
["6.3","Parede de bloco de gesso (50 x 65cm) - fornecimento e execução (Fechamento das janelas da região do palco)","ORSE",10565,"m²",{"$f":"2.9*1.07+1.45*1.07+1.45*1+2.9*1","v":9.0045000000000002},51.67,{"$f":"F54*G54","v":465.26251500000001},0,null,0,null,8.6443306891130327E-4]
[{"$nulls":12},0]
[7,"ESQUADRIAS",{"$nulls":5},{"$f":"SUM(H57:H67)","v":12084.882814199998},null,null,null,{"$f":"SUM(K57:K66)","v":0},2.2453071119456876E-2]
["7.1","De madeira:",{"$nulls":10},0]
["7.1.1","Porta de giro em madeira compensada 01 folha lisa  (0,80m x 2,10m) em quadro estrutural de madeira, preenchido com lâminas em chapa de compensado 4mm de espessura, revestida com laminado melamínico madeirado (8mm), tonalidade idêntica ao painel da parede adjacente, inclui alizares. (tonalidade a ser definida pelo setor de Arquitetura da SINFRA) ( P2).","COMPOSIÇÃO",126,"und",1,{"$f":"COMPOSIÇÕES!H236","v":734.63886000000014},734.63886000000014,{"$f":"IF(J58=\"\",0,(J58-G58)/G58)","v":0},null,{"$f":"J58*F58","v":0},null,1.3649200264743042E-3]
["7.1.2","Porta de giro em madeira compensada 01 folha lisa  (0,92m x 2,10m) em quadro estrutural de madeira, preenchido com lâminas em chapa de compensado 4mm de espessura, revestida com laminado melamínico na cor branco, com bandeira fixa com vidro e madeira, inclui alizares . (tonalidade a ser definida pelo setor de Arquitetura da SINFRA) ( P3).","COMPOSIÇÃO",127,"und",1,{"$f":"COMPOSIÇÕES!H251","v":872.39304612000001},872.39304612000001,{"$f":"IF(J59=\"\",0,(J59-G59)/G59)","v":0},null,0,null,1.620859995897997E-3]
["7.1.3","Porta de giro em madeira compensada 01 folha lisa  (0,90m x 2,10m) em quadro estrutural de madeira, preenchido com lâminas em chapa de compensado 4mm de espessura, revestida com laminado melamínico madeirado (8mm), tonalidade idêntica ao painel da parede adjacente, com bandeira fixa com vidro e madeira, inclui alizares . (tonalidade a ser definida pelo setor de Arquitetura da SINFRA) ( P4).","COMPOSIÇÃO",128,"und",1,{"$f":"COMPOSIÇÕES!H266","v":866.76229703999991},866.76229703999991,{"$f":"IF(J60=\"\",0,(J60-G60)/G60)","v":0},null,0,null,1.6103983628401651E-3]
["7.1.4","Porta de giro em madeira compensada 01 folha lisa  (0,90m x 2,10m) em quadro estrutural de madeira, preenchido com lâminas em chapa de compensado 4mm de espessura, revestida com laminado melamínico na cor branco (8mm), com bandeira fixa com vidro e madeira, inclui alizarees . ( P8).","COMPOSIÇÃO",130,"und",1,{"$f":"COMPOSIÇÕES!H294","v":866.76229703999991},866.76229703999991,{"$f":"IF(J61=\"\",0,(J61-G61)/G61)","v":0},null,0,null,1.6103983628401651E-3]
["7.1.5","Revisão de esquadria de madeira (P6 P7)","COMPOSIÇÃO",124,"m²",54.57,{"$f":"COMPOSIÇÕES!H212","v":63.693000000000005},{"$f":"F62*G62","v":3475.7270100000001},null,null,0,null,6.457716383947691E-3]
["7.2","De ferro:",{"$nulls":10},0]
["7.2.1","Revisão de esquadria de ferro ","COMPOSIÇÃO",125,"m²",13.02,{"$f":"COMPOSIÇÕES!H222","v":74.414199999999994},968.87288399999989,{"$f":"IF(J64=\"\",0,(J64-G64)/G64)","v":0},null,0,null,1.800114416054053E-3]
["7.3","Vidro:",{"$nulls":6},{"$f":"IF(J65=\"\",0,(J65-G65)/G65)","v":0},null,null,null,0]
["7.3.1","PORTA DE VIDRO TEMPERADO, DE GIRO, COM 02 FOLHAS DE 1,115X2,10M, ESPESSURA 10MM, INCLUSIVE ACESSORIOS ( P5)","COMPOSIÇÃO",129,"und",1,{"$f":"COMPOSIÇÕES!H277","v":3708.6384199999998},{"$f":"F66*G66","v":3708.6384199999998},{"$f":"IF(J66=\"\",0,(J66-G66)/G66)","v":0},null,0,null,6.8904534268851786E-3]
["7.3.2","Janela em alumínio, cor N/P/B, tipo moldura-vidro, de correr, 1F+1M, com vidro 4 mm (J6 da sala de som)","COMPOSIÇÃO",161,"und",1.6,{"$f":"COMPOSIÇÕES!H565","v":369.43},{"$f":"F67*G67","v":591.08800000000008},{"$f":"IF(J67=\"\",0,(J67-G67)/G67)","v":0},null,{"$f":"J67*F67","v":0},null,1.0982101445173259E-3]
[{"$nulls":12},0]
[8,"COBERTURA",{"$nulls":5},{"$f":"SUM(H70:H71)","v":128578.28956999996},null,null,null,{"$f":"SUM(K70:K71)","v":0},0.23889164045025482]
["8.1","Telhamento com telha de alumínio, ondulada, dupla, termoacustica, esp= 0,7 mm, com enchimento em poliuretano/lã de vidro, esp = 50 mm, inclusive elementos de fixação, pré-pintadas  com pintura eletrostática a pó na cor branco, incluindo acabamento tapa onda  (fornecimento e montagem)","COMPOSIÇÃO",119,"m²",857,{"$f":"COMPOSIÇÕES!H151","v":137.09275999999997},{"$f":"F70*G70","v":117488.49531999997},{"$f":"IF(J70=\"\",0,(J70-G70)/G70)","v":0},null,{"$f":"J70*F70","v":0},null,0.21828739108982134]
["8.2"," Imunização de madeira contra cupim, com aplicação de 01 demão de Pentox, similar ou qualidade superior","COMPOSIÇÃO",139,"m²",{"$f":"F70","v":857},{"$f":"COMPOSIÇÕES!H383","v":12.940249999999999},11089.794249999999,{"$f":"IF(J71=\"\",0,(J71-G71)/G71)","v":0},null,{"$f":"J71*F71","v":0},null,2.0604249360433483E-2]
[{"$nulls":12},0]
[9,"INSTALAÇÕES ELÉTRICAS ",{"$nulls":5},{"$f":"SUM(H74:H120)","v":34955.153866666675},null,null,null,{"$f":"SUM(K74:K120)","v":0},{"$f":"H73/$H$223","v":6.4944821379451734E-2}]
["9.1","CAIXA RETANGULAR 4\" X 2\" BAIXA (0,30 M DO PISO), PVC, INSTALADA EM PAREDE - FORNECIMENTO E INSTALAÇÃO. AF_12/2015","SINAPI",91941,"und",18,6.92,{"$f":"F74*G74","v":124.56},{"$f":"IF(J74=\"\",0,(J74-G74)/G74)","v":0},null,{"$f":"J74*F74","v":0},null,2.3142587161484939E-4]
["9.2","CAIXA RETANGULAR 4\" X 2\" MÉDIA (1,30 M DO PISO), PVC, INSTALADA EM PAREDE - FORNECIMENTO E INSTALAÇÃO. AF_12/2015","SINAPI",91940,"und",6,10.32,61.92,{"$f":"IF(J75=\"\",0,(J75-G75)/G75)","v":0},null,0,null,1.1504407490680375E-4]
["9.3","CAIXA RETANGULAR 4\" X 2\" ALTA (2,00 M DO PISO), PVC, INSTALADA EM PAREDE - FORNECIMENTO E INSTALAÇÃO. AF_12/2015","SINAPI",91939,"und",10,19.41,194.1,{"$f":"IF(J76=\"\",0,(J76-G76)/G76)","v":0},null,0,null,3.6062750225146327E-4]
["9.4","TOMADA BAIXA DE EMBUTIR (1 MÓDULO), 2P+T 10 A, INCLUINDO SUPORTE E PLACA - FORNECIMENTO E INSTALAÇÃO. AF_12/2015","SINAPI",92000,"und",14,20.18,282.52,{"$f":"IF(J77=\"\",0,(J77-G77)/G77)","v":0},null,0,null,5.2490717123175373E-4]
["9.5","TOMADA BAIXA DE EMBUTIR (2 MÓDULOS), 2P+T 10 A, INCLUINDO SUPORTE E PLACA - FORNECIMENTO E INSTALAÇÃO. AF_12/2015","SINAPI",92008,"und",4,32.409999999999997,129.63999999999999,{"$f":"IF(J78=\"\",0,(J78-G78)/G78)","v":0},null,{"$f":"J78*F78","v":0},null,2.4086424210138948E-4]
["9.6","TOMADA MÉDIA DE EMBUTIR (1 MÓDULO), 2P+T 10 A, INCLUINDO SUPORTE E PLACA - FORNECIMENTO E INSTALAÇÃO. AF_12/2015","SINAPI",91996,"und",3,22.62,{"$f":"F79*G79","v":67.86},{"$f":"IF(J79=\"\",0,(J79-G79)/G79)","v":0},null,{"$f":"J79*F79","v":0},null,1.2608027976704944E-4]
["9.7","TOMADA MÉDIA DE EMBUTIR (2 MÓDULOS), 2P+T 10 A, INCLUINDO SUPORTE E PLACA - FORNECIMENTO E INSTALAÇÃO. AF_12/2015","SINAPI",92004,"und",1,37.29,37.29,{"$f":"IF(J80=\"\",0,(J80-G80)/G80)","v":0},null,{"$f":"J80*F80","v":0},null,6.9282841622653614E-5]
["9.8","TOMADA ALTA DE EMBUTIR (1 MÓDULO), 2P+T 10 A, INCLUINDO SUPORTE E PLACA - FORNECIMENTO E INSTALAÇÃO. AF_12/2015","SINAPI",91992,"und",5,28.9,144.5,{"$f":"IF(J81=\"\",0,(J81-G81)/G81)","v":0},null,null,null,2.6847333372146548E-4]
["9.9","INTERRUPTOR SIMPLES (1 MÓDULO), 10A/250V, INCLUINDO SUPORTE E PLACA -FORNECIMENTO E INSTALAÇÃO. AF_12/2015","SINAPI",91953,"und",1,19.079999999999998,19.079999999999998,{"$f":"IF(J82=\"\",0,(J82-G82)/G82)","v":0},null,null,null,3.5449627732910451E-5]
["9.10","INTERRUPTOR SIMPLES (2 MÓDULOS), 10A/250V, INCLUINDO SUPORTE E PLACA -FORNECIMENTO E INSTALAÇÃO. AF_12/2015","SINAPI",91959,"und",1,30.23,30.23,{"$f":"IF(J83=\"\",0,(J83-G83)/G83)","v":0},null,null,null,5.6165736182698273E-5]
["9.11","Luminária de embutir no forro, c/ lâmpada LED 10w,  formato tradicional, Forncecimento e Instalação (Laterais Plateia) ","COMPOSIÇÃO",112,"und",18,{"$f":"COMPOSIÇÕES!H94","v":127.10200000000002},2287.8360000000002,0,null,0,null,4.2506779095362124E-3]
["9.12","Luminária de embutir aberta c/ 2 lâmpadas tubo led T8 2 x 18/20 w Base G13 (Palco e Camarim)","COMPOSIÇÃO",113,"und",19,{"$f":"COMPOSIÇÕES!H103","v":298.03000000000003},5662.5700000000006,0,null,0,null,1.0520754638969957E-2]
["9.13","Lâmpada LED Tubular T8 Bivolt 1,20m 18/20W, Base G13 (Iluminação indireta Platéia)","COMPOSIÇÃO",114,"und",168,{"$f":"COMPOSIÇÕES!H110","v":71.215000000000003},11964.12,0,null,0,null,2.2228700217603179E-2]
["9.14","Luminária tipo Arandela LED  6W com foco bidirecional para cima e para baixo  com  caixa em alumínio e pintura epóxidica na cor pereta - Fornecimento (luz amarela)","COMPOSIÇÃO",115,"und",2,{"$f":"COMPOSIÇÕES!H117","v":109.62333333333333},219.24666666666667,0,null,0,null,4.0734867479113424E-4]
["9.15","CABO DE COBRE FLEXÍVEL ISOLADO, 1,5 MM², ANTI-CHAMA 0,6/1,0 KV, PARA CIRCUITOS TERMINAIS - FORNECIMENTO E INSTALAÇÃO. AF_12/2015 (AZUL CLARO)","SINAPI",91925,"m",65.8,2.29,{"$f":"F88*G88","v":150.68199999999999},0,null,0,null,2.7995916174268411E-4]
["9.16","CABO DE COBRE FLEXÍVEL ISOLADO, 1,5 MM², ANTI-CHAMA 0,6/1,0 KV, PARA CIRCUITOS TERMINAIS - FORNECIMENTO E INSTALAÇÃO. AF_12/2015 (BRANCO)","SINAPI",91925,"m",{"$f":"27.8+18.9","v":46.7},2.29,106.94300000000001,0,null,0,null,1.9869442026418466E-4]
["9.17","CABO DE COBRE FLEXÍVEL ISOLADO, 1,5 MM², ANTI-CHAMA 0,6/1,0 KV, PARA CIRCUITOS TERMINAIS - FORNECIMENTO E INSTALAÇÃO. AF_12/2015 (VERMELHO OU PRETO)","SINAPI",91925,"m",34.1,2.29,78.088999999999999,0,null,0,null,1.4508521907941535E-4]
["9.18","CABO DE COBRE FLEXÍVEL ISOLADO, 2,5 MM², ANTI-CHAMA 0,6/1,0 KV, PARA CIRCUITOS TERMINAIS - FORNECIMENTO E INSTALAÇÃO. AF_12/2015 (AZUL CLARO)","SINAPI",91927,"m",691.6,3.06,2116.2960000000003,0,null,0,null,3.931965690390329E-3]
["9.19","CABO DE COBRE FLEXÍVEL ISOLADO, 2,5 MM², ANTI-CHAMA 0,6/1,0 KV, PARA CIRCUITOS TERMINAIS - FORNECIMENTO E INSTALAÇÃO. AF_12/2015 (BRANCO)","SINAPI",91927,"m",{"$f":"203.6+4.3","v":207.9},3.06,636.17399999999998,{"$f":"IF(J92=\"\",0,(J92-G92)/G92)","v":0},null,{"$f":"J92*F92","v":0},null,1.1819775405323154E-3]
["9.20","CABO DE COBRE FLEXÍVEL ISOLADO, 2,5 MM², ANTI-CHAMA 0,6/1,0 KV, PARA CIRCUITOS TERMINAIS - FORNECIMENTO E INSTALAÇÃO. AF_12/2015 (VERMELHO OU PRETO)","SINAPI",91927,"m",{"$f":"389.8+369.5","v":759.3},3.06,2323.4580000000001,0,null,0,null,4.3168616956526552E-3]
["9.21","CABO DE COBRE FLEXÍVEL ISOLADO, 2,5 MM², ANTI-CHAMA 0,6/1,0 KV, PARA CIRCUITOS TERMINAIS - FORNECIMENTO E INSTALAÇÃO. AF_12/2015 (VERDE OU VERDE-AMARELO)","SINAPI",91927,"m",306.2,3.06,936.97199999999998,0,null,0,null,1.7408442660461518E-3]
["9.22","CABO DE COBRE FLEXÍVEL ISOLADO, 4 MM², ANTI-CHAMA 0,6/1,0 KV, PARA CIRCUITOS TERMINAIS - FORNECIMENTO E INSTALAÇÃO. AF_12/2015 (AZUL CLARO)","SINAPI",91929,"m",40.5,4.3,174.15,0,null,{"$f":"J95*F95","v":0},null,3.2356146067538552E-4]
["9.23","CABO DE COBRE FLEXÍVEL ISOLADO, 4 MM², ANTI-CHAMA 0,6/1,0 KV, PARA CIRCUITOS TERMINAIS - FORNECIMENTO E INSTALAÇÃO. AF_12/2015 (VERMELHO OU PRETO)","SINAPI",91929,"m",{"$f":"22.1+18.4","v":40.5},4.3,174.15,0,null,{"$f":"J96*F96","v":0},null,3.2356146067538552E-4]
["9.24","CABO DE COBRE FLEXÍVEL ISOLADO, 4 MM², ANTI-CHAMA 0,6/1,0 KV, PARA CIRCUITOS TERMINAIS - FORNECIMENTO E INSTALAÇÃO. AF_12/2015 (VERDE OU VERDE-AMARELO)","SINAPI",91929,"m",40.5,4.3,174.15,0,null,0,null,3.2356146067538552E-4]
["9.25","CABO DE COBRE FLEXÍVEL ISOLADO, 6 MM², ANTI-CHAMA 0,6/1,0 KV, PARA CIRCUITOS TERMINAIS - FORNECIMENTO E INSTALAÇÃO. AF_12/2015 (AZUL CLARO)","SINAPI",91931,"m",0.9,5.78,5.202,0,null,0,null,9.6650400139727563E-6]
["9.26","CABO DE COBRE FLEXÍVEL ISOLADO, 6 MM², ANTI-CHAMA 0,6/1,0 KV, PARA CIRCUITOS TERMINAIS - FORNECIMENTO E INSTALAÇÃO. AF_12/2015 (VERMELHO OU PRETO)","SINAPI",91931,"m",2.7,5.78,15.606000000000002,0,null,0,null,2.8995120041918272E-5]
["9.27","CABO DE COBRE FLEXÍVEL ISOLADO, 6 MM², ANTI-CHAMA 0,6/1,0 KV, PARA CIRCUITOS TERMINAIS - FORNECIMENTO E INSTALAÇÃO. AF_12/2015 (VERDE OU VERDE-AMARELO)","SINAPI",91931,"m",0.9,5.78,5.202,0,null,0,null,9.6650400139727563E-6]
["9.28","CABO DE COBRE FLEXÍVEL ISOLADO, 16 MM², ANTI-CHAMA 0,6/1,0 KV, PARA CIRCUITOS TERMINAIS - FORNECIMENTO E INSTALAÇÃO. AF_12/2015 (AZUL CLARO)","SINAPI",91935,"m",1.3,13.77,17.901,{"$f":"IF(J101=\"\",0,(J101-G101)/G101)","v":0},null,{"$f":"J101*F101","v":0},null,3.3259108283376841E-5]
["9.29","CABO DE COBRE FLEXÍVEL ISOLADO, 16 MM², ANTI-CHAMA 0,6/1,0 KV, PARA CIRCUITOS TERMINAIS - FORNECIMENTO E INSTALAÇÃO. AF_12/2015 (VERMELHO OU PRETO)","SINAPI",91935,"m",3.9,13.77,53.702999999999996,{"$f":"IF(J102=\"\",0,(J102-G102)/G102)","v":0},null,0,null,9.9777324850130509E-5]
["9.30","CABO DE COBRE FLEXÍVEL ISOLADO, 16 MM², ANTI-CHAMA 0,6/1,0 KV, PARA CIRCUITOS TERMINAIS - FORNECIMENTO E INSTALAÇÃO. AF_12/2015 (VERDE OU VERDE-AMARELO)","SINAPI",91935,"m",1.3,13.77,17.901,{"$f":"IF(J103=\"\",0,(J103-G103)/G103)","v":0},null,0,null,3.3259108283376841E-5]
["9.31","ELETRODUTO FLEXÍVEL CORRUGADO, PVC, DN 25 MM (3/4\"), PARA CIRCUITOS TERMINAIS, INSTALADO EM PAREDE - FORNECIMENTO E INSTALAÇÃO. AF_12/2015","SINAPI",91854,"m",50,5.97,298.5,{"$f":"IF(J104=\"\",0,(J104-G104)/G104)","v":0},null,0,null,5.5459716343153934E-4]
["9.32","ELETRODUTO FLEXÍVEL CORRUGADO, PVC, DN 32 MM (1\"), PARA CIRCUITOS TERMINAIS, INSTALADO EM PAREDE - FORNECIMENTO E INSTALAÇÃO. AF_12/2015","SINAPI",91856,"m",20,7.48,149.60000000000002,0,null,0,null,2.7794886314692896E-4]
["9.33","ELETRODUTO RÍGIDO ROSCÁVEL, PVC, DN 40 MM (1 1/4\"), PARA CIRCUITOS TERMINAIS, INSTALADO EM PAREDE - FORNECIMENTO E INSTALAÇÃO. AF_12/2015","SINAPI",91873,"m",20,12.03,240.6,0,null,0,null,4.4702203524833625E-4]
["9.34","DISJUNTOR MONOPOLAR TIPO DIN, CORRENTE NOMINAL DE 10A - FORNECIMENTO E INSTALAÇÃO. AF_04/2016","SINAPI",93653,"und",17,10.09,171.53,{"$f":"IF(J107=\"\",0,(J107-G107)/G107)","v":0},null,0,null,3.1869363967642196E-4]
["9.35","DISJUNTOR MONOPOLAR TIPO DIN, CORRENTE NOMINAL DE 16A - FORNECIMENTO E INSTALAÇÃO. AF_04/2016","SINAPI",93654,"und",4,10.54,42.16,0,null,0,null,7.8331043250498146E-5]
["9.36","DISJUNTOR MONOPOLAR TIPO DIN, CORRENTE NOMINAL DE 20A - FORNECIMENTO E INSTALAÇÃO. AF_04/2016","SINAPI",93655,"und",2,11.28,22.56,0,null,0,null,4.1915283105579657E-5]
["9.37","DISJUNTOR TERMOMAGNÉTICO TRIPOLAR TIPO DIN, CORRENTE NOMINAL DE 16A - FORNECIMENTO E INSTALAÇÃO. AF_04/2016","SINAPI",93668,"und",5,65.77,328.84999999999997,0,null,{"$f":"J110*F110","v":0},null,6.1098585324777786E-4]
["9.38","DISJUNTOR TERMOMAGNÉTICO TRIPOLAR TIPO DIN, CORRENTE NOMINAL DE 20A - FORNECIMENTO E INSTALAÇÃO. AF_04/2016","SINAPI",93669,"und",1,68.06,68.06,0,null,0,null,1.2645186915628332E-4]
["9.39","Disjuntor termomagnetico tripolar 63 A, padrão DIN (Europeu - linha branca), curva C","COMPOSIÇÃO",116,"und",1,{"$f":"COMPOSIÇÕES!H125","v":91.960000000000008},91.960000000000008,0,null,{"$f":"J112*F112","v":0},null,1.7085680116972986E-4]
["9.40","Disjuntor termomagnetico tripolar 100 A, padrão DIN (Europeu - linha branca), 10KA","COMPOSIÇÃO",117,"und",1,{"$f":"COMPOSIÇÕES!H133","v":345.96},345.96,0,null,null,null,6.4277532549673487E-4]
["9.41","Dispositivo de proteção contra surto de tensão DPS 60kA - 275v","COMPOSIÇÃO",118,"und",4,{"$f":"COMPOSIÇÕES!H141","v":253.488},1013.952,0,null,null,null,1.8838690219622654E-3]
["9.42","QUADRO DE DISTRIBUICAO DE ENERGIA DE EMBUTIR, EM CHAPA METALICA, PARA 18 DISJUNTORES TERMOMAGNETICOS MONOPOLARES, COM BARRAMENTO TRIFASICO E NEUTRO, FORNECIMENTO E INSTALACAO","SINAPI","74131/004","und",1,344.47,344.47,0,null,0,null,6.400069845469426E-4]
["9.43","QUADRO DE DISTRIBUICAO DE ENERGIA DE EMBUTIR, EM CHAPA METALICA, PARA 24 DISJUNTORES TERMOMAGNETICOS MONOPOLARES, COM BARRAMENTO TRIFASICO E NEUTRO, FORNECIMENTO E INSTALACAO","SINAPI","74131/005","und",2,399.96,799.92,0,null,0,null,1.4862089211797552E-3]
["9.44","QUADRO DE DISTRIBUICAO DE ENERGIA DE EMBUTIR, EM CHAPA METALICA, PARA 50 DISJUNTORES TERMOMAGNETICOS MONOPOLARES, COM BARRAMENTO TRIFASICO E NEUTRO, FORNECIMENTO E INSTALACAO","SINAPI","74131/008","und",1,956.59,{"$f":"F117*G117","v":956.59},{"$f":"IF(J117=\"\",0,(J117-G117)/G117)","v":0},null,{"$f":"J117*F117","v":0},null,1.7772934692361015E-3]
["9.45","LÂMPADA LED 6 W BIVOLT BRANCA, FORMATO TRADICIONAL (BASE E27) - FORNECIMENTO E INSTALAÇÃO (Espelhos camarim)","SINAPI",93042,"und",44,30.56,1344.6399999999999,0,null,0,null,2.4982697816971025E-3]
["9.46","Soquete ou bocal de porcelana E27 de tempo, ref.MT-2233, marca Decorlux, similar ou de qualidade superior (Espelhos camarim)","COMPOSIÇÃO",156,"und",{"$f":"F118","v":44},{"$f":"COMPOSIÇÕES!H526","v":8.4540000000000006},371.976,0,null,0,null,6.9111167324827571E-4]
["9.47","LAMPADA LED TUBULAR  9/10 W BASE G13 - FORNECIMENTO E INSTALACAO (Espelhos camarim)","COMPOSIÇÃO",157,"und",3,{"$f":"COMPOSIÇÕES!H535","v":50.591399999999993},151.77419999999998,0,null,0,null,2.819884113972902E-4]
[{"$nulls":12},0]
[10,"INSTALAÇÕES HIDROSSANITÁRIAS",{"$nulls":5},{"$f":"SUM(H123:H149)","v":3855.6212000000005},null,null,null,{"$f":"SUM(K123:K149)","v":0},7.1635396341256556E-3]
["10.1","Água Fria:",{"$nulls":10},0]
["10.1.1","TUBO, PVC, SOLDÁVEL, DN 32MM, INSTALADO EM RAMAL DE DISTRIBUIÇÃO DE ÁGUA - FORNECIMENTO E INSTALAÇÃO. AF_12/2014_P","SINAPI",89403,"m",{"$f":"2+1.05+21.45+30.1","v":54.6},10.74,{"$f":"F124*G124","v":586.404},{"$f":"IF(J124=\"\",0,(J124-G124)/G124)","v":0},null,{"$f":"J124*F124","v":0},null,1.0895075210214688E-3]
["10.1.2","TUBO, PVC, SOLDÁVEL, DN 25MM, INSTALADO EM RAMAL OU SUB-RAMAL DE ÁGUA - FORNECIMENTO E INSTALAÇÃO. AF_12/2014_P","SINAPI",89356,"m",{"$f":"2.7+1.4","v":4.0999999999999996},15.25,62.524999999999991,0,null,0,null,1.1616813280923616E-4]
["10.1.3","REGISTRO DE GAVETA COM CANOPLA Ø 25MM (1) - FORNECIMENTO E INSTALAÇÃO","SINAPI",89353,"und",1,32.58,{"$f":"F126*G126","v":32.58},{"$f":"IF(J126=\"\",0,(J126-G126)/G126)","v":0},null,0,null,6.0531911506196151E-5]
["10.1.4","JOELHO 90 GRAUS, PVC, SOLDÁVEL, DN 25MM, INSTALADO EM RAMAL OU SUB-RAMAL DE ÁGUA - FORNECIMENTO E INSTALAÇÃO. AF_12/2014_P","SINAPI",89362,"und",1,6.06,6.06,0,null,0,null,1.1259158493786024E-5]
["10.1.5","JOELHO 90 GRAUS COM BUCHA DE LATÃO, PVC, SOLDÁVEL, DN 25MM, X 3/4\" INSTALADO EM RAMAL OU SUB-RAMAL DE ÁGUA - FORNECIMENTO E INSTALAÇÃO. AF_12/2014_P","SINAPI",89366,"und",1,10.11,10.11,0,null,0,null,1.8783843625771735E-5]
["10.1.6","JOELHO 90 GRAUS, PVC, SOLDÁVEL, DN 32MM, INSTALADO EM RAMAL DE DISTRIBUIÇÃO DE ÁGUA - FORNECIMENTO E INSTALAÇÃO. AF_12/2014_P","SINAPI",89413,"und",3,5.6,{"$f":"F129*G129","v":16.799999999999997},{"$f":"IF(J129=\"\",0,(J129-G129)/G129)","v":0},null,0,null,3.1213508695644419E-5]
["10.1.7","TÊ COM BUCHA DE LATÃO NA BOLSA CENTRAL, PVC, SOLDÁVEL, DN 25 MM X 3/4 , INSTALADO EM RESERVAÇÃO DE ÁGUA DE EDIFICAÇÃO QUE POSSUA RESERVATÓRIO DE FIBRA/FIBROCIMENTO FORNECIMENTO E INSTALAÇÃO. AF_06/2016","SINAPI",94689,"und",1,9.9,{"$f":"F130*G130","v":9.9},{"$f":"IF(J130=\"\",0,(J130-G130)/G130)","v":0},null,0,null,1.839367476707618E-5]
["10.1.8","LUVA DE REDUÇÃO, PVC, SOLDÁVEL, DN 32MM X 25MM, INSTALADO EM RAMAL OU SUB-RAMAL DE ÁGUA - FORNECIMENTO E INSTALAÇÃO. AF_12/2014","SINAPI ",89380,"und",1,5.45,5.45,0,null,0,null,1.0125810856622745E-5]
["10.1.9","ADAPTADOR CURTO COM BOLSA E ROSCA PARA REGISTRO, PVC, SOLDÁVEL, DN 25MM X 3/4, INSTALADO EM RAMAL OU SUB-RAMAL DE ÁGUA - FORNECIMENTO E INSTALAÇÃO. AF_12/2014\nTALAÇÃO. AF_12/2014 ","SINAPI ",89383,"und",2,4.41,8.82,0,null,0,null,1.6387092065213323E-5]
["10.1.10","ADAPTADOR COM FLANGE E ANEL DE VEDAÇÃO, PVC, SOLDÁVEL, DN 32 MM X 1 , INSTALADO EM RESERVAÇÃO DE ÁGUA DE EDIFICAÇÃO QUE POSSUA RESERVATÓRIO DE FIBRA/FIBROCIMENTO FORNECIMENTO E INSTALAÇÃO. AF_06/2016","SINAPI ",94704,"und",1,15.44,15.44,0,null,0,null,2.8686700848854164E-5]
["10.1.11","REGISTRO DE ESFERA, PVC, SOLDÁVEL, DN 32 MM, INSTALADO EM RESERVAÇÃO DE ÁGUA DE EDIFICAÇÃO QUE POSSUA RESERVATÓRIO DE FIBRA/FIBROCIMENTO  FORNECIMENTO E INSTALAÇÃO. AF_06/2016","SINAPI ",94490,"und",1,28.72,28.72,0,null,0,null,5.3360236293982615E-5]
["10.2","Louças, Metais e Acessórios:",{"$nulls":10},0]
["10.2.1","Cuba de embutir oval em louça branca, 35 x 50cm ou equivalente, incluso válvula em metal cromado e sifão flexível em pvc - fornecimento e instalação. af_12/2013","SINAPI",86937,"und",2,132.9,{"$f":"F136*G136","v":265.8},0,null,0,null,4.9384229829180291E-4]
["10.2.2","ENGATE FLEXÍVEL EM PLÁSTICO BRANCO, 1/2\" X 30CM - FORNECIMENTO E INSTALAÇÃO. AF_12/2013","SINAPI",86884,"und",2,6.34,{"$f":"F137*G137","v":12.68},{"$f":"IF(J137=\"\",0,(J137-G137)/G137)","v":0},null,0,null,{"$f":"H137/$H$223","v":2.3558767277426863E-5}]
["10.2.3","TORNEIRA CROMADA DE MESA, 1/2\" OU 3/4\", PARA LAVATÓRIO, PADRÃO MÉDIO - FORNECIMENTO E INSTALAÇÃO.","SINAPI",86915,"und",2,72.61,145.22,{"$f":"IF(J138=\"\",0,(J138-G138)/G138)","v":0},null,0,null,2.6981105552270737E-4]
["10.2.4","Fornecimento e colocação de gancho com bucha 4,4 x 70 - 8mm","COMPOSIÇÃO",154,"und",9,{"$f":"COMPOSIÇÕES!H512","v":8.7540000000000013},78.786000000000016,0,null,0,null,1.4638020810089537E-4]
["10.2.5","Barra de apoio em aço inox polido, l=50, d=38.1 mm","ORSE",2391,"und",1,68.39,68.39,0,null,0,null,1.2706499164851919E-4]
["10.2.6","Bancada em granito branco fortaleza, e = 2cm","COMPOSIÇÃO",121,"m²",{"$f":"1.3*0.5","v":0.65},{"$f":"COMPOSIÇÕES!H167","v":299.31799999999998},194.55670000000001,0,null,0,null,3.6147602662177884E-4]
["10.2.7","Testeira em granito branco fortaleza, l=10cm (colado), esp.=2cm - fornecimento e colocação","ORSE",11825,"m",1.3,134.37,174.68100000000001,0,null,0,null,3.2454803050380144E-4]
["10.3","Esgoto e Água Pluvial:",{"$nulls":10},0]
["10.3.1","JOELHO 90 GRAUS, PVC, SERIE NORMAL, ESGOTO PREDIAL, DN 40 MM, JUNTA SOLDÁVEL, FORNECIDO E INSTALADO EM RAMAL DE DESCARGA OU RAMAL DE ESGOTO SANITÁRIO. AF_12/2014_P","SINAPI",89724,"und",{"$f":"2+1+1+1","v":5},5.23,26.150000000000002,0,null,0,null,4.858531264232749E-5]
["10.3.2","TUBO PVC, SERIE NORMAL, ESGOTO PREDIAL, DN 40 MM, FORNECIDO E INSTALADO EM RAMAL DE DESCARGA OU RAMAL DE ESGOTO SANITÁRIO. AF_12/2014_P","SINAPI",89711,"m",{"$f":"0.6+0.6+6.11+5.5","v":12.81},13.65,174.85650000000001,0,null,0,null,3.2487410019285418E-4]
["10.3.3","TUBO PVC, SERIE NORMAL, ESGOTO PREDIAL, DN 50 MM, FORNECIDO E INSTALADO EM RAMAL DE DESCARGA OU RAMAL DE ESGOTO SANITÁRIO. AF_12/2014_P","SINAPI",89712,"m",66.400000000000006,19.93,1323.3520000000001,0,null,0,null,2.4587178071070505E-3]
["10.3.4","RALO SIFONADO, PVC, DN 100 X 40 MM, JUNTA SOLDÁVEL, FORNECIDO E INSTALADO EM RAMAL DE DESCARGA OU EM RAMAL DE ESGOTO SANITÁRIO. AF_12/2014_P","SINAPI",89709,"und",1,7.08,7.08,0,null,0,null,1.3154264378878724E-5]
["10.3.5","CAIXA DE INSPEÇÃO EM ALVENARIA DE TIJOLO MACIÇO 60X60X60CM, REVESTIDA INTERNAMENTO COM BARRA LISA (CIMENTO E AREIA, TRAÇO 1:4) E=2,0CM, COMTAMPA PRÉ-MOLDADA DE CONCRETO E FUNDO DE CONCRETO 15MPA TIPO C - ESCAVAÇÃO E CONFECÇÃO","SINAPI","74104/001","und",5,118.67,593.35,0,null,0,null,1.1024128205095608E-3]
["10.3.6","JUNÇÃO SIMPLES, PVC, SERIE NORMAL, ESGOTO PREDIAL, DN 40 MM, JUNTA SOLDÁVEL, FORNECIDO E INSTALADO EM RAMAL DE DESCARGA OU RAMAL DE ESGOTO SANITÁRIO. AF_12/2014","SINAPI",89783,"und",1,7.91,7.91,0,null,0,null,1.4696360344199251E-5]
[{"$nulls":12},0]
[11,"IMPERMEABILIZAÇÃO",{"$nulls":5},{"$f":"SUM(H152:H153)","v":13943.38},null,null,null,{"$f":"SUM(K152:K153)","v":0},2.5906060290278247E-2]
["11.1","IMPERMEABILIZACAO DE SUPERFICIE COM MANTA ASFALTICA (COM POLIMEROS TIPO APP), E=4 MM (Calhas)","SINAPI",83738,"m²",122,75.81,{"$f":"F152*G152","v":9248.82},{"$f":"IF(J152=\"\",0,(J152-G152)/G152)","v":0},null,{"$f":"J152*F152","v":0},null,1.7183816874669647E-2]
["11.2","PISO CIMENTADO TRACO 1:3 (CIMENTO E AREIA) ACABAMENTO LISO ESPESSURA 3,0CM, PREPARO MANUAL DA ARGAMASSA","SINAPI","73922/005","m²",122,38.479999999999997,{"$f":"F153*G153","v":4694.5599999999995},{"$f":"IF(J153=\"\",0,(J153-G153)/G153)","v":0},null,{"$f":"J153*F153","v":0},null,8.7222434156086007E-3]
[{"$nulls":12},0]
[12,"INSTALAÇÃO DE COMBATE E INCÊNDIO  E PÂNICO",{"$nulls":5},{"$f":"SUM(H156:H169)","v":11035.817423999999},null,null,null,{"$f":"SUM(K156:K169)","v":0},2.0503963281402873E-2]
["12.1","EXTINTOR DE PQS 12KG, CLASSE BC - FORNECIMENTO E INSTALACAO","COMPOSIÇÃO",144,"und",2,{"$f":"COMPOSIÇÕES!H428","v":247.01},{"$f":"F156*G156","v":494.02},{"$f":"IF(J156=\"\",0,(J156-G156)/G156)","v":0},null,{"$f":"J156*F156","v":0},null,9.1786295034656303E-4]
["12.2","EXTINTOR INCENDIO AGUA-PRESSURIZADA 10L INCL SUPORTE PAREDE, SINALIZAÇÃO, FORNECIMENTO E COLOCACÃO","COMPOSIÇÃO",145,"und",2,{"$f":"COMPOSIÇÕES!H438","v":165.48},330.96,{"$f":"IF(J157=\"\",0,(J157-G157)/G157)","v":0},null,0,null,6.1490612130419512E-4]
["12.3","Luminária de emergência 2 x 8w, G-LIGHT, similar ou qualidade superior","COMPOSIÇÃO",146,"und",7,{"$f":"COMPOSIÇÕES!H445","v":33.18},232.26,{"$f":"IF(J158=\"\",0,(J158-G158)/G158)","v":0},null,0,null,4.3152675771728415E-4]
["12.4","Porta corta fogo, de abrir, 02 folhas, em chapa de aço galvanizado nº24, batente em chapa nº18, classe 90, isolante em manta cerâmica incombustível e=5cm, dobradiças tipo helicoidal em aço 1010/1020, e fechadura reversível sem chave","COMPOSIÇÃO",147,"m²",5.04,{"$f":"COMPOSIÇÕES!H456","v":616.09559999999999},3105.1218239999998,0,null,0,null,5.7691516103844809E-3]
["12.5","Barra antipânico simples sem chave para uma porta ref. MH2585, similar ou qualidade superior","COMPOSIÇÃO",148,"und",4,{"$f":"COMPOSIÇÕES!H463","v":702.36899999999991},2809.4759999999997,0,null,0,null,5.2198573545359705E-3]
["12.6","Detector de fumaça óptico endereçável, modelo VRE-F, marca VERIN, similar ou de qualidade superior","COMPOSIÇÃO",149,"und",10,{"$f":"COMPOSIÇÕES!H471","v":85.48},854.80000000000007,0,null,0,null,1.5881730495855273E-3]
["12.7","Central de alarme e detecção de incendio, capacidade: 8 laços, com 2 linhas, mod.VR-8L, Verin, similar ou de qualidade superior","COMPOSIÇÃO",150,"und",1,{"$f":"COMPOSIÇÕES!H479","v":760.93},760.93,0,null,0,null,1.4137675697486138E-3]
["12.8","Acionador manual (botoeira) tipo quebra-vidro, p/instal. Incendio","COMPOSIÇÃO",151,"und",2,{"$f":"COMPOSIÇÕES!H487","v":108.84},217.68,0,null,0,null,4.0443789124213565E-4]
["12.9","Avisador sonoro tipo sirene para incêndio - Fornecimento","ORSE",10446,"und",2,230.46,460.92,0,null,0,null,8.5636490642835889E-4]
["12.10","ELETRODUTO DE AÇO GALVANIZADO, CLASSE LEVE, DN 25 MM (1), APARENTE INSTALADO EM TETO - FORNECIMENTO E INSTALAÇÃO. AF_11/2016_P","SINAPI",95746,"m²",84.56,12.91,1091.6695999999999,0,null,0,null,2.0282641995458734E-3]
["12.11","Extintor de incêndio de Pó ABC 12Kg capacidade extintora 6A-40BC","COTAÇÃO",2,"und",2,{"$f":"'Cotação 01'!J32","v":231.9666666666667},463.93333333333339,0,null,0,null,8.6196351989281585E-4]
["12.12","Placa direção saída de emergência Fotoluminescente Sinalize Seta Reta P/ Direita 30x15cm","COTAÇÃO",3,"und",8,{"$f":"'Cotação 01'!J44","v":15.709999999999999},125.67999999999999,{"$f":"IF(J167=\"\",0,(J167-G167)/G167)","v":0},null,0,null,2.33506772194559E-4]
["12.13","Placa direção saída de emergência Fotoluminescente Sinalize Seta Reta P/ Esquerda 30x15cm","COTAÇÃO",4,"und",4,{"$f":"'Cotação 01'!J56","v":15.709999999999999},{"$f":"F168*G168","v":62.839999999999996},{"$f":"IF(J168=\"\",0,(J168-G168)/G168)","v":0},null,0,null,1.167533860972795E-4]
["12.14","Placa sinalizadora saída de emergência - Final Fotoluminescente  30x15cm","COTAÇÃO",5,"und",2,{"$f":"'Cotação 01'!J68","v":12.763333333333335},{"$f":"F169*G169","v":25.526666666666671},{"$f":"IF(J169=\"\",0,(J169-G169)/G169)","v":0},null,0,null,4.7427192379215292E-5]
[{"$nulls":12},0]
[13,"REVESTIMENTOS",{"$nulls":5},{"$f":"SUM(H172:H178)","v":61052.505554999996},null,null,null,{"$f":"SUM(K172:K178)","v":0},0.11343231625189715]
["13.1","Paredes:",{"$nulls":10},0]
["13.1.1"," Revestimento para parede em MDF com revestimento melamínico mdeirado, tipo lambri, colado, superfície polida","COMPOSIÇÃO",136,"m²",137.41,{"$f":"COMPOSIÇÕES!H358","v":109.01550000000002},{"$f":"F173*G173","v":14979.819855000002},{"$f":"IF(J173=\"\",0,(J173-G173)/G173)","v":0},null,{"$f":"J173*F173","v":0},null,2.7831710553763666E-2]
["13.1.2","Painel acústico constituído de gradeamento em compensado naval 18mm, preenchido com lã de pet acústica 15mm dens = 15kg/m3 e acabamento em tecido ortofônico e alisar em madeira maciça 40mmx15mm boleada nas bordas tratada com seladora - aplicado","ORSE (Insumos)",12779,"m²",67.78,{"$f":"134","v":134},{"$f":"F174*G174","v":9082.52},0,null,0,null,1.6874840297521693E-2]
["13.1.3","CHAPISCO APLICADO EM ALVENARIA (COM PRESENÇA DE VÃOS) E ESTRUTURAS DE CONCRETO DE FACHADA, COM COLHER DE PEDREIRO. ARGAMASSA TRAÇO 1:3 COM PREPARO EM BETONEIRA 400L. AF_06/2014","SINAPI",87905,"m²",{"$f":"12.47+3.05*9.4","v":41.14},5.13,{"$f":"F175*G175","v":211.04820000000001},{"$f":"IF(J175=\"\",0,(J175-G175)/G175)","v":0},null,{"$f":"J175*F175","v":0},null,3.9211635868453002E-4]
["13.1.4","MASSA ÚNICA, PARA RECEBIMENTO DE PINTURA, EM ARGAMASSA TRAÇO 1:2:8, PREPARO MECÂNICO COM BETONEIRA 400L, APLICADA MANUALMENTE EM FACES INTERNAS DE PAREDES, ESPESSURA DE 20MM, COM EXECUÇÃO DE TALISCAS. AF_06/2014","SINAPI",87529,"m²",{"$f":"F175","v":41.14},24.94,{"$f":"F176*G176","v":1026.0316},{"$f":"IF(J176=\"\",0,(J176-G176)/G176)","v":0},null,0,null,1.9063122778932122E-3]
["13.2","Teto:",{"$nulls":10},0]
["13.2.1"," Forro de gesso acartonado, acabamento em pintura PVA Latex na cor branco, com isolamento em lã de vidro 25mm, placa 625 x 625mm e perfil T, instalado","COMPOSIÇÃO",137,"m²",411.57,{"$f":"COMPOSIÇÕES!H365","v":86.87},{"$f":"F178*G178","v":35753.085899999998},{"$f":"IF(J178=\"\",0,(J178-G178)/G178)","v":0},null,{"$f":"J178*F178","v":0},null,6.6427336764034048E-2]
[{"$nulls":12},0]
[14,"PINTURA",{"$nulls":5},{"$f":"SUM(H181:H186)","v":11139.282698600002},null,null,null,{"$f":"SUM(K181:K185)","v":0},2.0696196272380517E-2]
["14.1"," Emassamento de superfície, com aplicação de 02 demãos de massa corrida, lixamento e retoques (teto camarim, varanda e todo forro de gesso do auditório, inclusive sala de som)","COMPOSIÇÃO",141,"m²",{"$f":"(1.65*17)+(2.27*4.4)+411.57","v":449.608},{"$f":"COMPOSIÇÕES!H402","v":8.7569999999999997},{"$f":"F181*G181","v":3937.2172559999999},{"$f":"IF(J181=\"\",0,(J181-G181)/G181)","v":0},null,{"$f":"J181*F181","v":0},null,7.3151407771903142E-3]
["14.2","Emassamento de superfície, com aplicação de 02 demãos de massa acrílica, lixamento e retoques (parede)","COMPOSIÇÃO",142,"m²",{"$f":"(23.44*3.47)-4.8+F185+12.47","v":111.93180000000001},{"$f":"COMPOSIÇÕES!H411","v":11.067},{"$f":"F182*G182","v":1238.7492306000001},0,null,0,null,2.3015303500628541E-3]
["14.3","APLICAÇÃO MANUAL DE PINTURA COM TINTA LÁTEX PVA EM TETO, DUAS DEMÃOS  AF_06/2014 (teto camarim, varanda e todo forro de gesso do auditório, inclusive sala de som)\n ","SINAPI",88486,"m²",{"$f":"(1.65*17)+(2.27*4.4)+411.57","v":449.608},8.36,{"$f":"F183*G183","v":3758.7228799999998},0,null,0,null,6.9835076963927177E-3]
["14.4","APLICAÇÃO MANUAL DE PINTURA COM TINTA LÁTEX ACRÍLICA EM PAREDES, DUAS DEMÃOS (Camarim e alvenarias executadas).","SINAPI",88489,"m²",{"$f":"(23.44*3.47)-4.8+12.47","v":89.006800000000013},9.49,{"$f":"F184*G184","v":844.67453200000011},{"$f":"IF(J184=\"\",0,(J184-G184)/G184)","v":0},null,{"$f":"J184*F184","v":0},null,1.5693604672363923E-3]
["14.5","Aplicação manual de pintura com tinta texturizada acrílica em paredes externas (Fachada)","SINAPI",88423,"m²",{"$f":"(1.75+4.8)*3.5","v":22.925000000000001},13.72,{"$f":"F185*G185","v":314.53100000000001},0,null,0,null,5.8438191092557957E-4]
["14.6","APLICAÇÃO DE FUNDO SELADOR LÁTEX PVA EM TETO, UMA DEMÃO. AF_06/2014 (Forro de gesso acartonado)","SINAPI",88482,"m²",411.57,2.54,{"$f":"F186*G186","v":1045.3878},{"$f":"IF(J186=\"\",0,(J186-G186)/G186)","v":0},null,{"$f":"J186*F186","v":0},null,1.9422750705726545E-3]
[{"$nulls":12},0]
[15,"CLIMATIZAÇÃO/REFRIGERAÇÃO",{"$nulls":5},{"$f":"SUM(H189:H191)","v":43155.8},null,null,null,{"$f":"SUM(K189:K191)","v":0},8.0181186819493558E-2]
["15.1","Condicionador de ar tipo split high wall, 9000 btu - FORNECIMENTO E INSTALACAO","COMPOSIÇÃO",158,"und",1,{"$f":"COMPOSIÇÕES!H542","v":1723.58},{"$f":"F189*G189","v":1723.58},{"$f":"IF(J189=\"\",0,(J189-G189)/G189)","v":0},null,{"$f":"J189*F189","v":0},null,3.2023201974785013E-3]
["15.2","Condicionador de ar tipo split piso-teto, 30000 btu - FORNECIMENTO E INSTALACAO","COMPOSIÇÃO",159,"und",2,{"$f":"COMPOSIÇÕES!H549","v":5199.83},10399.66,0,null,0,null,1.9322016538199139E-2]
["15.3","Condicionador de ar tipo split piso-teto, 60000 btu - FORNECIMENTO E INSTALACAO","COMPOSIÇÃO",160,"und",4,{"$f":"COMPOSIÇÕES!H556","v":7758.14},31032.560000000001,0,null,0,null,5.7656850083815922E-2]
[{"$nulls":12},0]
[16,"PISO",{"$nulls":5},{"$f":"SUM(H194:H201)","v":76189.197706896011},null,null,null,{"$f":"SUM(K194:K200)","v":0},0.14155548721061734]
["16.1","Piso em assoalho de madeira lei (Pau D´Arco, similar ou de qualidade superior) - Extra, réguas macho e fêmea 20cm x 3cm, elevado instalado em barrotes de madeira (palco em madeira)","COMPOSIÇÃO",138,"m²",129,{"$f":"COMPOSIÇÕES!H375","v":365.899},{"$f":"F194*G194","v":47200.970999999998},{"$f":"IF(J194=\"\",0,(J194-G194)/G194)","v":0},null,{"$f":"J194*F194","v":0},null,8.7696899925676211E-2]
["16.2","CONTRAPISO EM ARGAMASSA TRAÇO 1:4 (CIMENTO E AREIA), PREPARO MECÂNICO COM BETONEIRA 400 L, APLICADO EM ÁREAS MOLHADAS SOBRE LAJE, ADERIDO, ESPESSURA 2CM. AF_06/2014 (piso da varanda do auditório e camarim)","SINAPI",87735,"m²",{"$f":"26.43+21.34","v":47.769999999999996},29.06,{"$f":"F195*G195","v":1388.1961999999999},0,null,0,null,2.5791948904738422E-3]
["16.3"," Restauro - Restauração do piso de madeira compreendendo substituição de peças de apoio até 20%, raspagem, calafetagem, enceramento e parquetagem (obs: usar para substituição as peças da área de ampliação do palco ) (restauro do piso da platéia)","COMPOSIÇÃO",140,"m²",232.5,{"$f":"COMPOSIÇÕES!H393","v":50.342500000000001},{"$f":"F196*G196","v":11704.63125},0,null,0,null,2.1746583886975389E-2]
["16.4","Piso tátil direcional e/ou alerta, em borracha, p/deficientes visuais, dimensões 25x25cm, aplicado, rejuntado, exclusive regularização de base","ORSE",7323,"m²",{"$f":"(1.31+1.31+1.75+0.6+10.2+0.6+1.5+1.1+1.5+1.5+2.15+0.8+1.45+1.5+1.25)*0.25","v":7.129999999999999},210,{"$f":"F197*G197","v":1497.2999999999997},0,null,0,null,2.7819039624993091E-3]
["16.5"," Imunização de madeira contra cupim, com aplicação de 01 demão de Pentox, similar ou qualidade superior","COMPOSIÇÃO",139,"m²",{"$f":"F194","v":129},{"$f":"COMPOSIÇÕES!H383","v":12.940249999999999},{"$f":"F198*G198","v":1669.29225},0,null,0,null,3.1014564381515982E-3]
["16.6","PISO EM GRANILITE, MARMORITE OU GRANITINA ESPESSURA 8 MM, INCLUSO JUNTAS DE DILATACAO PLASTICAS (Piso do corredor executar na mesma cor do piso existente e piso do camarim)","SINAPI",84191,"m²",{"$f":"21.81+F201","v":74.966000000000008},103.27,{"$f":"F199*G199","v":7741.7388200000005},0,null,0,null,1.4383739998659406E-2]
["16.7","RODAPE EM GRANILITE/MARMORITE, ALTURA 10CM","SINAPI","73850/001","m",21.4,18.760000000000002,{"$f":"F200*G200","v":401.464},0,null,0,null,7.458988127969163E-4]
["16.8","Contrapiso em argamassa traço 1:4 (cimento e areia), preparo manual, aplicado em áreas secas sobre bloco de EPS, aderido, espessura 6cm, inclui os blocos de EPS. af_06/2014 (ELEVAÇÃO DO PISO DO CORREDOR)","COMPOSIÇÃO",153,"m²",{"$f":"2.5*18.92+2.4*2.44","v":53.156000000000006},{"$f":"COMPOSIÇÕES!H504","v":86.266916000000009},{"$f":"F201*G201","v":4585.604186896001},0,null,0,null,{"$f":"H201/$H$223","v":8.5198092953846314E-3}]
[{"$nulls":12},0]
[17,"SERVIÇOS COMPLEMENTARES",{"$nulls":5},{"$f":"SUM(H204:H216)","v":46676.874326449994},null,null,null,{"$f":"SUM(K204:K211)","v":0},8.6723156111556482E-2]
["17.1","Bancada de madeira MDF revestida em laminado melamínico (Sala de Som e Camarim)","COMPOSIÇÃO",131,"m²",{"$f":"2+2.53","v":4.5299999999999994},{"$f":"COMPOSIÇÕES!H305","v":125.91736000000003},{"$f":"F204*G204","v":570.40564080000001},{"$f":"IF(J204=\"\",0,(J204-G204)/G204)","v":0},null,{"$f":"J204*F204","v":0},null,1.0597834184021091E-3]
["17.2","Letra em alumínio com pintura eletrostática a pó na cor preto 20 x 20cm - instalado","COMPOSIÇÃO",132,"und",24,{"$f":"COMPOSIÇÕES!H312","v":63.83},1531.92,0,null,{"$f":"J205*F205","v":0},null,2.8462260857756911E-3]
["17.3","ESPELHO CRISTAL ESPESSURA 4MM, COM MOLDURA EM ALUMINIO E CHAPA DE EPS 10MM (Camarim, parede do lavatório)","COMPOSIÇÃO",133,"m²",6,{"$f":"COMPOSIÇÕES!H324","v":352.19749999999999},2113.1849999999999,0,null,0,null,3.926185617440796E-3]
["17.4","ESPELHO CRISTAL ESPESSURA 4MM, COM MOLDURA EM MDF E CHAPA DE EPS 10MM (Camarim, parede da bancada de maquiagem)","COMPOSIÇÃO",134,"m²",4.58,{"$f":"COMPOSIÇÕES!H336","v":355.35649999999998},1627.53277,0,null,0,null,3.02386953981198E-3]
["17.5","Armário de madeira MDF revestida em laminado melamínico e prateleira da parede do lavatório","COMPOSIÇÃO",135,"m²",12.79,{"$f":"COMPOSIÇÕES!H347","v":125.91736000000003},1610.4830344000002,0,null,0,null,2.9921920356209661E-3]
["17.6","Tubo de aço inox 1 1/2\" esp.1,50mm (Armário e provador)","COMPOSIÇÃO",142,"m",{"$f":"2.37+3.66","v":6.03},{"$f":"COMPOSIÇÕES!H418","v":56.077500000000001},338.14732500000002,0,null,0,null,6.2825978983907158E-4]
["17.7","Fornecimento e montagem de Cortinas em tecido oxford com trilho em alumínio (Cortina para as portas P6 P7, conforme especificado em projeto arquitetônico)","Cotação Painel de Preços",1,"m²",54.57,{"$f":"'Painel de Preços'!E20","v":12.9},{"$f":"F210*G210","v":703.95299999999997},0,null,0,null,1.307907326596725E-3]
["17.8","Tecido em algodão natural (largura de aproximadamente 1,0m) (para execução do provador)","ORSE",3103,"m",6.3,35,220.5,0,null,0,null,4.0967730163033312E-4]
["17.9","Recuperação das cadeiras de madeira, c/ aproveitamento de 75%","COMPOSIÇÃO",152,"und",311,{"$f":"COMPOSIÇÕES!H492","v":89.823624999999979},27935.147374999993,0,null,0,null,5.1902021756170882E-2]
["17.10","PINTURA VERNIZ POLIURETANO BRILHANTE EM MADEIRA, TRES DEMAOS (Pintura das cadeiras)","COMPOSIÇÃO",155,"und",311,{"$f":"COMPOSIÇÕES!H518","v":18.331344999999999},{"$f":"F213*G213","v":5701.0482949999996},{"$f":"IF(J213=\"\",0,(J213-G213)/G213)","v":0},null,{"$f":"J213*F213","v":0},null,1.0592245269659007E-2]
["17.11","LIMPEZA FINAL DA OBRA","SINAPI",9537,"m²",514.5,1.83,{"$f":"F214*G214","v":941.53500000000008},{"$f":"IF(J214=\"\",0,(J214-G214)/G214)","v":0},null,{"$f":"J214*F214","v":0},null,1.7493220779615224E-3]
["17.12","Remoção de entulho da obra - carga e tranporte","COMPOSIÇÃO",162,"m³",{"$f":"1.25*(F20+F21*0.008+F22*0.05+F23*0.03+F24*0.002+F25*0.008+F26*0.005+F32*0.03)","v":26.054825000000001},{"$f":"COMPOSIÇÕES!H572","v":82.65},{"$f":"F215*G215","v":2153.4312862500001},{"$f":"IF(J215=\"\",0,(J215-G215)/G215)","v":0},null,{"$f":"J215*F215","v":0},null,4.0009610820736395E-3]
["17.13","Placa de inauguração de obra em alumínio 0,60 x 0,80 m","COMPOSIÇÃO",163,"m³",1,{"$f":"COMPOSIÇÕES!H581","v":1229.5856000000001},{"$f":"F216*G216","v":1229.5856000000001},{"$f":"IF(J216=\"\",0,(J216-G216)/G216)","v":0},null,{"$f":"J216*F216","v":0},null,2.2845048105737602E-3]
[{"$nulls":12},0]
[18,"ADMINISTRAÇÃO LOCAL DA OBRA",{"$nulls":5},{"$f":"SUM(H219:H221)","v":40990.380000000005},null,null,null,{"$f":"SUM(K219:K221)","v":0},7.615795134331961E-2]
["18.1","ENGENHEIRO CIVIL DE OBRA JUNIOR COM ENCARGOS COMPLEMENTARES(4H/DIA)","SINAPI",90777,"h",{"$f":"6*4*4","v":96},{"$f":"68.64","v":68.64},{"$f":"F219*G219","v":6589.4400000000005},0,null,{"$f":"J219*F219","v":0},null,1.2242829924965906E-2]
["18.2","ENCARREGADO GERAL DE OBRAS COM ENCARGOS COMPLEMENTARES","SINAPI",93572,"mês",6,3001.26,{"$f":"F220*G220","v":18007.560000000001},0,null,{"$f":"J220*F220","v":0},null,3.3457091109960639E-2]
["18.3","ALMOXARIFE COM ENCARGOS COMPLEMENTARES","SINAPI",93563,"mês",6,2732.23,16393.38,0,null,0,null,3.0458030308393062E-2]
[]
["CUSTO DE REFERÊNCIA DA OBRA (R$)",{"$nulls":6},{"$f":"SUM(H9:H221)/2","v":538228.50112151261},"CUSTO DA PROPOSTA",null,null,{"$f":"SUM(L9:L219)","v":0}]
["BDI SOBRE O CUSTO DA OBRA (REFERÊNCIA) (27,00%) (R$)",{"$nulls":6},{"$f":"0.27*H223","v":145321.69530280842},"BDI SOBRE O CUSTO DA OBRA (PROPOSTA)",null,null,0]
[" PREÇO TOTAL DE REFERÊNCIA DA OBRA (R$)",{"$nulls":6},{"$f":"SUM(H223:H224)","v":683550.19642432104},"PREÇO TOTAL DA PROPOSTA",null,null,{"$f":"SUM(L223:L224)","v":0}]
[]
[]
[null,"O orçamento foi estimado em  R$ 683.550,20 (Seiscentos e oitenta e três mil, quinhentos e ciquenta reais e vinte centavos)",{"$nulls":7},"Canteiro","Administração"]
[{"$nulls":9},{"$f":"SUM(H14:H17)/H223","v":4.6128835890826905E-2},{"$f":"H218/H223","v":7.615795134331961E-2}]
[null,"Referência: Orse - Julho /2017 e Sinapi/AL - Agosto /2017"]
[{"$nulls":9},"Subcontratação"]
[null,"____________________________________________",{"$nulls":7},{"$f":"M53+M54+M173+M178+M174+M196+M199+M212+M188","v":0.28409178145785197}]
[null,"Carlos Wilson da Silva Diniz"]
[null,"Engenheiro Civil - DIP/GPOS/SINFRA/UFAL"]
[null,"Siape Nº 2222799"]
[]
[]
[]
[null,"Maceió, ____ de ______________ de______"]

{"sheet":"CRONOGRAMA","index":5,"n_rows":83,"n_cols":20,"rows_kept":83,"cut":false,"hidden":false,"merged":[[79,1,79,4],[63,0,63,2],[64,0,64,2],[65,0,65,2],[56,0,57,0],[56,1,57,1],[56,2,57,2],[59,2,60,2],[62,0,62,2],[59,0,60,0],[59,1,60,1],[68,1,69,5],[59,3,60,3],[56,3,57,3],[53,0,54,0],[53,1,54,1],[53,2,54,2],[53,3,54,3],[41,0,42,0],[41,1,42,1],[41,2,42,2],[41,3,42,3],[50,0,51,0],[50,1,51,1],[50,2,51,2],[50,3,51,3],[44,0,45,0],[44,1,45,1],[44,2,45,2],[44,3,45,3],[47,0,48,0],[47,1,48,1],[47,2,48,2],[47,3,48,3],[32,0,33,0],[32,1,33,1],[32,2,33,2],[32,3,33,3],[38,0,39,0],[38,1,39,1],[38,2,39,2],[38,3,39,3],[35,0,36,0],[35,1,36,1],[35,2,36,2],[35,3,36,3],[23,0,24,0],[23,1,24,1],[23,2,24,2],[23,3,24,3],[26,0,27,0],[26,1,27,1],[26,2,27,2],[26,3,27,3],[29,0,30,0],[29,1,30,1],[29,2,30,2],[29,3,30,3],[5,0,5,3],[11,0,12,0],[11,1,12,1],[11,2,12,2],[11,3,12,3],[8,0,9,0],[8,1,9,1],[8,2,9,2],[8,3,9,3],[20,0,21,0],[20,1,21,1],[20,2,21,2],[20,3,21,3],[14,0,15,0],[14,1,15,1],[14,2,15,2],[14,3,15,3],[17,0,18,0],[17,1,18,1],[17,2,18,2],[17,3,18,3],[5,14,5,15],[5,12,5,13],[5,4,5,5],[5,6,5,7],[5,8,5,9],[5,10,5,11]]}
["UNIVERSIDADE FEDERAL DE ALAGOAS - UFAL"]
["SUPERINTENDÊNCIA DE INFRAESTRUTURA - SINFRA"]
["GERENCIA DE PROJETOS,OBRAS E SERVIÇOS DE ENGENHARIA - GPOS"]
[]
["CRONOGRAMA FÍSICO-FINANCEIRO PARA OBRA DE REFORMA DO AUDITÓRIO GUEDES DE MIRANDA NO ESPAÇO CULTURAL DA UFAL."]
["CRONOGRAMA FÍSICO-FINANCEIRO",null,null,null,"1º MÊS",null,"2º MÊS",null,"3º MÊS",null,"4º MÊS",null,"5º MÊS",null,"6º MÊS"]
["ITEM","DESCRIÇÃO DO ITEM","%","VALOR TOTAL","(%)","R$","(%)","R$","(%)","R$","(%)","R$","(%)","R$","(%)","R$",null,"(%)"]
[]
["01.","PROJETOS COMPLEMENTARES",{"$f":"D9/D63","v":6.6913959266287734E-4},{"$f":"ORÇAMENTO!H9","v":360.15},{"$nulls":15},{"$f":"PRAZOS!K9","v":0.1}]
[{"$nulls":5},{"$f":"$D9*E10","v":0},null,{"$f":"$D9*G10","v":0},null,{"$f":"$D9*I10","v":0},null,{"$f":"$D9*K10","v":0},null,{"$f":"$D9*M10","v":0},1,{"$f":"$D9*O10","v":360.15},null,{"$f":"SUM(K10,I10,G10,E10,M10,O10)","v":1},{"$f":"SUM(L10,J10,H10,F10,N10,P10)","v":360.15}]
[]
["02.","SERVIÇOS PRELIMINARES",{"$f":"D12/D63","v":8.3190627695673258E-2},{"$f":"ORÇAMENTO!H12","v":44775.566852000011},{"$nulls":15},{"$f":"PRAZOS!K12","v":2.7}]
[{"$nulls":4},0.85,{"$f":"$D12*E13","v":38059.231824200011},0.1,{"$f":"$D12*G13","v":4477.5566852000011},0.05,{"$f":"$D12*I13","v":2238.7783426000005},null,{"$f":"$D12*K13","v":0},null,{"$f":"$D12*M13","v":0},null,{"$f":"$D12*O13","v":0},null,{"$f":"SUM(K13,I13,G13,E13,M13,O13)","v":1},{"$f":"SUM(L13,J13,H13,F13,N13,P13)","v":44775.566852000011}]
[]
["03.","MOVIMENTO DE TERRA",{"$f":"D15/D63","v":2.0413634686951457E-3},{"$f":"ORÇAMENTO!H34","v":1098.72},{"$nulls":15},{"$f":"PRAZOS!K34","v":0.4}]
[{"$nulls":5},{"$f":"$D15*E16","v":0},null,{"$f":"$D15*G16","v":0},1,{"$f":"$D15*I16","v":1098.72},null,{"$f":"$D15*K16","v":0},null,{"$f":"$D15*M16","v":0},null,{"$f":"$D15*O16","v":0},null,{"$f":"SUM(K16,I16,G16,E16,M16,O16)","v":1},{"$f":"SUM(L16,J16,H16,F16,N16,P16)","v":1098.72}]
[]
["04.","INFRAESTRUTURA",{"$f":"D18/D63","v":6.6084159303875173E-3},{"$f":"ORÇAMENTO!H38","v":3556.8378009999997},{"$nulls":15},{"$f":"PRAZOS!K38","v":0.3}]
[{"$nulls":5},{"$f":"$D18*E19","v":0},null,{"$f":"$D18*G19","v":0},null,{"$f":"$D18*I19","v":0},1,{"$f":"$D18*K19","v":3556.8378009999997},null,{"$f":"$D18*M19","v":0},null,{"$f":"$D18*O19","v":0},null,{"$f":"SUM(K19,I19,G19,E19,M19,O19)","v":1},{"$f":"SUM(L19,J19,H19,F19,N19,P19)","v":3556.8378009999997}]
[]
["05.","SUPERESTRUTURA",{"$f":"D21/D63","v":5.0565436637580927E-4},{"$f":"ORÇAMENTO!H43","v":272.15759170000001},{"$nulls":15},{"$f":"PRAZOS!K43","v":2.1000000000000001E-2}]
[{"$nulls":5},{"$f":"$D21*E22","v":0},null,{"$f":"$D21*G22","v":0},1,{"$f":"$D21*I22","v":272.15759170000001},null,{"$f":"$D21*K22","v":0},null,{"$f":"$D21*M22","v":0},null,{"$f":"$D21*O22","v":0},null,{"$f":"SUM(K22,I22,G22,E22,M22,O22)","v":1},{"$f":"SUM(L22,J22,H22,F22,N22,P22)","v":272.15759170000001}]
[]
["06.","ALVENARIA/VEDAÇÃO/DIVISÓRIA",{"$f":"D24/D63","v":8.3754087819706193E-3},{"$f":"ORÇAMENTO!H51","v":4507.8837149999999},{"$nulls":15},{"$f":"PRAZOS!K50","v":0.4}]
[{"$nulls":5},{"$f":"$D24*E25","v":0},null,{"$f":"$D24*G25","v":0},1,{"$f":"$D24*I25","v":4507.8837149999999},null,{"$f":"$D24*K25","v":0},null,{"$f":"$D24*M25","v":0},null,{"$f":"$D24*O25","v":0},null,{"$f":"SUM(K25,I25,G25,E25,M25,O25)","v":1},{"$f":"SUM(L25,J25,H25,F25,N25,P25)","v":4507.8837149999999}]
[]
["07.","ESQUADRIAS",{"$f":"D27/D63","v":2.2453071119456876E-2},{"$f":"ORÇAMENTO!H56","v":12084.882814199998},{"$nulls":15},{"$f":"PRAZOS!K55","v":0.3}]
[{"$nulls":5},{"$f":"$D27*E28","v":0},null,{"$f":"$D27*G28","v":0},null,{"$f":"$D27*I28","v":0},0.2,{"$f":"$D27*K28","v":2416.9765628399996},0.4,{"$f":"$D27*M28","v":4833.9531256799992},0.4,{"$f":"$D27*O28","v":4833.9531256799992},null,{"$f":"SUM(K28,I28,G28,E28,M28,O28)","v":1},{"$f":"SUM(L28,J28,H28,F28,N28,P28)","v":12084.882814199998}]
[]
["08.","COBERTURA",{"$f":"D30/D63","v":0.23889164045025482},{"$f":"ORÇAMENTO!H69","v":128578.28956999996},{"$nulls":15},{"$f":"PRAZOS!K68","v":1.1000000000000001}]
[{"$nulls":5},{"$f":"$D30*E31","v":0},0.4,{"$f":"$D30*G31","v":51431.315827999992},0.6,{"$f":"$D30*I31","v":77146.973741999973},null,{"$f":"$D30*K31","v":0},null,{"$f":"$D30*M31","v":0},null,{"$f":"$D30*O31","v":0},null,{"$f":"SUM(K31,I31,G31,E31,M31,O31)","v":1},{"$f":"SUM(L31,J31,H31,F31,N31,P31)","v":128578.28956999996}]
[]
["09.","INSTALAÇÕES ELÉTRICAS ",{"$f":"D33/D63","v":6.4944821379451734E-2},{"$f":"ORÇAMENTO!H73","v":34955.153866666675},{"$nulls":15},{"$f":"PRAZOS!K72","v":0.7}]
[{"$nulls":5},{"$f":"$D33*E34","v":0},null,{"$f":"$D33*G34","v":0},null,{"$f":"$D33*I34","v":0},0.4,{"$f":"$D33*K34","v":13982.061546666671},0.4,{"$f":"$D33*M34","v":13982.061546666671},0.2,{"$f":"$D33*O34","v":6991.0307733333357},null,{"$f":"SUM(K34,I34,G34,E34,M34,O34)","v":1},{"$f":"SUM(L34,J34,H34,F34,N34,P34)","v":34955.153866666675}]
[]
["10.","INSTALAÇÕES HIDRO-SANITÁRIAS",{"$f":"D36/D63","v":7.1635396341256556E-3},{"$f":"ORÇAMENTO!H122","v":3855.6212000000005},{"$nulls":15},{"$f":"PRAZOS!K121","v":0.2}]
[{"$nulls":5},{"$f":"$D36*E37","v":0},null,{"$f":"$D36*G37","v":0},0.5,{"$f":"$D36*I37","v":1927.8106000000002},0.5,{"$f":"$D36*K37","v":1927.8106000000002},null,{"$f":"$D36*M37","v":0},null,{"$f":"$D36*O37","v":0},null,{"$f":"SUM(K37,I37,G37,E37,M37,O37)","v":1},{"$f":"SUM(L37,J37,H37,F37,N37,P37)","v":3855.6212000000005}]
[]
["11.","IMPERMEABILIZAÇÃO",{"$f":"D39/D63","v":2.5906060290278247E-2},{"$f":"ORÇAMENTO!H151","v":13943.38},{"$nulls":15},{"$f":"PRAZOS!K150","v":0.7}]
[{"$nulls":5},{"$f":"$D39*E40","v":0},0.2,{"$f":"$D39*G40","v":2788.6759999999999},0.6,{"$f":"$D39*I40","v":8366.0279999999984},0.2,{"$f":"$D39*K40","v":2788.6759999999999},null,{"$f":"$D39*M40","v":0},null,{"$f":"$D39*O40","v":0},null,{"$f":"SUM(K40,I40,G40,E40,M40,O40)","v":1},{"$f":"SUM(L40,J40,H40,F40,N40,P40)","v":13943.379999999997}]
[]
["12.","INSTALAÇÃO DE COMBATE E INCÊNDIO  E PÂNICO",{"$f":"D41/D63","v":0},{"$f":"ORÇAMENTO!H155","v":11035.817423999999},{"$nulls":15},{"$f":"PRAZOS!K154","v":0.2}]
[{"$nulls":5},{"$f":"$D42*E43","v":0},null,{"$f":"$D42*G43","v":0},null,{"$f":"$D42*I43","v":0},null,{"$f":"$D42*K43","v":0},0.5,{"$f":"$D42*M43","v":5517.9087119999995},0.5,{"$f":"$D42*O43","v":5517.9087119999995},null,{"$f":"SUM(K43,I43,G43,E43,M43,O43)","v":1},{"$f":"SUM(L43,J43,H43,F43,N43,P43)","v":11035.817423999999}]
[]
["13.","REVESTIMENTOS",{"$f":"D45/D63","v":0.11343231625189715},{"$f":"ORÇAMENTO!H171","v":61052.505554999996},{"$nulls":15},{"$f":"PRAZOS!K170","v":3.2}]
[{"$nulls":5},{"$f":"$D45*E46","v":0},null,{"$f":"$D45*G46","v":0},0.05,{"$f":"$D45*I46","v":3052.6252777499999},0.6,{"$f":"$D45*K46","v":36631.503332999993},0.35,{"$f":"$D45*M46","v":21368.376944249998},null,{"$f":"$D45*O46","v":0},null,{"$f":"SUM(K46,I46,G46,E46,M46,O46)","v":1},{"$f":"SUM(L46,J46,H46,F46,N46,P46)","v":61052.505554999989}]
[]
["14.","PINTURA",{"$f":"D48/D63","v":2.0696196272380517E-2},{"$f":"ORÇAMENTO!H180","v":11139.282698600002},{"$nulls":15},{"$f":"PRAZOS!K179","v":1.2}]
[{"$nulls":5},{"$f":"$D48*E49","v":0},null,{"$f":"$D48*G49","v":0},null,{"$f":"$D48*I49","v":0},null,{"$f":"$D48*K49","v":0},0.8,{"$f":"$D48*M49","v":8911.4261588800018},0.2,{"$f":"$D48*O49","v":2227.8565397200005},null,{"$f":"SUM(K49,I49,G49,E49,M49,O49)","v":1},{"$f":"SUM(L49,J49,H49,F49,N49,P49)","v":11139.282698600002}]
[]
["15.",{"$f":"ORÇAMENTO!B188","v":"CLIMATIZAÇÃO/REFRIGERAÇÃO"},{"$f":"D51/D60","v":1.0528275170905954},{"$f":"ORÇAMENTO!H188","v":43155.8},{"$nulls":15},{"$f":"PRAZOS!K187","v":0.11700000000000001}]
[{"$nulls":5},{"$f":"$D51*E52","v":0},null,{"$f":"$D51*G52","v":0},null,{"$f":"$D51*I52","v":0},null,{"$f":"$D51*K52","v":0},0.1,{"$f":"$D51*M52","v":4315.5800000000008},0.9,{"$f":"$D51*O52","v":38840.22},null,{"$f":"SUM(K52,I52,G52,E52,M52,O52)","v":1},{"$f":"SUM(L52,J52,H52,F52,N52,P52)","v":43155.8}]
[]
["16.","PISO",{"$f":"D54/D63","v":0.14155548721061734},{"$f":"ORÇAMENTO!H193","v":76189.197706896011},{"$nulls":15},{"$f":"PRAZOS!K192","v":2.8}]
[{"$nulls":5},{"$f":"$D54*E55","v":0},null,{"$f":"$D54*G55","v":0},0.1,{"$f":"$D54*I55","v":7618.9197706896011},0.7,{"$f":"$D54*K55","v":53332.438394827208},0.2,{"$f":"$D54*M55","v":15237.839541379202},null,{"$f":"$D54*O55","v":0},null,{"$f":"SUM(K55,I55,G55,E55,M55,O55)","v":1},{"$f":"SUM(L55,J55,H55,F55,N55,P55)","v":76189.197706896011}]
[]
["17.","SERVIÇOS COMPLEMENTARES",{"$f":"D57/D63","v":8.6723156111556482E-2},{"$f":"ORÇAMENTO!H203","v":46676.874326449994},{"$nulls":15},{"$f":"PRAZOS!K202","v":5.2}]
[{"$nulls":4},0.05,{"$f":"$D57*E58","v":2333.8437163224999},0.05,{"$f":"$D57*G58","v":2333.8437163224999},0.2,{"$f":"$D57*I58","v":9335.3748652899994},0.4,{"$f":"$D57*K58","v":18670.749730579999},0.2,{"$f":"$D57*M58","v":9335.3748652899994},0.1,{"$f":"$D57*O58","v":4667.6874326449997},null,{"$f":"SUM(K58,I58,G58,E58,M58,O58)","v":1.0000000000000002},{"$f":"SUM(L58,J58,H58,F58,N58,P58)","v":46676.874326449994}]
[]
["18.","ADMINISTRAÇÃO LOCAL DA OBRA",{"$f":"D60/D63","v":7.615795134331961E-2},{"$f":"ORÇAMENTO!H218","v":40990.380000000005}]
[{"$nulls":4},{"$f":"SUM(F9:F58)/($D63-$D60)","v":8.1234872840032016E-2},{"$f":"$D60*E61","v":3329.8483069645918},{"$f":"SUM(H9:H58)/($D63-$D60)","v":0.12274077476575443},{"$f":"$D60*G61","v":5031.1909991426855},{"$f":"SUM(J9:J58)/($D63-$D60)","v":0.23241434434748079},{"$f":"$D60*I61","v":9526.7522922540902},{"$f":"SUM(L9:L58)/($D63-$D60)","v":0.26809499977242679},{"$f":"$D60*K61","v":10989.315916771689},{"$f":"SUM(N9:N58)/($D63-$D60)","v":0.16793266112784611},{"$f":"$D60*M61","v":6883.6235940416409},{"$f":"SUM(P9:P58)/($D63-$D60)","v":0.12758234714645997},{"$f":"$D60*O61","v":5229.6488908253104},null,{"$f":"SUM(K61,I61,G61,E61,M61,O61)","v":1},{"$f":"SUM(L61,J61,H61,F61,N61,P61)","v":40990.380000000005}]
[]
["SUBTOTAL",null,null,{"$f":"SUM(D8:D61)","v":538228.50112151261},{"$f":"F63/$D$63","v":8.1234872840032016E-2},{"$f":"SUM(F8:F61)","v":43722.923847487109},{"$f":"H63/$D$63","v":0.12274077476575443},{"$f":"SUM(H8:H61)","v":66062.583228665186},{"$f":"J63/$D$63","v":0.23241434434748079},{"$f":"SUM(J8:J61)","v":125092.02419728368},{"$f":"L63/$D$63","v":0.26809499977242679},{"$f":"SUM(L8:L61)","v":144296.36988568553},{"$f":"N63/$D$63","v":0.16793266112784608},{"$f":"SUM(N8:N61)","v":90386.144488187507},{"$f":"P63/$D$63","v":0.12758234714645997},{"$f":"SUM(P8:P61)","v":68668.455474203642}]
["BDI 27%",null,null,{"$f":"D63*0.27","v":145321.69530280842},null,{"$f":"F63*0.27","v":11805.189438821521},null,{"$f":"H63*0.27","v":17836.897471739601},null,{"$f":"J63*0.27","v":33774.846533266595},null,{"$f":"L63*0.27","v":38960.019869135096},null,{"$f":"N63*0.27","v":24404.259011810627},null,{"$f":"P63*0.27","v":18540.482978034983}]
["VALOR MENSAL",{"$nulls":4},{"$f":"SUM(F63:F64)","v":55528.113286308631},null,{"$f":"SUM(H63:H64)","v":83899.480700404791},null,{"$f":"SUM(J63:J64)","v":158866.87073055026},null,{"$f":"SUM(L63:L64)","v":183256.38975482062},null,{"$f":"SUM(N63:N64)","v":114790.40349999814},null,{"$f":"SUM(P63:P64)","v":87208.938452238624}]
["VALOR ACUMULADO ",null,null,{"$f":"D63+D64","v":683550.19642432104},{"$f":"E63","v":8.1234872840032016E-2},{"$f":"F65","v":55528.113286308631},{"$f":"G63+E66","v":0.20397564760578646},{"$f":"F66+H65","v":139427.59398671341},{"$f":"I63+G66","v":0.43638999195326722},{"$f":"H66+J65","v":298294.46471726371},{"$f":"K63+I66","v":0.70448499172569401},{"$f":"J66+L65","v":481550.85447208432},{"$f":"M63+K66","v":0.87241765285354012},{"$f":"L66+N65","v":596341.25797208247},{"$f":"O63+M66","v":1},{"$f":"N66+P65","v":683550.19642432104}]
[]
[]
[null,"O orçamento foi estimado em  R$ 683.232,58 (Seiscentos e oitenta e três mil, duzentos e trinta e dois reais e ciquenta e oito centavos)"]
[]
[]
[null,"Referência: Orse - Julho /2017 e Sinapi/AL - Agosto /2017"]
[]
[]
[]
[null,"____________________________________________"]
[null,"Carlos Wilson da Silva Diniz"]
[null,"Engenheiro Civil - DIP/GPOS/SINFRA/UFAL"]
[null,"Siape Nº 2222799"]
[]
[]
[]
[null,"Maceió, ____ de ______________ de______"]

{"sheet":"PRAZOS","index":6,"n_rows":219,"n_cols":11,"rows_kept":219,"cut":false,"hidden":false,"merged":[[48,0,48,10],[119,0,119,10],[38,10,40,10],[43,10,47,10],[50,10,52,10],[55,10,65,10],[10,0,10,10],[36,0,36,10],[34,10,35,10],[12,10,32,10],[41,0,41,10],[177,0,177,10],[53,0,53,10],[66,0,66,10],[70,0,70,10],[68,10,69,10],[148,0,148,10],[121,10,147,10],[152,0,152,10],[150,10,151,10],[154,10,167,10],[168,0,168,10],[170,10,176,10],[72,10,115,10],[218,1,218,9],[185,0,185,10],[179,10,184,10],[187,10,189,10],[190,0,190,10],[202,10,215,10],[216,0,216,8],[217,1,217,9],[192,10,200,10]]}
[]
["UNIVERSIDADE FEDERAL DE ALAGOAS - UFAL"]
["SUPERINTENDÊNCIA DE INFRAESTRUTURA - SINFRA"]
["GERENCIA DE PROJETOS,OBRAS E SERVIÇOS DE ENGENHARIA - GPOS"]
[]
["PRAZO ESTIMATIVO PARA OBRA DE REFORMA DO AUDITÓRIO GUEDES DE MIRANDA NO ESPAÇO CULTURAL DA UFAL."]
[]
["ITEM","DESCRIÇÃO DOS SERVIÇOS","FONTE","CÓDIGO","UND","QTD","INDICE(h)","Nº EQUIPES","H/DIA (h)","PRAZO(DIAS)","PRAZO(MÊS)"]
[1,"PROJETOS COMPLEMENTARES",{"$nulls":7},{"$f":"J10","v":3.2156250000000002},{"$f":"ROUND(J9/30,1)","v":0.1}]
["1.1","Projeto de \"as built\"","ORSE (insumos)",7325,"m²",514.5,0.1,2,8,{"$f":"F10*G10/(H10*I10)","v":3.2156250000000002}]
[]
[2,"SERVIÇOS PRELIMINARES",{"$nulls":7},{"$f":"SUM(J13:J32)","v":80.046949999999995},{"$f":"ROUND(J12/30,1)","v":2.7}]
["2.1","Mobilização/Desmobilização:"]
["2.1.1","EXECUÇÃO DE ESCRITÓRIO EM CANTEIRO DE OBRA EM CHAPA DE MADEIRA COMPENSADA, NÃO INCLUSO MOBILIÁRIO E EQUIPAMENTOS. AF_02/2016","SINAPI",93207,"m²",{"$f":"2.2*3.4","v":7.48},0.37,1,8,{"$f":"F14*G14/(H14*I14)","v":0.34595000000000004}]
["2.1.2","EXECUÇÃO DE ALMOXARIFADO EM CANTEIRO DE OBRA EM CHAPA DE MADEIRA COMPENSADA, INCLUSO PRATELEIRAS. AF_02/2016","SINAPI",93208,"m²",12.4,0.15,1,8,0.23249999999999998]
["2.1.3","EXECUÇÃO DE SANITÁRIO E VESTIÁRIO EM CANTEIRO DE OBRA EM CHAPA DE MADEIRA COMPENSADA, NÃO INCLUSO MOBILIÁRIO. AF_02/2016","SINAPI",93212,"m²",14.5,0.37,1,8,0.67062500000000003]
["2.1.4","EXECUÇÃO DE REFEITÓRIO EM CANTEIRO DE OBRA EM CHAPA DE MADEIRA COMPENSADA, NÃO INCLUSO MOBILIÁRIO E EQUIPAMENTOS. AF_02/2016","SINAPI",93210,"m²",19.899999999999999,0.6,1,8,1.4924999999999999]
["2.1.5","Placa de obra em chapa zincada, instalada ","SINAPI","74209/001","m²",6,0.7,1,8,0.52499999999999991]
["2.2","Demolições/Retiradas/Remoções:",{"$nulls":5},1]
["2.2.1","DEMOLICAO DE ALVENARIA DE TIJOLOS FURADOS S/REAPROVEITAMENTO","SINAPI","73899/002","m³",2.1800000000000002,5,1,8,1.3625]
["2.2.2","Remoção de telhamento com telhas onduladas fibrocimento ou aluminio","COMPOSIÇÃO",101,"m²",857,0.22,2,8,11.78375]
["2.2.3","Remoção de painéis verticais de madeira","COMPOSIÇÃO",102,"m²",92.9,0.25,1,8,2.9031250000000002]
["2.2.4","Remoção de piso em assoalho de madeira","COMPOSIÇÃO",103,"m²",105,0.25,1,8,3.28125]
["2.2.5","Demolição de piso cerâmico","COMPOSIÇÃO",104,"m²",21.81,0.7,1,8,1.9083749999999997]
["2.2.6","RETIRADA DE FORRO EM REGUAS DE PVC, INCLUSIVE RETIRADA DE PERFIS","SINAPI",72238,"m²",365.03,0.2,2,8,4.562875]
["2.2.7","Remoção de estrutura metálica chumbada em concreto (alambrado, guarda-corpo)","COMPOSIÇÃO",105,"m²",89.38,3,2,8,16.758749999999999]
["2.2.8","Remoção de poltronas","COMPOSIÇÃO",106,"und",337,0.9,2,8,{"$f":"F27*G27/(H27*I27)","v":18.956250000000001}]
["2.2.9","Remoção de cortinas","COMPOSIÇÃO",107,"und",3,1,1,8,0.375]
["2.2.10","Remoção de pintura(raspagem e/ou lixamento e/ou escovação)","COMPOSIÇÃO",108,"m²",244.73,0.8,2,8,12.236499999999999]
["2.2.11","Demolicao de alvenaria de tijolos macicos s/reaproveitamento (Faixa de calçada para alocação da tubulação de esgoto)","COMPOSIÇÃO",109,"m³",1.29,4,1,8,{"$f":"F30*G30/(H30*I30)","v":0.64500000000000002}]
["2.3","Esquadrias:",{"$nulls":5},1]
["2.3.1","Remoção de esquadria de madeira, com ou sem batente","COMPOSIÇÃO",120,"m²",20.07,0.8,1,8,{"$f":"F32*G32/(H32*I32)","v":2.0070000000000001}]
[]
[3,"MOVIMENTO DE TERRA",{"$nulls":7},{"$f":"SUM(J35:J36)","v":11.445},{"$f":"ROUND(J34/30,1)","v":0.4}]
["3.1","Escavação manual de vala ou cava em material de 1ª categoria, profundidade até 1,50m (Escavação para alocação da tubulação de esgoto na calçada)","COMPOSIÇÃO",110,"m³",15.41,3,1,8,{"$f":"F35*G35/(H35*I35)","v":5.7787500000000005}]
["3.2","REATERRO DE VALA COM COMPACTAÇÃO MANUAL","SINAPI","73964/006","m³",15.11,3,1,8,5.6662499999999998]
[]
[4,"INFRAESTRUTURA",{"$nulls":7},{"$f":"SUM(J39:J41)","v":8.6888870000000011},{"$f":"ROUND(J38/30,1)","v":0.3}]
["4.1","Caixa de alvenaria de tijolo maciço (0,10m) dimensões interna 30x30x30cm revestida internamente com argamassa 1:3 e tampa de concreto","COMPOSIÇÃO",111,"und",5,2.0299999999999998,1,8,{"$f":"F39*G39/(H39*I39)","v":1.2687499999999998}]
["4.2","ALVENARIA EM TIJOLO CERAMICO MACICO 5X10X20CM 1/2 VEZ (ESPESSURA 10CM), ASSENTADO COM ARGAMASSA TRACO 1:2:8 (CIMENTO, CAL E AREIA) (Recomposição da calçada escavada)","SINAPI",72132,"m²",12.84,0.93440000000000001,1,8,1.4997119999999999]
["4.3","CONTRAPISO EM ARGAMASSA TRAÇO 1:4 (CIMENTO E AREIA), PREPARO MECÂNICO COM BETONEIRA 400 L, APLICADO EM ÁREAS MOLHADAS SOBRE LAJE, ADERIDO, ESPESSURA 3CM. AF_06/2014 (contrapiso da calçada ao longo do trajeto da tubulação do esgoto)","SINAPI",87745,"m²",75.180000000000007,0.63,1,8,5.9204250000000007]
[]
[5,"SUPERESTRUTURA",{"$nulls":7},{"$f":"SUM(J44:J48)","v":0.62212375000000009},{"$f":"ROUND(J43/30,3)","v":2.1000000000000001E-2}]
["5.1","Laje pré-fabricada treliçada para piso ou cobertura, intereixo 38cm, h=12cm, el. enchimento em EPS h=8cm, inclusive escoramento em madeira e capeamento 4cm (Laje da entrada principal do auditório)","COMPOSIÇÃO",122,"m²",1.62,1.88,1,8,0.38069999999999998]
["5.2","Concretagem de vigas com concreto simples com preparo mecânico em betoneira de 400 L, fck=25mpa, inclui lançamento, adensamento e acabamento (cintas para apoio da laje da entrada principal do auditório)","COMPOSIÇÃO",123,"m³",0.03,10.717000000000001,1,8,4.0188750000000002E-2]
["5.3","MONTAGEM E DESMONTAGEM DE FÔRMA DE VIGA, ESCORAMENTO METÁLICO, PÉ-DIREITO SIMPLES, EM CHAPA DE MADEIRA RESINADA, 2 UTILIZAÇÕES. AF_12/2015","SINAPI",92452,"m²",0.72,1.7689999999999999,1,8,0.15920999999999999]
["5.4","ARMAÇÃO DE PILAR OU VIGA DE UMA ESTRUTURA CONVENCIONAL DE CONCRETO ARMADO EM UM EDIFÍCIO DE MÚLTIPLOS PAVIMENTOS UTILIZANDO AÇO CA-60 DE 5,0MM - MONTAGEM. AF_12/2015","SINAPI",92759,"kg",1,0.1241,1,8,1.55125E-2]
["5.5","ARMAÇÃO DE PILAR OU VIGA DE UMA ESTRUTURA CONVENCIONAL DE CONCRETO ARMADO EM UM EDIFÍCIO DE MÚLTIPLOS PAVIMENTOS UTILIZANDO AÇO CA-50 DE 8.0 MM - MONTAGEM. AF_12/2015","SINAPI",92761,"kg",3,7.0699999999999999E-2,1,8,2.6512500000000001E-2]
[]
[6,"ALVENARIA/VEDAÇÃO/DIVISÓRIA",{"$nulls":7},{"$f":"SUM(J51:J53)","v":12.774496500000001},{"$f":"ROUND(J50/30,1)","v":0.4}]
["6.1","(COMPOSIÇÃO REPRESENTATIVA) DO SERVIÇO DE ALVENARIA DE VEDAÇÃO DE BLOCOS VAZADOS DE CERÂMICA DE 9X19X19CM (ESPESSURA 9CM), PARA EDIFICAÇÃO HABITACIONAL UNIFAMILIAR (CASA) E EDIFICAÇÃO PÚBLICA PADRÃO. AF_11/2014","SINAPI",89168,"m²",{"$f":"9.19+3.05*9.4","v":37.86},1.98,1,8,{"$f":"F51*G51/(H51*I51)","v":9.3703500000000002}]
["6.2","PAREDE COM PLACAS DE GESSO ACARTONADO (DRYWALL), PARA USO INTERNO, COM DUAS FACES DUPLAS E ESTRUTURA METÁLICA COM GUIAS DUPLAS, COM VÃOS. AF_06/2017_P","SINAPI",96369,"m²",17.28,1.0548999999999999,1,8,2.2785839999999999]
["6.3","Parede de bloco de gesso (50 x 65cm) - fornecimento e execução (Fechamento das janelas da região do palco)","ORSE",10565,"m²",{"$f":"2.9*1.07+1.45*1.07+1.45*1+2.9*1","v":9.0045000000000002},1,1,8,1.1255625]
[]
[7,"ESQUADRIAS",{"$nulls":7},{"$f":"SUM(J56:J65)","v":9.1673749999999998},{"$f":"ROUND(J55/30,1)","v":0.3}]
["7.1","De madeira:"]
["7.1.1","Porta de giro em madeira compensada 01 folha lisa  (0,80m x 2,10m) em quadro estrutural de madeira, preenchido com lâminas em chapa de compensado 4mm de espessura, revestida com laminado melamínico madeirado (8mm), tonalidade idêntica ao painel da parede adjacente, inclui alizares. (tonalidade a ser definida pelo setor de Arquitetura da SINFRA) ( P2).","COMPOSIÇÃO",126,"und",1,2.9769999999999999,1,8,0.37212499999999998]
["7.1.2","Porta de giro em madeira compensada 01 folha lisa  (0,92m x 2,10m) em quadro estrutural de madeira, preenchido com lâminas em chapa de compensado 4mm de espessura, revestida com laminado melamínico na cor branco, com bandeira fixa com vidro e madeira, inclui alizares . (tonalidade a ser definida pelo setor de Arquitetura da SINFRA) ( P3).","COMPOSIÇÃO",127,"und",1,2.9769999999999999,1,8,0.37212499999999998]
["7.1.3","Porta de giro em madeira compensada 01 folha lisa  (0,90m x 2,10m) em quadro estrutural de madeira, preenchido com lâminas em chapa de compensado 4mm de espessura, revestida com laminado melamínico madeirado (8mm), tonalidade idêntica ao painel da parede adjacente, com bandeira fixa com vidro e madeira, inclui alizares . (tonalidade a ser definida pelo setor de Arquitetura da SINFRA) ( P4).","COMPOSIÇÃO",128,"und",1,2.9769999999999999,1,8,0.37212499999999998]
["7.1.4","Porta de giro em madeira compensada 01 folha lisa  (0,90m x 2,10m) em quadro estrutural de madeira, preenchido com lâminas em chapa de compensado 4mm de espessura, revestida com laminado melamínico na cor branco (8mm), com bandeira fixa com vidro e madeira, inclui alizarees . ( P8).","COMPOSIÇÃO",130,"und",1,2.9769999999999999,1,8,0.37212499999999998]
["7.1.5","Revisão de esquadria de madeira (P6 P7)","COMPOSIÇÃO",124,"m²",54.57,0.9,1,8,6.1391249999999999]
["7.2","De ferro:",{"$nulls":5},1]
["7.2.1","Revisão de esquadria de ferro ","COMPOSIÇÃO",125,"m²",13.02,0.9,1,8,1.46475]
["7.3","Vidro:",{"$nulls":5},1]
["7.3.1","PORTA DE VIDRO TEMPERADO, DE GIRO, COM 02 FOLHAS DE 1,115X2,10M, ESPESSURA 10MM, INCLUSIVE ACESSORIOS ( P5)","COMPOSIÇÃO",129,"und",1,0.6,1,8,7.4999999999999997E-2]
["7.3.2","Janela em alumínio, cor N/P/B, tipo moldura-vidro, de correr, 1F+1M, com vidro 4 mm (J6 da sala de som)","COMPOSIÇÃO",161,"und",1.6,1,1,8,{"$f":"F66*G66/(H66*I66)","v":0.2}]
[]
[8,"COBERTURA",{"$nulls":7},{"$f":"SUM(J69:J70)","v":33.208750000000002},{"$f":"ROUND(J68/30,1)","v":1.1000000000000001}]
["8.1","Telhamento com telha de alumínio, ondulada, dupla, termoacustica, esp= 0,7 mm, com enchimento em poliuretano/lã de vidro, esp = 50 mm, inclusive elementos de fixação, pré-pintadas  com pintura eletrostática a pó na cor branco, incluindo acabamento tapa onda  (fornecimento e montagem)","COMPOSIÇÃO",119,"m²",857,0.22,2,8,11.78375]
["8.2"," Imunização de madeira contra cupim, com aplicação de 01 demão de Pentox, similar ou qualidade superior","COMPOSIÇÃO",139,"m²",{"$f":"F69","v":857},0.4,2,8,{"$f":"F70*G70/(H70*I70)","v":21.425000000000001}]
[]
[9,"INSTALAÇÕES ELÉTRICAS ",{"$nulls":7},{"$f":"SUM(J73:J116)","v":21.390612499999996},{"$f":"ROUND(J72/30,1)","v":0.7}]
["9.1","CAIXA RETANGULAR 4\" X 2\" BAIXA (0,30 M DO PISO), PVC, INSTALADA EM PAREDE - FORNECIMENTO E INSTALAÇÃO. AF_12/2015","SINAPI",91941,"und",18,0.14499999999999999,1,8,0.32624999999999998]
["9.2","CAIXA RETANGULAR 4\" X 2\" MÉDIA (1,30 M DO PISO), PVC, INSTALADA EM PAREDE - FORNECIMENTO E INSTALAÇÃO. AF_12/2015","SINAPI",91940,"und",6,0.247,1,8,0.18525]
["9.3","CAIXA RETANGULAR 4\" X 2\" ALTA (2,00 M DO PISO), PVC, INSTALADA EM PAREDE - FORNECIMENTO E INSTALAÇÃO. AF_12/2015","SINAPI",91939,"und",10,0.51900000000000002,1,8,0.64875000000000005]
["9.4","TOMADA BAIXA DE EMBUTIR (1 MÓDULO), 2P+T 10 A, INCLUINDO SUPORTE E PLACA - FORNECIMENTO E INSTALAÇÃO. AF_12/2015","SINAPI",92000,"und",14,0.23499999999999999,1,8,0.41125]
["9.5","TOMADA BAIXA DE EMBUTIR (2 MÓDULOS), 2P+T 10 A, INCLUINDO SUPORTE E PLACA - FORNECIMENTO E INSTALAÇÃO. AF_12/2015","SINAPI",92008,"und",4,0.40899999999999997,1,8,0.20449999999999999]
["9.6","TOMADA MÉDIA DE EMBUTIR (1 MÓDULO), 2P+T 10 A, INCLUINDO SUPORTE E PLACA - FORNECIMENTO E INSTALAÇÃO. AF_12/2015","SINAPI",91996,"und",3,0.308,1,8,0.11549999999999999]
["9.7","TOMADA MÉDIA DE EMBUTIR (2 MÓDULOS), 2P+T 10 A, INCLUINDO SUPORTE E PLACA - FORNECIMENTO E INSTALAÇÃO. AF_12/2015","SINAPI",92004,"und",1,0.55500000000000005,1,8,6.9375000000000006E-2]
["9.8","TOMADA ALTA DE EMBUTIR (1 MÓDULO), 2P+T 10 A, INCLUINDO SUPORTE E PLACA - FORNECIMENTO E INSTALAÇÃO. AF_12/2015","SINAPI",91992,"und",5,0.496,1,8,0.31]
["9.9","INTERRUPTOR SIMPLES (1 MÓDULO), 10A/250V, INCLUINDO SUPORTE E PLACA -FORNECIMENTO E INSTALAÇÃO. AF_12/2015","SINAPI",91953,"und",1,0.22500000000000001,1,8,2.8125000000000001E-2]
["9.10","INTERRUPTOR SIMPLES (2 MÓDULOS), 10A/250V, INCLUINDO SUPORTE E PLACA -FORNECIMENTO E INSTALAÇÃO. AF_12/2015","SINAPI",91959,"und",1,0.39,1,8,4.8750000000000002E-2]
["9.11","Luminária de embutir no forro, c/ lâmpada LED 10w,  formato tradicional, Forncecimento e Instalação (Laterais Plateia) ","COMPOSIÇÃO",112,"und",18,0.7,1,8,1.575]
["9.12","Luminária de embutir aberta c/ 2 lâmpadas tubo led T8 2 x 18/20 w Base G13 (Palco e Camarim)","COMPOSIÇÃO",113,"und",19,1,1,8,2.375]
["9.13","Lâmpada LED Tubular T8 Bivolt 1,20m 18/20W, Base G13 (Iluminação indireta Platéia)","COMPOSIÇÃO",114,"und",168,0.1,1,8,2.1]
["9.14","Luminária tipo Arandela LED  6W com foco bidirecional para cima e para baixo  com  caixa em alumínio e pintura epóxidica na cor pereta - Fornecimento (luz amarela)","COMPOSIÇÃO",115,"und",2,0.1,1,8,2.5000000000000001E-2]
["9.15","CABO DE COBRE FLEXÍVEL ISOLADO, 1,5 MM², ANTI-CHAMA 0,6/1,0 KV, PARA CIRCUITOS TERMINAIS - FORNECIMENTO E INSTALAÇÃO. AF_12/2015 (AZUL CLARO)","SINAPI",91925,"m",65.8,2.4E-2,1,8,0.19739999999999999]
["9.16","CABO DE COBRE FLEXÍVEL ISOLADO, 1,5 MM², ANTI-CHAMA 0,6/1,0 KV, PARA CIRCUITOS TERMINAIS - FORNECIMENTO E INSTALAÇÃO. AF_12/2015 (BRANCO)","SINAPI",91925,"m",{"$f":"27.8+18.9","v":46.7},2.4E-2,1,8,0.1401]
["9.17","CABO DE COBRE FLEXÍVEL ISOLADO, 1,5 MM², ANTI-CHAMA 0,6/1,0 KV, PARA CIRCUITOS TERMINAIS - FORNECIMENTO E INSTALAÇÃO. AF_12/2015 (VERMELHO OU PRETO)","SINAPI",91925,"m",34.1,2.4E-2,1,8,0.1023]
["9.18","CABO DE COBRE FLEXÍVEL ISOLADO, 2,5 MM², ANTI-CHAMA 0,6/1,0 KV, PARA CIRCUITOS TERMINAIS - FORNECIMENTO E INSTALAÇÃO. AF_12/2015 (AZUL CLARO)","SINAPI",91927,"m",691.6,0.03,1,8,2.5935000000000001]
["9.19","CABO DE COBRE FLEXÍVEL ISOLADO, 2,5 MM², ANTI-CHAMA 0,6/1,0 KV, PARA CIRCUITOS TERMINAIS - FORNECIMENTO E INSTALAÇÃO. AF_12/2015 (BRANCO)","SINAPI",91927,"m",{"$f":"203.6+4.3","v":207.9},0.03,1,8,0.77962500000000001]
["9.20","CABO DE COBRE FLEXÍVEL ISOLADO, 2,5 MM², ANTI-CHAMA 0,6/1,0 KV, PARA CIRCUITOS TERMINAIS - FORNECIMENTO E INSTALAÇÃO. AF_12/2015 (VERMELHO OU PRETO)","SINAPI",91927,"m",{"$f":"389.8+369.5","v":759.3},0.03,1,8,2.8473749999999995]
["9.21","CABO DE COBRE FLEXÍVEL ISOLADO, 2,5 MM², ANTI-CHAMA 0,6/1,0 KV, PARA CIRCUITOS TERMINAIS - FORNECIMENTO E INSTALAÇÃO. AF_12/2015 (VERDE OU VERDE-AMARELO)","SINAPI",91927,"m",306.2,0.03,1,8,1.14825]
["9.22","CABO DE COBRE FLEXÍVEL ISOLADO, 4 MM², ANTI-CHAMA 0,6/1,0 KV, PARA CIRCUITOS TERMINAIS - FORNECIMENTO E INSTALAÇÃO. AF_12/2015 (AZUL CLARO)","SINAPI",91929,"m",40.5,0.04,1,8,0.20250000000000001]
["9.23","CABO DE COBRE FLEXÍVEL ISOLADO, 4 MM², ANTI-CHAMA 0,6/1,0 KV, PARA CIRCUITOS TERMINAIS - FORNECIMENTO E INSTALAÇÃO. AF_12/2015 (VERMELHO OU PRETO)","SINAPI",91929,"m",{"$f":"22.1+18.4","v":40.5},0.04,1,8,0.20250000000000001]
["9.24","CABO DE COBRE FLEXÍVEL ISOLADO, 4 MM², ANTI-CHAMA 0,6/1,0 KV, PARA CIRCUITOS TERMINAIS - FORNECIMENTO E INSTALAÇÃO. AF_12/2015 (VERDE OU VERDE-AMARELO)","SINAPI",91929,"m",40.5,0.04,1,8,0.20250000000000001]
["9.25","CABO DE COBRE FLEXÍVEL ISOLADO, 6 MM², ANTI-CHAMA 0,6/1,0 KV, PARA CIRCUITOS TERMINAIS - FORNECIMENTO E INSTALAÇÃO. AF_12/2015 (AZUL CLARO)","SINAPI",91931,"m",0.9,5.1999999999999998E-2,1,8,5.8500000000000002E-3]
["9.26","CABO DE COBRE FLEXÍVEL ISOLADO, 6 MM², ANTI-CHAMA 0,6/1,0 KV, PARA CIRCUITOS TERMINAIS - FORNECIMENTO E INSTALAÇÃO. AF_12/2015 (VERMELHO OU PRETO)","SINAPI",91931,"m",2.7,5.1999999999999998E-2,1,8,1.755E-2]
["9.27","CABO DE COBRE FLEXÍVEL ISOLADO, 6 MM², ANTI-CHAMA 0,6/1,0 KV, PARA CIRCUITOS TERMINAIS - FORNECIMENTO E INSTALAÇÃO. AF_12/2015 (VERDE OU VERDE-AMARELO)","SINAPI",91931,"m",0.9,5.1999999999999998E-2,1,8,{"$f":"F99*G99/(H99*I99)","v":5.8500000000000002E-3}]
["9.28","CABO DE COBRE FLEXÍVEL ISOLADO, 16 MM², ANTI-CHAMA 0,6/1,0 KV, PARA CIRCUITOS TERMINAIS - FORNECIMENTO E INSTALAÇÃO. AF_12/2015 (AZUL CLARO)","SINAPI",91935,"m",1.3,0.115,1,8,1.8687500000000003E-2]
["9.29","CABO DE COBRE FLEXÍVEL ISOLADO, 16 MM², ANTI-CHAMA 0,6/1,0 KV, PARA CIRCUITOS TERMINAIS - FORNECIMENTO E INSTALAÇÃO. AF_12/2015 (VERMELHO OU PRETO)","SINAPI",91935,"m",3.9,0.115,1,8,5.6062500000000001E-2]
["9.30","CABO DE COBRE FLEXÍVEL ISOLADO, 16 MM², ANTI-CHAMA 0,6/1,0 KV, PARA CIRCUITOS TERMINAIS - FORNECIMENTO E INSTALAÇÃO. AF_12/2015 (VERDE OU VERDE-AMARELO)","SINAPI",91935,"m",1.3,0.115,1,8,1.8687500000000003E-2]
["9.31","ELETRODUTO FLEXÍVEL CORRUGADO, PVC, DN 25 MM (3/4\"), PARA CIRCUITOS TERMINAIS, INSTALADO EM PAREDE - FORNECIMENTO E INSTALAÇÃO. AF_12/2015","SINAPI",91854,"m",50,0.14399999999999999,1,8,0.89999999999999991]
["9.32","ELETRODUTO FLEXÍVEL CORRUGADO, PVC, DN 32 MM (1\"), PARA CIRCUITOS TERMINAIS, INSTALADO EM PAREDE - FORNECIMENTO E INSTALAÇÃO. AF_12/2015","SINAPI",91856,"m",20,0.16400000000000001,1,8,0.41000000000000003]
["9.33","ELETRODUTO RÍGIDO ROSCÁVEL, PVC, DN 40 MM (1 1/4\"), PARA CIRCUITOS TERMINAIS, INSTALADO EM PAREDE - FORNECIMENTO E INSTALAÇÃO. AF_12/2015","SINAPI",91873,"m",20,0.221,1,8,0.55249999999999999]
["9.34","DISJUNTOR MONOPOLAR TIPO DIN, CORRENTE NOMINAL DE 10A - FORNECIMENTO E INSTALAÇÃO. AF_04/2016","SINAPI",93653,"und",17,3.5000000000000003E-2,1,8,7.4375000000000011E-2]
["9.35","DISJUNTOR MONOPOLAR TIPO DIN, CORRENTE NOMINAL DE 16A - FORNECIMENTO E INSTALAÇÃO. AF_04/2016","SINAPI",93654,"und",4,4.8000000000000001E-2,1,8,2.4E-2]
["9.36","DISJUNTOR MONOPOLAR TIPO DIN, CORRENTE NOMINAL DE 20A - FORNECIMENTO E INSTALAÇÃO. AF_04/2016","SINAPI",93655,"und",2,6.6000000000000003E-2,1,8,1.6500000000000001E-2]
["9.37","DISJUNTOR TERMOMAGNÉTICO TRIPOLAR TIPO DIN, CORRENTE NOMINAL DE 16A - FORNECIMENTO E INSTALAÇÃO. AF_04/2016","SINAPI",93668,"und",5,0.14299999999999999,1,8,8.9374999999999996E-2]
["9.38","DISJUNTOR TERMOMAGNÉTICO TRIPOLAR TIPO DIN, CORRENTE NOMINAL DE 20A - FORNECIMENTO E INSTALAÇÃO. AF_04/2016","SINAPI",93669,"und",1,0.19900000000000001,1,8,{"$f":"F110*G110/(H110*I110)","v":2.4875000000000001E-2}]
["9.39","Disjuntor termomagnetico tripolar 63 A, padrão DIN (Europeu - linha branca), curva C","COMPOSIÇÃO",116,"und",1,1,1,8,{"$f":"F111*G111/(H111*I111)","v":0.125}]
["9.40","Disjuntor termomagnetico tripolar 100 A, padrão DIN (Europeu - linha branca), 10KA","COMPOSIÇÃO",117,"und",1,2,1,8,{"$f":"F112*G112/(H112*I112)","v":0.25}]
["9.41","Dispositivo de proteção contra surto de tensão DPS 60kA - 275v","COMPOSIÇÃO",118,"und",4,0.3,1,8,0.15]
["9.42","QUADRO DE DISTRIBUICAO DE ENERGIA DE EMBUTIR, EM CHAPA METALICA, PARA 18 DISJUNTORES TERMOMAGNETICOS MONOPOLARES, COM BARRAMENTO TRIFASICO E NEUTRO, FORNECIMENTO E INSTALACAO","SINAPI","74131/004","und",1,2.5,1,8,0.3125]
["9.43","QUADRO DE DISTRIBUICAO DE ENERGIA DE EMBUTIR, EM CHAPA METALICA, PARA 24 DISJUNTORES TERMOMAGNETICOS MONOPOLARES, COM BARRAMENTO TRIFASICO E NEUTRO, FORNECIMENTO E INSTALACAO","SINAPI","74131/005","und",2,3,1,8,0.75]
["9.44","QUADRO DE DISTRIBUICAO DE ENERGIA DE EMBUTIR, EM CHAPA METALICA, PARA 50 DISJUNTORES TERMOMAGNETICOS MONOPOLARES, COM BARRAMENTO TRIFASICO E NEUTRO, FORNECIMENTO E INSTALACAO","SINAPI","74131/008","und",1,6,1,8,0.75]
["9.45","LÂMPADA LED 6 W BIVOLT BRANCA, FORMATO TRADICIONAL (BASE E27) - FORNECIMENTO E INSTALAÇÃO (Espelhos camarim)","SINAPI",93042,"und",44,2.5,1,8,{"$f":"F117*G117/(H117*I117)","v":13.75}]
["9.46","Soquete ou bocal de porcelana E27 de tempo, ref.MT-2233, marca Decorlux, similar ou de qualidade superior (Espelhos camarim)","COMPOSIÇÃO",156,"und",{"$f":"F117","v":44},3,1,8,16.5]
["9.47","LAMPADA LED TUBULAR  9/10 W BASE G13 - FORNECIMENTO E INSTALACAO (Espelhos camarim)","COMPOSIÇÃO",157,"und",3,6,1,8,2.25]
[]
[10,"INSTALAÇÕES HIDRO-SANITÁRIAS",{"$nulls":7},{"$f":"SUM(J122:J148)","v":6.9549124999999998},{"$f":"ROUND(J121/30,1)","v":0.2}]
["10.1","Água Fria:"]
["10.1.1","TUBO, PVC, SOLDÁVEL, DN 32MM, INSTALADO EM RAMAL DE DISTRIBUIÇÃO DE ÁGUA - FORNECIMENTO E INSTALAÇÃO. AF_12/2014_P","SINAPI",89403,"m",{"$f":"2+1.05+21.45+30.1","v":54.6},0.13400000000000001,1,8,0.91455000000000009]
["10.1.2","TUBO, PVC, SOLDÁVEL, DN 25MM, INSTALADO EM RAMAL OU SUB-RAMAL DE ÁGUA - FORNECIMENTO E INSTALAÇÃO. AF_12/2014_P","SINAPI",89356,"m",{"$f":"2.7+1.4","v":4.0999999999999996},0.36899999999999999,1,8,0.18911249999999999]
["10.1.3","REGISTRO DE GAVETA COM CANOPLA Ø 25MM (1) - FORNECIMENTO E INSTALAÇÃO","SINAPI",89353,"und",1,0.2,1,8,2.5000000000000001E-2]
["10.1.4","JOELHO 90 GRAUS, PVC, SOLDÁVEL, DN 25MM, INSTALADO EM RAMAL OU SUB-RAMAL DE ÁGUA - FORNECIMENTO E INSTALAÇÃO. AF_12/2014_P","SINAPI",89362,"und",1,0.15,1,8,1.8749999999999999E-2]
["10.1.5","JOELHO 90 GRAUS COM BUCHA DE LATÃO, PVC, SOLDÁVEL, DN 25MM, X 3/4\" INSTALADO EM RAMAL OU SUB-RAMAL DE ÁGUA - FORNECIMENTO E INSTALAÇÃO. AF_12/2014_P","SINAPI",89366,"und",1,0.15,1,8,1.8749999999999999E-2]
["10.1.6","JOELHO 90 GRAUS, PVC, SOLDÁVEL, DN 32MM, INSTALADO EM RAMAL DE DISTRIBUIÇÃO DE ÁGUA - FORNECIMENTO E INSTALAÇÃO. AF_12/2014_P","SINAPI",89413,"und",3,0.107,1,8,4.0125000000000001E-2]
["10.1.7","TÊ COM BUCHA DE LATÃO NA BOLSA CENTRAL, PVC, SOLDÁVEL, DN 25 MM X 3/4 , INSTALADO EM RESERVAÇÃO DE ÁGUA DE EDIFICAÇÃO QUE POSSUA RESERVATÓRIO DE FIBRA/FIBROCIMENTO FORNECIMENTO E INSTALAÇÃO. AF_06/2016","SINAPI",94689,"und",1,0.159,1,8,1.9875E-2]
["10.1.8","LUVA DE REDUÇÃO, PVC, SOLDÁVEL, DN 32MM X 25MM, INSTALADO EM RAMAL OU SUB-RAMAL DE ÁGUA - FORNECIMENTO E INSTALAÇÃO. AF_12/2014","SINAPI ",89380,"und",1,0.1,1,8,1.2500000000000001E-2]
["10.1.9","ADAPTADOR CURTO COM BOLSA E ROSCA PARA REGISTRO, PVC, SOLDÁVEL, DN 25MM X 3/4, INSTALADO EM RAMAL OU SUB-RAMAL DE ÁGUA - FORNECIMENTO E INSTALAÇÃO. AF_12/2014\nTALAÇÃO. AF_12/2014 ","SINAPI ",89383,"und",2,0.1,1,8,2.5000000000000001E-2]
["10.1.10","ADAPTADOR COM FLANGE E ANEL DE VEDAÇÃO, PVC, SOLDÁVEL, DN 32 MM X 1 , INSTALADO EM RESERVAÇÃO DE ÁGUA DE EDIFICAÇÃO QUE POSSUA RESERVATÓRIO DE FIBRA/FIBROCIMENTO FORNECIMENTO E INSTALAÇÃO. AF_06/2016","SINAPI ",94704,"und",1,0.13600000000000001,1,8,1.7000000000000001E-2]
["10.1.11","REGISTRO DE ESFERA, PVC, SOLDÁVEL, DN 32 MM, INSTALADO EM RESERVAÇÃO DE ÁGUA DE EDIFICAÇÃO QUE POSSUA RESERVATÓRIO DE FIBRA/FIBROCIMENTO  FORNECIMENTO E INSTALAÇÃO. AF_06/2016","SINAPI ",94490,"und",1,0.159,1,8,1.9875E-2]
["10.2","Louças, Metais e Acessórios:"]
["10.2.1","Cuba de embutir oval em louça branca, 35 x 50cm ou equivalente, incluso válvula em metal cromado e sifão flexível em pvc - fornecimento e instalação. af_12/2013","SINAPI",86937,"und",2,0.85,1,8,0.21249999999999999]
["10.2.2","ENGATE FLEXÍVEL EM PLÁSTICO BRANCO, 1/2\" X 30CM - FORNECIMENTO E INSTALAÇÃO. AF_12/2013","SINAPI",86884,"und",2,0.15,1,8,3.7499999999999999E-2]
["10.2.3","TORNEIRA CROMADA DE MESA, 1/2\" OU 3/4\", PARA LAVATÓRIO, PADRÃO MÉDIO - FORNECIMENTO E INSTALAÇÃO.","SINAPI",86915,"und",2,0.1,1,8,2.5000000000000001E-2]
["10.2.4","Fornecimento e colocação de gancho com bucha 4,4 x 70 - 8mm","COMPOSIÇÃO",154,"und",9,0.2,1,8,0.22500000000000001]
["10.2.5","Barra de apoio em aço inox polido, l=50, d=38.1 mm","ORSE",2391,"und",1,null,1,8,0]
["10.2.6","Bancada em granito branco fortaleza, e = 2cm","COMPOSIÇÃO",121,"m²",{"$f":"1.3*0.5","v":0.65},1,1,8,8.1250000000000003E-2]
["10.2.7","Testeira em granito branco fortaleza, l=10cm (colado), esp.=2cm - fornecimento e colocação","ORSE",11825,"m",1.3,1,1,8,0.16250000000000001]
["10.3","Esgoto e Água Pluvial:"]
["10.3.1","JOELHO 90 GRAUS, PVC, SERIE NORMAL, ESGOTO PREDIAL, DN 40 MM, JUNTA SOLDÁVEL, FORNECIDO E INSTALADO EM RAMAL DE DESCARGA OU RAMAL DE ESGOTO SANITÁRIO. AF_12/2014_P","SINAPI",89724,"und",{"$f":"2+1+1+1","v":5},0.1,1,8,6.25E-2]
["10.3.2","TUBO PVC, SERIE NORMAL, ESGOTO PREDIAL, DN 40 MM, FORNECIDO E INSTALADO EM RAMAL DE DESCARGA OU RAMAL DE ESGOTO SANITÁRIO. AF_12/2014_P","SINAPI",89711,"m",{"$f":"0.6+0.6+6.11+5.5","v":12.81},0.3,1,8,0.480375]
["10.3.3","TUBO PVC, SERIE NORMAL, ESGOTO PREDIAL, DN 50 MM, FORNECIDO E INSTALADO EM RAMAL DE DESCARGA OU RAMAL DE ESGOTO SANITÁRIO. AF_12/2014_P","SINAPI",89712,"m",66.400000000000006,0.38,1,8,3.1540000000000004]
["10.3.4","RALO SIFONADO, PVC, DN 100 X 40 MM, JUNTA SOLDÁVEL, FORNECIDO E INSTALADO EM RAMAL DE DESCARGA OU EM RAMAL DE ESGOTO SANITÁRIO. AF_12/2014_P","SINAPI",89709,"und",1,7.0000000000000007E-2,1,8,8.7500000000000008E-3]
["10.3.5","CAIXA DE INSPEÇÃO EM ALVENARIA DE TIJOLO MACIÇO 60X60X60CM, REVESTIDA INTERNAMENTO COM BARRA LISA (CIMENTO E AREIA, TRAÇO 1:4) E=2,0CM, COMTAMPA PRÉ-MOLDADA DE CONCRETO E FUNDO DE CONCRETO 15MPA TIPO C - ESCAVAÇÃO E CONFECÇÃO","SINAPI","74104/001","und",5,1.9,1,8,1.1875]
["10.3.6","JUNÇÃO SIMPLES, PVC, SERIE NORMAL, ESGOTO PREDIAL, DN 40 MM, JUNTA SOLDÁVEL, FORNECIDO E INSTALADO EM RAMAL DE DESCARGA OU RAMAL DE ESGOTO SANITÁRIO. AF_12/2014","SINAPI",89783,"und",1,0.14000000000000001,1,8,1.7500000000000002E-2]
[]
[11,"IMPERMEABILIZAÇÃO",{"$nulls":7},{"$f":"SUM(J151:J152)","v":22.112500000000001},{"$f":"ROUND(J150/30,1)","v":0.7}]
["11.1","IMPERMEABILIZACAO DE SUPERFICIE COM MANTA ASFALTICA (COM POLIMEROS TIPO APP), E=4 MM (Laje e Calhas)","SINAPI",83738,"m²",122,0.45,1,8,{"$f":"F151*G151/(H151*I151)","v":6.8624999999999998}]
["11.2","PISO CIMENTADO TRACO 1:3 (CIMENTO E AREIA) ACABAMENTO LISO ESPESSURA 3,0CM, PREPARO MANUAL DA ARGAMASSA","SINAPI","73922/005","m²",122,1,1,8,15.25]
[]
[12,"INSTALAÇÃO DE COMBATE E INCÊNDIO  E PÂNICO",{"$nulls":7},{"$f":"SUM(J155:J168)","v":5.8158189999999994},{"$f":"ROUND(J154/30,1)","v":0.2}]
["12.1","EXTINTOR DE PQS 12KG, CLASSE BC - FORNECIMENTO E INSTALACAO","COMPOSIÇÃO",144,"und",2,0.5,1,8,0.125]
["12.2","EXTINTOR INCENDIO AGUA-PRESSURIZADA 10L INCL SUPORTE PAREDE, SINALIZAÇÃO, FORNECIMENTO E COLOCACÃO","COMPOSIÇÃO",145,"und",2,0.5,1,8,0.125]
["12.3","Luminária de emergência 2 x 8w, G-LIGHT, similar ou qualidade superior","COMPOSIÇÃO",146,"und",7,0.5,1,8,0.4375]
["12.4","Porta corta fogo, de abrir, 02 folhas, em chapa de aço galvanizado nº24, batente em chapa nº18, classe 90, isolante em manta cerâmica incombustível e=5cm, dobradiças tipo helicoidal em aço 1010/1020, e fechadura reversível sem chave","COMPOSIÇÃO",147,"m²",5.04,2.38,1,8,1.4993999999999998]
["12.5","Barra antipânico simples sem chave para uma porta ref. MH2585, similar ou qualidade superior","COMPOSIÇÃO",148,"und",4,0.3,1,8,0.15]
["12.6","Detector de fumaça óptico endereçável, modelo VRE-F, marca VERIN, similar ou de qualidade superior","COMPOSIÇÃO",149,"und",10,0.5,1,8,0.625]
["12.7","Central de alarme e detecção de incendio, capacidade: 8 laços, com 2 linhas, mod.VR-8L, Verin, similar ou de qualidade superior","COMPOSIÇÃO",150,"und",1,6.5,1,8,0.8125]
["12.8","Acionador manual (botoeira) tipo quebra-vidro, p/instal. Incendio","COMPOSIÇÃO",151,"und",2,0.5,1,8,0.125]
["12.9","Avisador sonoro tipo sirene para incêndio - Fornecimento","ORSE",10446,"und",2,null,1,8,0]
["12.10","ELETRODUTO DE AÇO GALVANIZADO, CLASSE LEVE, DN 25 MM (1), APARENTE INSTALADO EM TETO - FORNECIMENTO E INSTALAÇÃO. AF_11/2016_P","SINAPI",95746,"m",84.56,8.6699999999999999E-2,1,8,0.91641899999999998]
["12.11","Extintor de incêndio de Pó ABC 12Kg capacidade extintora 6A-40BC","COTAÇÃO",2,"und",2,0.5,1,8,0.125]
["12.12","Placa direção saída de emergência Fotoluminescente Sinalize Seta Reta P/ Direita 30x15cm","COTAÇÃO",3,"und",8,0.5,1,8,0.5]
["12.13","Placa direção saída de emergência Fotoluminescente Sinalize Seta Reta P/ Esquerda 30x15cm","COTAÇÃO",4,"und",4,0.5,1,8,0.25]
["12.14","Placa sinalizadora saída de emergência - Final Fotoluminescente  30x15cm","COTAÇÃO",5,"und",2,0.5,1,8,0.125]
[]
[13,"REVESTIMENTOS",{"$nulls":7},{"$f":"SUM(J171:J177)","v":96.965488750000006},{"$f":"ROUND(J170/30,1)","v":3.2}]
["13.1","Paredes:"]
["13.1.1"," Revestimento para parede em MDF com revestimento melamínico mdeirado, tipo lambri, colado, superfície polida","COMPOSIÇÃO",136,"m²",137.41,0.6,1,8,10.30575]
["13.1.2","Painel acústico constituído de gradeamento em compensado naval 18mm, preenchido com lã de pet acústica 15mm dens = 15kg/m3 e acabamento em tecido ortofônico e alisar em madeira maciça 40mmx15mm boleada nas bordas tratada com seladora - aplicado","ORSE (Insumos)",12779,"m²",67.78,1,1,8,8.4725000000000001]
["13.1.3","CHAPISCO APLICADO EM ALVENARIA (COM PRESENÇA DE VÃOS) E ESTRUTURAS DE CONCRETO DE FACHADA, COM COLHER DE PEDREIRO. ARGAMASSA TRAÇO 1:3 COM PREPARO EM BETONEIRA 400L. AF_06/2014","SINAPI",87905,"m²",12.47,0.183,1,8,{"$f":"F174*G174/(H174*I174)","v":0.28525125000000001}]
["13.1.4","MASSA ÚNICA, PARA RECEBIMENTO DE PINTURA, EM ARGAMASSA TRAÇO 1:2:8, PREPARO MECÂNICO COM BETONEIRA 400L, APLICADA MANUALMENTE EM FACES INTERNAS DE PAREDES, ESPESSURA DE 20MM, COM EXECUÇÃO DE TALISCAS. AF_06/2014","SINAPI",87529,"m²",12.47,0.47,1,8,0.7326125]
["13.2","Teto:"]
["13.2.1"," Forro de gesso acartonado, acabamento em pintura PVA Latex na cor branco, com isolamento em lã de vidro 25mm, placa 625 x 625mm e perfil T, instalado","COMPOSIÇÃO",137,"m²",411.57,1.5,1,8,77.169375000000002]
[]
[14,"PINTURA",{"$nulls":7},{"$f":"SUM(J180:J185)","v":35.74843520000001},{"$f":"ROUND(J179/30,1)","v":1.2}]
["14.1"," Emassamento de superfície, com aplicação de 02 demãos de massa corrida, lixamento e retoques (teto camarim, varanda e todo forro de gesso do auditório, inclusive sala de som)","COMPOSIÇÃO",141,"m²",{"$f":"(1.65*17)+(2.27*4.4)+411.57","v":449.608},0.3,1,8,16.860299999999999]
["14.2","Emassamento de superfície, com aplicação de 02 demãos de massa acrílica, lixamento e retoques (parede)","COMPOSIÇÃO",142,"m²",{"$f":"(23.44*3.47)-4.8+F184+12.47","v":111.93180000000001},0.35,1,8,4.8970162500000001]
["14.3","APLICAÇÃO MANUAL DE PINTURA COM TINTA LÁTEX PVA EM TETO, DUAS DEMÃOS  AF_06/2014\n ","SINAPI",88486,"m²",{"$f":"(1.65*17)+(2.27*4.4)+411.57","v":449.608},0.17,1,8,9.5541700000000009]
["14.4","APLICAÇÃO MANUAL DE PINTURA COM TINTA LÁTEX ACRÍLICA EM PAREDES, DUAS DEMÃOS (Camarim e alvenarias executadas).","SINAPI",88489,"m²",{"$f":"(23.44*3.47)-4.8+12.47","v":89.006800000000013},0.187,1,8,2.0805339500000004]
["14.5","Aplicação manual de pintura com tinta texturizada acrílica em paredes externas (Fachada)","SINAPI",88423,"m²",{"$f":"(1.75+4.8)*3.5","v":22.925000000000001},0.17599999999999999,1,8,{"$f":"F184*G184/(H184*I184)","v":0.50434999999999997}]
["14.6","APLICAÇÃO DE FUNDO SELADOR LÁTEX PVA EM TETO, UMA DEMÃO. AF_06/2014 (Forro de gesso acartonado)","SINAPI",88482,"m²",411.57,3.5999999999999997E-2,1,8,1.8520649999999999]
[]
[15,"CLIMATIZAÇÃO/REFRIGERAÇÃO",{"$nulls":7},{"$f":"SUM(J188:J190)","v":3.5},{"$f":"ROUND(J187/30,3)","v":0.11700000000000001}]
["15.1","Condicionador de ar tipo split high wall, 9000 btu - FORNECIMENTO E INSTALACAO","COMPOSIÇÃO",158,"und",1,4,1,8,{"$f":"F188*G188/(H188*I188)","v":0.5}]
["15.2","Condicionador de ar tipo split piso-teto, 30000 btu - FORNECIMENTO E INSTALACAO","COMPOSIÇÃO",159,"und",2,4,1,8,1]
["15.3","Condicionador de ar tipo split piso-teto, 60000 btu - FORNECIMENTO E INSTALACAO","COMPOSIÇÃO",160,"und",4,4,1,8,2]
[]
[16,"PISO",{"$nulls":7},{"$f":"SUM(J193:J200)","v":82.518952500000012},{"$f":"ROUND(J192/30,1)","v":2.8}]
["16.1","Piso em assoalho de madeira lei (Pau D´Arco, similar ou de qualidade superior) - Extra, réguas macho e fêmea 20cm x 3cm, elevado instalado em barrotes de madeira (palco em madeira)","COMPOSIÇÃO",138,"m²",129,1.5,1,8,{"$f":"F193*G193/(H193*I193)","v":24.1875}]
["16.2","CONTRAPISO EM ARGAMASSA TRAÇO 1:4 (CIMENTO E AREIA), PREPARO MECÂNICO COM BETONEIRA 400 L, APLICADO EM ÁREAS MOLHADAS SOBRE LAJE, ADERIDO, ESPESSURA 2CM. AF_06/2014 (piso da varanda do auditório e camarim)","SINAPI",87735,"m²",{"$f":"26.43+21.34","v":47.769999999999996},0.59,1,8,{"$f":"F194*G194/(H194*I194)","v":3.5230374999999996}]
["16.3"," Restauro - Restauração de forro de madeira compreendendo substituição de peças de apoio até 20%, raspagem, calafetagem, enceramento e parquetagem (obs: usar para substituição as peças da área de ampliação do palco ) (restauro do piso da platéia)","COMPOSIÇÃO",140,"m²",232.5,1.3,1,8,37.78125]
["16.4","Piso tátil direcional e/ou alerta, em borracha, p/deficientes visuais, dimensões 25x25cm, aplicado, rejuntado, exclusive regularização de base","ORSE",7323,"m²",{"$f":"(1.31+1.31+1.75+0.6+10.2+0.6+1.5+1.1+1.5+1.5+2.15+0.8+1.45+1.5+1.25)*0.25","v":7.129999999999999},1,1,8,0.89124999999999988]
["16.5"," Imunização de madeira contra cupim, com aplicação de 01 demão de Pentox, similar ou qualidade superior","COMPOSIÇÃO",139,"m²",{"$f":"F193","v":129},0.4,1,8,6.45]
["16.6","PISO EM GRANILITE, MARMORITE OU GRANITINA ESPESSURA 8 MM, INCLUSO JUNTAS DE DILATACAO PLASTICAS (Piso do corredor executar na mesma cor do piso existente e piso do camarim)","SINAPI",84191,"m²",{"$f":"21.81+F200","v":74.966000000000008},0.6,1,8,5.6224500000000006]
["16.7","RODAPE EM GRANILITE/MARMORITE, ALTURA 10CM","SINAPI","73850/001","m",21.4,0.6,1,8,1.6049999999999998]
["16.8","Contrapiso em argamassa traço 1:4 (cimento e areia), preparo manual, aplicado em áreas secas sobre bloco de EPS, aderido, espessura 6cm. af_06/2014 (ELEVAÇÃO DO PISO DO CORREDOR)","COMPOSIÇÃO",153,"m²",{"$f":"2.5*18.92+2.4*2.44","v":53.156000000000006},0.37,1,8,2.4584650000000003]
[]
[17,"SERVIÇOS COMPLEMENTARES",{"$nulls":7},{"$f":"SUM(J203:J216)","v":156.07644687499999},{"$f":"ROUND(J202/30,1)","v":5.2}]
["17.1","Bancada de madeira MDF revestida em laminado melamínico (Sala de Som e Camarim)","COMPOSIÇÃO",131,"m²",{"$f":"2+2.53","v":4.5299999999999994},2,1,8,1.1324999999999998]
["17.2","Letra em alumínio com pintura eletrostática a pó na cor preto 20 x 20cm - instalado","COMPOSIÇÃO",132,"und",24,0.25,1,8,0.75]
["17.3","ESPELHO CRISTAL ESPESSURA 4MM, COM MOLDURA EM ALUMINIO E CHAPA DE EPS 10MM (Camarim, parede do lavatório)","COMPOSIÇÃO",133,"m²",6,1.8,1,8,1.35]
["17.4","ESPELHO CRISTAL ESPESSURA 4MM, COM MOLDURA EM MDF E CHAPA DE EPS 10MM (Camarim, parede da bancada de maquiagem)","COMPOSIÇÃO",134,"m²",4.58,1.8,1,8,1.0305]
["17.5","Armário de madeira MDF revestida em laminado melamínico","COMPOSIÇÃO",135,"m²",12.79,2,1,8,3.1974999999999998]
["17.6","Tubo de aço inox 1 1/2\" esp.1,50mm","COMPOSIÇÃO",142,"m",6.03,0.5,1,8,0.37687500000000002]
["17.7","Fornecimento e montagem de Cortinas em tecido oxford com trilho em alumínio (Cortina para as portas P6 P7, conforme especificado em projeto arquitetônico)","Cotação Painel de Preços",1,"m²",54.57,0.5,1,8,{"$f":"F209*G209/(H209*I209)","v":3.410625}]
["17.8","Tecido em algodão natural (largura de aproximadamente 1,0m) (para execução do provador)","ORSE",3103,"m",6.3,0.1,1,8,{"$f":"F210*G210/(H210*I210)","v":7.8750000000000001E-2}]
["17.9","Recuperação das cadeiras de madeira, c/ aproveitamento de 75%","COMPOSIÇÃO",152,"und",311,3,1,8,116.625]
["17.10","PINTURA VERNIZ POLIURETANO BRILHANTE EM MADEIRA, TRES DEMAOS (Pintura das cadeiras)","COMPOSIÇÃO",155,"m²",311,0.4,1,8,{"$f":"F212*G212/(H212*I212)","v":15.55}]
["17.11","LIMPEZA FINAL DA OBRA","SINAPI",9537,"m²",514.5,0.14000000000000001,1,8,9.0037500000000001]
["17.12","Remoção de entulho da obra - carga e tranporte","COMPOSIÇÃO",162,"m³",{"$f":"1.25*(F16+F17*0.008+F18*0.05+F19*0.03+F20*0.002+F21*0.008+F22*0.005+F28*0.03)","v":27.967575000000004},1,1,8,3.4959468750000005]
["17.13","Placa de inauguração de obra em alumínio 0,60 x 0,80 m","COMPOSIÇÃO",163,"m³",1,0.6,1,8,{"$f":"F215*G215/(H215*I215)","v":7.4999999999999997E-2}]
[]
["TOTAL de Tempo sem sorebor serviços",{"$nulls":8},{"$f":"SUM(J9:J216)/2","v":606.60237457499989},{"$f":"ROUND(J217/30,1)","v":20.2}]
[null,"Prazo de 606,60 dias ou 20,20 meses, sendo cada etapa começando após a conclusão da anterior, ou seja, sem a execução de mais de uma etapa ao mesmo tempo"]
[null,"O prazo total da obra deve considerar os serviços que podem ser executados concomitantemente. Dessa forma, o prazo da obra será menor que o prazo na Tabela acima."]